Workbook

Sheet قاعدة بيانات
D5: شهر مايو | E5: شهر يونية | F5: شهر يولية | G5: شهر اغسطس | H5: شهر سبتمبر | I5: العميل | J5: المواد
D6: 2020-05-01 | E6: 2020-06-01 | F6: 2020-07-01 | G6: 2020-08-01 | H6: 2020-09-01 | I6: مصنع العسيرى | J6: خرسانة 3/4
D7: 2020-05-02 | E7: 2020-06-02 | F7: 2020-07-02 | G7: 2020-08-02 | H7: 2020-09-02 | I7: نقدى | J7: خرسانة 3/8
D8: 2020-05-03 | E8: 2020-06-03 | F8: 2020-07-03 | G8: 2020-08-03 | H8: 2020-09-03 | I8: ظافر | J8: تراب ناعم
D9: 2020-05-04 | E9: 2020-06-04 | F9: 2020-07-04 | G9: 2020-08-04 | H9: 2020-09-04 | I9: مؤسسة عبد الله راشد الاسمري | J9: بودرة
D10: 2020-05-05 | E10: 2020-06-05 | F10: 2020-07-05 | G10: 2020-08-05 | H10: 2020-09-05 | I10: عثمان
D11: 2020-05-06 | E11: 2020-06-06 | F11: 2020-07-06 | G11: 2020-08-06 | H11: 2020-09-06 | I11: محمد نعيم
D12: 2020-05-07 | E12: 2020-06-07 | F12: 2020-07-07 | G12: 2020-08-07 | H12: 2020-09-07 | I12: محمد نزير
D13: 2020-05-08 | E13: 2020-06-08 | F13: 2020-07-08 | G13: 2020-08-08 | H13: 2020-09-08 | I13: عابد الله
D14: 2020-05-09 | E14: 2020-06-09 | F14: 2020-07-09 | G14: 2020-08-09 | H14: 2020-09-09 | I14: محمد اشرف عبد الغاني
D15: 2020-05-10 | E15: 2020-06-10 | F15: 2020-07-10 | G15: 2020-08-10 | H15: 2020-09-10 | I15: محمد اكرم محمد شريف
D16: 2020-05-11 | E16: 2020-06-11 | F16: 2020-07-11 | G16: 2020-08-11 | H16: 2020-09-11 | I16: مؤسسة بن دروم
D17: 2020-05-12 | E17: 2020-06-12 | F17: 2020-07-12 | G17: 2020-08-12 | H17: 2020-09-12
D18: 2020-05-13 | E18: 2020-06-13 | F18: 2020-07-13 | G18: 2020-08-13 | H18: 2020-09-13
D19: 2020-05-14 | E19: 2020-06-14 | F19: 2020-07-14 | G19: 2020-08-14 | H19: 2020-09-14
D20: 2020-05-15 | E20: 2020-06-15 | F20: 2020-07-15 | G20: 2020-08-15 | H20: 2020-09-15
D21: 2020-05-16 | E21: 2020-06-16 | F21: 2020-07-16 | G21: 2020-08-16 | H21: 2020-09-16
D22: 2020-05-17 | E22: 2020-06-17 | F22: 2020-07-17 | G22: 2020-08-17 | H22: 2020-09-17
D23: 2020-05-18 | E23: 2020-06-18 | F23: 2020-07-18 | G23: 2020-08-18 | H23: 2020-09-18
D24: 2020-05-19 | E24: 2020-06-19 | F24: 2020-07-19 | G24: 2020-08-19 | H24: 2020-09-19
D25: 2020-05-20 | E25: 2020-06-20 | F25: 2020-07-20 | G25: 2020-08-20 | H25: 2020-09-20
D26: 2020-05-21 | E26: 2020-06-21 | F26: 2020-07-21 | G26: 2020-08-21 | H26: 2020-09-21
D27: 2020-05-22 | E27: 2020-06-22 | F27: 2020-07-22 | G27: 2020-08-22 | H27: 2020-09-22
D28: 2020-05-23 | E28: 2020-06-23 | F28: 2020-07-23 | G28: 2020-08-23 | H28: 2020-09-23
D29: 2020-05-24 | E29: 2020-06-24 | F29: 2020-07-24 | G29: 2020-08-24 | H29: 2020-09-24
D30: 2020-05-25 | E30: 2020-06-25 | F30: 2020-07-25 | G30: 2020-08-25 | H30: 2020-09-25
D31: 2020-05-26 | E31: 2020-06-26 | F31: 2020-07-26 | G31: 2020-08-26 | H31: 2020-09-26
D32: 2020-05-27 | E32: 2020-06-27 | F32: 2020-07-27 | G32: 2020-08-27 | H32: 2020-09-27
D33: 2020-05-28 | E33: 2020-06-28 | F33: 2020-07-28 | G33: 2020-08-28 | H33: 2020-09-28
D34: 2020-05-29 | E34: 2020-06-29 | F34: 2020-07-29 | G34: 2020-08-29 | H34: 2020-09-29
D35: 2020-05-30 | E35: 2020-06-30 | F35: 2020-07-30 | G35: 2020-08-30 | H35: 2020-09-30
D36: 2020-05-31 | F36: 2020-07-31 | G36: 2020-08-31

Sheet مقدمة

Sheet يناير
A1: تقرير مبيعات كسارة يناير 2020
A2: S.N | B2: DATE | C2: NUMBER | D2: العميل | E2: نوع المواد | F2: QUANTITY | G2: PRICE | H2: AMOUNT | J2: بيان بقيمة الخرسانة المحملة علي شركة القلابات عن شهر ديسمبر 2019م | T2: اجمالى المبييعات | W2: =H292 -> 51030
A3: A-1 | B3: 2020-01-01 | C3: 8253 | D3: نقدي | E3: خرسانة 3/4 | F3: 8 | G3: =IFERROR(H3/F3,"-") -> 25 | H3: 200 | J3: الإجمالي | K3: واسيم - شركة القلابات | L3: حسين - شركة القلابات | M3: نعيم - شركة القلابات | N3: اكرام - شركة القلابات | O3: ناصر - شركة القلابات | P3: العمري - شركة القلابات | Q3: مقصود - شركة القلابات | R3: نزير - شركة القلابات | T3: مسلسل | U3: التاريخ | V3: رقم المستند | W3: ايداع | X3: الرصيد المتبقى | Y3: ملاحظات
A4: A-2 | B4: 2020-01-01 | C4: 8254 | D4: واسيم - شركة القلابات | E4: خرسانة 3/4 | F4: 16 | G4: 25 | H4: 400 | J4: =SUM(K4:R4) -> 12195 | K4: =SUMIF(D3:D290,K3:R3,H3:H290) -> 900 | L4: =SUMIF(D3:D290,K3:R3,H3:H290) -> 0 | M4: =SUMIF(D3:D290,K3:R3,H3:H290) -> 2810 | N4: =SUMIF(D3:D290,K3:R3,H3:H290) -> 1320 | O4: =SUMIF(D3:D290,K3:R3,H3:H290) -> 4210 | P4: =SUMIF(D3:D290,K3:R3,H3:H290) -> 0 | Q4: =SUMIF(D3:D290,K3:R3,H3:H290) -> 50 | R4: =SUMIF(D3:D290,K3:R3,H3:H290) -> 2905 | U4: 2020-01-07 | W4: 5000 | X4: =W2-W15 -> 880 | Y4: ايداع في حساب الشركة
A5: A-3 | B5: 2020-01-01 | C5: 8255 | D5: نقدي | E5: خرسانة 3/4 | F5: 8 | G5: 25 | H5: 200 | U5: 2020-01-09 | W5: 5000
A6: A-4 | B6: 2020-01-01 | C6: 8256 | D6: نقدي | E6: خرسانة 3/4 | F6: 16 | G6: 24.375 | H6: 390 | U6: 2020-01-14 | W6: 4000
A7: A-5 | B7: 2020-01-01 | C7: 8257 | D7: نقدي | E7: خرسانة 3/4 | F7: 8 | G7: 25 | H7: 200 | U7: 2020-01-16 | W7: 5500
A8: A-6 | B8: 2020-01-01 | C8: 8258 | D8: نقدي | E8: خرسانة 3/4 | F8: 8 | G8: 25 | H8: 200 | U8: 2020-01-20 | W8: 3000
A9: A-7 | B9: 2020-01-02 | C9: 8259 | D9: نقدي | E9: خرسانة 3/4 | F9: 16 | G9: 25 | H9: 400 | U9: 2020-01-21 | W9: 3000
A10: A-8 | B10: 2020-01-02 | C10: 8260 | D10: نقدي | E10: خرسانة 3/4 | F10: 16 | G10: 25 | H10: 400 | U10: 26/1/2020 | W10: 7863
A11: A-9 | B11: 2020-01-02 | C11: 8261 | D11: واسيم - شركة القلابات | E11: خرسانة 3/4 | F11: 16 | G11: 25 | H11: 400 | U11: 23/1/2020 | W11: 7127
A12: A-10 | B12: 2020-01-02 | C12: 8262 | D12: نقدي | E12: خرسانة 3/4 | F12: 16 | G12: 25 | H12: 400 | U12: 29/1/2020 | W12: 4645
A13: A-11 | B13: 2020-01-02 | C13: 8263 | D13: نقدي | E13: خرسانة 3/4 | F13: 16 | G13: 25 | H13: 400 | U13: 30/1/2019 | W13: 1875
A14: A-12 | B14: 2020-01-02 | C14: 8264 | D14: نقدي | E14: خرسانة 3/8 | F14: 16 | G14: 24.375 | H14: 390 | U14: 30/1/2020 | W14: 3140
A15: A-13 | B15: 2020-01-02 | C15: 8265 | D15: نقدي | E15: تراب ناعم | F15: 48 | G15: 3.125 | H15: 150 | T15: اجمالى الايداعات | W15: =SUM(W4:W14) -> 50150
A16: A-14 | B16: 2020-01-02 | C16: 8266 | D16: نقدي | E16: خرسانة 3/4 | F16: 16 | G16: 25 | H16: 400
A17: A-15 | B17: 2020-01-02 | C17: 8267 | D17: نقدي | E17: خرسانة 3/4 | F17: 16 | G17: 24.375 | H17: 390
A18: A-16 | B18: 2020-01-02 | C18: 8268 | D18: نقدي | E18: خرسانة 3/4 | F18: 16 | G18: 25 | H18: 400
A19: A-17 | B19: 2020-01-04 | C19: 8269 | D19: نقدي | E19: خرسانة 3/4 | F19: 16 | G19: 24.375 | H19: 390
A20: A-18 | B20: 2020-01-04 | C20: 8270 | D20: نقدي | E20: خرسانة 3/4 | F20: 16 | G20: 24.375 | H20: 390
A21: A-19 | B21: 2020-01-04 | C21: 8271 | D21: نقدي | E21: خرسانة 3/4 | F21: 16 | G21: 24.375 | H21: 390
A22: A-20 | B22: 2020-01-04 | C22: 8272 | D22: نقدي | E22: خرسانة 3/4 | F22: 16 | G22: 24.375 | H22: 390
A23: A-21 | B23: 2020-01-04 | C23: 8273 | D23: ظافر النماص | E23: خرسانة 3/4 | F23: 16 | G23: 25 | H23: 400
A24: A-22 | B24: 2020-01-04 | C24: 8274 | D24: نقدي | E24: خرسانة 3/4 | F24: 16 | G24: 25 | H24: 400
A25: A-23 | B25: 2020-01-04 | C25: 8275 | D25: نقدي | E25: خرسانة 3/8 | F25: 16 | G25: 25 | H25: 400
A26: A-24 | B26: 2020-01-04 | C26: 8276 | D26: مصنع العسيري | E26: خرسانة 3/8 | F26: 24 | G26: 22.91666667 | H26: 550
A27: A-25 | B27: 2020-01-04 | C27: 8277 | D27: ظافر النماص | E27: خرسانة 3/4 | F27: 16 | G27: 25 | H27: 400
A28: A-26 | B28: 2020-01-04 | C28: 8278 | D28: مصنع العسيري | E28: خرسانة 3/8 | F28: 24 | G28: 22.91666667 | H28: 550
A29: A-27 | B29: 2020-01-04 | C29: 8279 | D29: نقدي | E29: خرسانة 3/4 | F29: 16 | G29: 25 | H29: 400
A30: A-28 | B30: 2020-01-04 | C30: 8280 | D30: نقدي | E30: خرسانة 3/4 | F30: 16 | G30: 25 | H30: 400
A31: A-29 | B31: 2020-01-04 | C31: 8281 | D31: نزير - شركة القلابات | E31: خرسانة 3/4 | F31: 16 | G31: 25 | H31: 400
A32: A-30 | B32: 2020-01-04 | C32: 8282 | D32: مصنع العسيري | E32: خرسانة 3/8 | F32: 24 | G32: 22.91666667 | H32: 550
A33: A-31 | B33: 2020-01-04 | C33: 8283 | D33: مصنع العسيري | E33: خرسانة 3/4 | F33: 24 | G33: 22.91666667 | H33: 550
A34: A-32 | B34: 2020-01-05 | C34: 8284 | D34: مصنع العسيري | E34: خرسانة 3/4 | F34: 24 | G34: 22.91666667 | H34: 550
A35: A-33 | B35: 2020-01-05 | C35: 8285 | D35: نقدي | E35: خرسانة 3/4 | F35: 8 | G35: 25 | H35: 200
A36: A-34 | B36: 2020-01-05 | C36: 8286 | D36: نقدي | E36: خرسانة 3/8 | F36: 16 | G36: 24.375 | H36: 390
A37: A-35 | B37: 2020-01-05 | C37: 8287 | D37: نقدي | E37: خرسانة 3/8 | F37: 16 | G37: 24.375 | H37: 390
A38: A-36 | B38: 2020-01-05 | C38: 8288 | D38: مصنع العسيري | E38: خرسانة 3/8 | F38: 24 | G38: 22.91666667 | H38: 550
A39: A-37 | B39: 2020-01-05 | C39: 8289 | D39: ظافر النماص | E39: خرسانة 3/4 | F39: 16 | G39: 25 | H39: 400
A40: A-38 | B40: 2020-01-05 | C40: 8290 | D40: نقدي | E40: خرسانة 3/4 | F40: 16 | G40: 25 | H40: 400
A41: A-39 | B41: 2020-01-05 | C41: 8291 | D41: نقدي | E41: خرسانة 3/4 | F41: 8 | G41: 25 | H41: 200
A42: A-40 | B42: 2020-01-05 | C42: 8292 | D42: نقدي | E42: خرسانة 3/4 | F42: 8 | G42: 25 | H42: 200
A43: A-41 | B43: 2020-01-05 | C43: 8293 | D43: مصنع العسيري | E43: خرسانة 3/8 | F43: 24 | G43: 22.91666667 | H43: 550
A44: A-42 | B44: 2020-01-05 | C44: 8294 | D44: مصنع العسيري | E44: خرسانة 3/8 | F44: 24 | G44: 22.91666667 | H44: 550
A45: A-43 | B45: 2020-01-05 | C45: 8295 | D45: نقدي | E45: خرسانة 3/4 | F45: 8 | G45: 25 | H45: 200
A46: A-44 | B46: 2020-01-05 | C46: 8296 | D46: ناصر - شركة القلابات | E46: خرسانة 3/4 | F46: 16 | G46: 25 | H46: 400
A47: A-45 | B47: 2020-01-05 | C47: 8297 | D47: ناصر - شركة القلابات | E47: خرسانة 3/4 | F47: 16 | G47: 25 | H47: 400
A48: A-46 | B48: 2020-01-05 | C48: 8298 | D48: مصنع العسيري | E48: خرسانة 3/8 | F48: 24 | G48: 22.91666667 | H48: 550
A49: A-47 | B49: 2020-01-05 | C49: 8299 | D49: نقدي | E49: خرسانة 3/4 | F49: 16 | G49: 25 | H49: 400
A50: A-48 | B50: 2020-01-05 | C50: 8300 | D50: نقدي | E50: خرسانة 3/8 | F50: 16 | G50: 24.375 | H50: 390
A51: A-49 | B51: 2020-01-06 | C51: 8301 | D51: نقدي | E51: خرسانة 3/4 | F51: 8 | G51: 25 | H51: 200
A52: A-50 | B52: 2020-01-06 | C52: 8302 | D52: نقدي | E52: خرسانة 3/4 | F52: 8 | G52: 25 | H52: 200
A53: A-51 | B53: 2020-01-06 | C53: 8303 | D53: نقدي | E53: خرسانة 3/4 | F53: 8 | G53: 25 | H53: 200
A54: A-52 | B54: 2020-01-06 | C54: 8304 | D54: ظافر النماص | E54: خرسانة 3/4 | F54: 16 | G54: 25 | H54: 400
A55: A-53 | B55: 2020-01-06 | C55: 8305 | D55: نقدي | E55: خرسانة 3/4 | F55: 16 | G55: 24.375 | H55: 390
A56: A-54 | B56: 2020-01-06 | C56: 8306 | D56: نقدي | E56: خرسانة 3/4 | F56: 16 | G56: 24.375 | H56: 390
A57: A-55 | B57: 2020-01-06 | C57: 8307 | D57: نقدي | E57: خرسانة 3/4 | F57: 8 | G57: 25 | H57: 200
A58: A-56 | B58: 2020-01-06 | C58: 8308 | D58: نزير - شركة القلابات | E58: خرسانة 3/4 | F58: 16 | G58: 25 | H58: 400
A59: A-57 | B59: 2020-01-07 | C59: 8309 | D59: مصنع العسيري | E59: خرسانة 3/4 | F59: 24 | G59: 22.91666667 | H59: 550
A60: A-58 | B60: 2020-01-07 | C60: 8310 | D60: نقدي | E60: خرسانة 3/4 | F60: 8 | G60: 25 | H60: 200
A61: A-59 | B61: 2020-01-07 | C61: 8311 | D61: مصنع العسيري | E61: خرسانة 3/4 | F61: 24 | G61: 22.91666667 | H61: 550
A62: A-60 | B62: 2020-01-07 | C62: 8312 | D62: نعيم - شركة القلابات | E62: تراب ناعم | F62: 16 | G62: 3.125 | H62: 50
A63: A-61 | B63: 2020-01-07 | C63: 8313 | D63: مصنع العسيري | E63: خرسانة 3/8 | F63: 24 | G63: 22.91666667 | H63: 550
A64: A-62 | B64: 2020-01-07 | C64: 8314 | D64: نقدي | E64: خرسانة 3/4 | F64: 8 | G64: 25 | H64: 200
A65: A-63 | B65: 2020-01-07 | C65: 8315 | D65: مصنع العسيري | E65: خرسانة 3/8 | F65: 24 | G65: 22.91666667 | H65: 550
A66: A-64 | B66: 2020-01-07 | C66: 8316 | D66: نقدي | E66: خرسانة 3/4 | F66: 16 | G66: 24.375 | H66: 390
A67: A-65 | B67: 2020-01-07 | C67: 8317 | D67: نقدي | E67: خرسانة 3/4 | F67: 16 | G67: =IFERROR(H67/F67,"-") -> 24.375 | H67: 390
A68: A-66 | B68: 2020-01-07 | C68: 8318 | D68: ناصر - شركة القلابات | E68: خرسانة 3/4 | F68: 16 | G68: 25 | H68: 400
A69: A-67 | B69: 2020-01-07 | C69: 8319 | D69: مصنع العسيري | E69: خرسانة 3/8 | F69: 24 | G69: 22.91666667 | H69: 550
A70: A-68 | B70: 2020-01-07 | C70: 8320 | D70: نقدي | E70: خرسانة 3/4 | F70: 16 | G70: 25 | H70: 400
A71: A-69 | B71: 2020-01-07 | C71: 8321 | D71: نقدي | E71: خرسانة 3/4 | F71: 16 | G71: 25 | H71: 400
A72: A-70 | B72: 2020-01-07 | C72: 8322 | D72: نعيم - شركة القلابات | E72: خرسانة 3/4 | F72: 16 | G72: 25 | H72: 400
A73: A-71 | B73: 2020-01-08 | C73: 8323 | D73: نقدي | E73: خرسانة 3/4 | F73: 8 | G73: 25 | H73: 200
A74: A-72 | B74: 2020-01-08 | C74: 8324 | D74: ناصر - شركة القلابات | E74: خرسانة 3/4 | F74: 16 | G74: 25 | H74: 400
A75: A-73 | B75: 2020-01-08 | C75: 8325 | D75: نقدي | E75: خرسانة 3/4 | F75: 16 | G75: 25 | H75: 400
A76: A-74 | B76: 2020-01-08 | C76: 8326 | D76: مصنع العسيري | E76: خرسانة 3/4 | F76: 24 | G76: 22.91666667 | H76: 550
A77: A-75 | B77: 2020-01-08 | C77: 8327 | D77: نقدي | E77: تراب ناعم | F77: 16 | G77: 3.125 | H77: 50
A78: A-76 | B78: 2020-01-08 | C78: 8328 | D78: مصنع العسيري | E78: خرسانة 3/8 | F78: 24 | G78: 22.91666667 | H78: 550
A79: A-77 | B79: 2020-01-08 | C79: 8329 | D79: ظافر النماص | E79: خرسانة 3/4 | F79: 16 | G79: 25 | H79: 400
A80: A-78 | B80: 2020-01-08 | C80: 8330 | D80: مصنع العسيري | E80: خرسانة 3/8 | F80: 24 | G80: 22.91666667 | H80: 550
A81: A-79 | B81: 2020-01-08 | C81: 8331 | D81: مصنع العسيري | E81: خرسانة 3/8 | F81: 24 | G81: 22.91666667 | H81: 550
A82: A-80 | B82: 2020-01-08 | C82: 8332 | D82: راشد الاسمري - ايجار معدات | E82: خرسانة 3/8 | F82: 16 | G82: 25 | H82: 400
A83: A-81 | B83: 2020-01-08 | C83: 8333 | D83: مصنع العسيري | E83: خرسانة 3/8 | F83: 24 | G83: 22.91666667 | H83: 550
A84: A-82 | B84: 2020-01-08 | C84: 8334 | D84: نقدي | E84: خرسانة 3/8 | F84: 8 | G84: 25 | H84: 200
A85: A-83 | B85: 2020-01-08 | C85: 8335 | D85: نقدي | E85: خرسانة 3/8 | F85: 16 | G85: 24.375 | H85: 390
A86: A-84 | B86: 2020-01-08 | C86: 8336 | D86: نقدي | E86: خرسانة 3/8 | F86: 8 | G86: 25 | H86: 200
A87: A-85 | B87: 2020-01-08 | C87: 8337 | D87: نقدي | E87: خرسانة 3/8 | F87: 8 | G87: 25 | H87: 200
A88: A-86 | B88: 2020-01-08 | C88: 8338 | D88: عالم الاعمار - عميل نقدي | E88: خرسانة 3/8 | F88: 16 | G88: 25 | H88: 400
A89: A-87 | B89: 2020-01-09 | C89: 8339 | D89: مصنع العسيري | E89: خرسانة 3/4 | F89: 24 | G89: 22.91666667 | H89: 550
A90: A-88 | B90: 2020-01-09 | C90: 8340 | D90: مصنع العسيري | E90: خرسانة 3/4 | F90: 24 | G90: 22.91666667 | H90: 550
A91: A-89 | B91: 2020-01-09 | C91: 8341 | D91: نقدي | E91: خرسانة 3/4 | F91: 8 | G91: 25 | H91: 200
A92: A-90 | B92: 2020-01-09 | C92: 8342 | D92: مصنع العسيري | E92: خرسانة 3/8 | F92: 24 | G92: 22.91666667 | H92: 550
A93: A-91 | B93: 2020-01-09 | C93: 8343 | D93: مصنع العسيري | E93: خرسانة 3/4 | F93: 24 | G93: 22.91666667 | H93: 550
A94: A-92 | B94: 2020-01-09 | C94: 8344 | D94: نقدي | E94: خرسانة 3/4 | F94: 8 | G94: 25 | H94: 200
A95: A-93 | B95: 2020-01-09 | C95: 8345 | D95: واسيم - شركة القلابات | E95: تراب ناعم | F95: 16 | G95: 3.125 | H95: 50
A96: A-94 | B96: 2020-01-09 | C96: 8346 | D96: عالم الاعمار - عميل نقدي | E96: خرسانة 3/4 | F96: 16 | G96: 25 | H96: 400
A97: A-95 | B97: 2020-01-09 | C97: 8347 | D97: عالم الاعمار - عميل نقدي | E97: خرسانة 3/4 | F97: 16 | G97: 25 | H97: 400
A98: A-96 | B98: 2020-01-09 | C98: 8348 | D98: مصنع العسيري | E98: خرسانة 3/8 | F98: 24 | G98: 22.91666667 | H98: 550
A99: A-97 | B99: 2020-01-09 | C99: 8349 | D99: نزير - شركة القلابات | E99: خرسانة 3/4 | F99: 16 | G99: 25 | H99: 400
A100: A-98 | B100: 2020-01-09 | C100: 8350 | D100: مصنع العسيري | E100: خرسانة 3/8 | F100: 24 | G100: 22.91666667 | H100: 550
A101: A-99 | B101: 2020-01-09 | C101: 8351 | D101: نقدي | E101: خرسانة 3/4 | F101: 8 | G101: 25 | H101: 200
A102: A-100 | B102: 2020-01-11 | C102: 8352 | D102: نقدي | E102: خرسانة 3/4 | F102: 8 | G102: 25 | H102: 200
A103: A-101 | B103: 2020-01-11 | C103: 8353 | D103: ناصر - شركة القلابات | E103: خرسانة 3/4 | F103: 16 | G103: 25 | H103: 400
A104: A-102 | B104: 2020-01-11 | C104: 8354 | D104: مصنع العسيري | E104: خرسانة 3/8 | F104: 24 | G104: 22.91666667 | H104: 550
A105: A-103 | B105: 2020-01-11 | C105: 8355 | D105: مصنع العسيري | E105: خرسانة 3/8 | F105: 24 | G105: 22.91666667 | H105: 550
A106: A-104 | B106: 2020-01-11 | C106: 8356 | D106: نزير - شركة القلابات | E106: تراب ناعم | F106: 8 | G106: 3.125 | H106: 25
A107: A-105 | B107: 2020-01-11 | C107: 8357 | D107: مصنع العسيري | E107: خرسانة 3/8 | F107: 24 | G107: 22.91666667 | H107: 550
A108: A-106 | B108: 2020-01-11 | C108: 8358 | D108: نقدي | E108: خرسانة 3/8 | F108: 24 | G108: 25 | H108: 600
A109: A-107 | B109: 2020-01-11 | C109: 8359 | D109: مصنع العسيري | E109: خرسانة 3/4 | F109: 24 | G109: 22.91666667 | H109: 550
A110: A-108 | B110: 2020-01-11 | C110: 8360 | D110: نقدي | E110: خرسانة 3/8 | F110: 24 | G110: 25 | H110: 600
A111: A-109 | B111: 2020-01-11 | C111: 8361 | D111: مصنع العسيري | E111: خرسانة 3/8 | F111: 24 | G111: 22.91666667 | H111: 550
A112: A-110 | B112: 2020-01-11 | C112: 8362 | D112: نقدي | E112: خرسانة 3/8 | F112: 8 | G112: 25 | H112: 200
A113: A-99 | B113: 2020-01-12 | C113: 8363 | D113: نقدي | E113: خرسانة 3/4 | F113: 8 | G113: 25 | H113: 200
A114: A-100 | B114: 2020-01-12 | C114: 8364 | D114: مصنع العسيري | E114: خرسانة 3/4 | F114: 24 | G114: 22.91666667 | H114: 550
A115: A-101 | B115: 2020-01-12 | C115: 8365 | D115: مصنع العسيري | E115: خرسانة 3/8 | F115: 24 | G115: 22.91666667 | H115: 550
A116: A-102 | B116: 2020-01-12 | C116: 8366 | D116: مصنع العسيري | E116: خرسانة 3/4 | F116: 24 | G116: 22.91666667 | H116: 550
A117: A-103 | B117: 2020-01-12 | C117: 8367 | D117: نقدي | E117: خرسانة 3/8 | F117: 16 | G117: 24.375 | H117: 390
A118: A-104 | B118: 2020-01-12 | C118: 8368 | D118: نزير - شركة القلابات | E118: خرسانة 3/4 | F118: 16 | G118: 25 | H118: 400
A119: A-105 | B119: 2020-01-12 | C119: 8369 | D119: مصنع العسيري | E119: خرسانة 3/8 | F119: 24 | G119: 22.91666667 | H119: 550
A120: A-106 | B120: 2020-01-12 | C120: 8370 | D120: نقدي | E120: خرسانة 3/4 | F120: 16 | G120: 25 | H120: 400
A121: A-107 | B121: 2020-01-12 | C121: 8371 | D121: مصنع العسيري | E121: خرسانة 3/8 | F121: 24 | G121: 22.91666667 | H121: 550
A122: A-108 | B122: 2020-01-12 | C122: 8372 | D122: نقدي | E122: خرسانة 3/8 | F122: 16 | G122: 24.375 | H122: 390
A123: A-109 | B123: 2020-01-13 | C123: 8373 | D123: نقدي | E123: خرسانة 3/4 | F123: 16 | G123: 25 | H123: 400
A124: A-110 | B124: 2020-01-13 | C124: 8374 | D124: مصنع العسيري | E124: خرسانة 3/4 | F124: 24 | G124: 22.91666667 | H124: 550
A125: A-111 | B125: 2020-01-13 | C125: 8375 | D125: نقدي | E125: خرسانة 3/4 | F125: 16 | G125: 25 | H125: 400
A126: A-112 | B126: 2020-01-13 | C126: 8376 | D126: مصنع العسيري | E126: خرسانة 3/8 | F126: 24 | G126: 22.91666667 | H126: 550
A127: A-113 | B127: 2020-01-13 | C127: 8377 | D127: نقدي | E127: خرسانة 3/8 | F127: 24 | G127: 25 | H127: 600
A128: A-114 | B128: 2020-01-13 | C128: 8378 | D128: نقدي | E128: خرسانة 3/4 | F128: 16 | G128: 25 | H128: 400
A129: A-115 | B129: 2020-01-13 | C129: 8379 | D129: نقدي | E129: خرسانة 3/4 | F129: 16 | G129: 25 | H129: 400
A130: A-116 | B130: 2020-01-13 | C130: 8380 | D130: مصنع العسيري | E130: خرسانة 3/8 | F130: 24 | G130: 22.91666667 | H130: 550
A131: A-117 | B131: 2020-01-13 | C131: 8381 | D131: نقدي | E131: خرسانة 3/4 | F131: 16 | G131: =IFERROR(H131/F131,"-") -> 25 | H131: 400
A132: A-118 | B132: 2020-01-13 | C132: 8382 | D132: نقدي | E132: خرسانة 3/8 | F132: 16 | G132: 24.375 | H132: 390
A133: A-119 | B133: 2020-01-13 | C133: 8383 | D133: نقدي | E133: خرسانة 3/8 | F133: 16 | G133: 24.375 | H133: 390
A134: A-120 | B134: 2020-01-13 | C134: 8384 | D134: نقدي | E134: خرسانة 3/8 | F134: 24 | G134: 25 | H134: 600
A135: A-121 | B135: 2020-01-13 | C135: 8385 | D135: نقدي | E135: خرسانة 3/4 | F135: 16 | G135: 25 | H135: 400
A136: A-122 | B136: 2020-01-13 | C136: 8386 | D136: مصنع العسيري | E136: خرسانة 3/8 | F136: 24 | G136: 22.91666667 | H136: 550
A137: A-123 | B137: 2020-01-13 | C137: 8387 | D137: نقدي | E137: خرسانة 3/4 | F137: 16 | G137: 25 | H137: 400
A138: A-124 | B138: 2020-01-13 | C138: 8388 | D138: نقدي | E138: خرسانة 3/4 | F138: 16 | G138: 24.375 | H138: 390
A139: A-125 | B139: 2020-01-13 | C139: 8389 | D139: مصنع العسيري | E139: خرسانة 3/8 | F139: 24 | G139: 22.91666667 | H139: 550
A140: A-126 | B140: 2020-01-13 | C140: 8390 | D140: مصنع العسيري | E140: خرسانة 3/4 | F140: 24 | G140: 22.91666667 | H140: 550
A141: A-127 | B141: 2020-01-14 | C141: 8391 | D141: مصنع العسيري | E141: خرسانة 3/4 | F141: 24 | G141: 22.91666667 | H141: 550
A142: A-128 | B142: 2020-01-14 | C142: 8392 | D142: مصنع العسيري | E142: خرسانة 3/8 | F142: 24 | G142: 22.91666667 | H142: 550
A143: A-129 | B143: 2020-01-14 | C143: 8393 | D143: مصنع العسيري | E143: خرسانة 3/4 | F143: 24 | G143: 22.91666667 | H143: 550
A144: A-130 | B144: 2020-01-14 | C144: 8394 | D144: نقدي | E144: خرسانة 3/4 | F144: 16 | G144: 24.375 | H144: 390
A145: A-131 | B145: 2020-01-14 | C145: 8395 | D145: مصنع العسيري | E145: خرسانة 3/8 | F145: 24 | G145: 22.91666667 | H145: 550
A146: A-132 | B146: 2020-01-14 | C146: 8396 | D146: مصنع العسيري | E146: خرسانة 3/8 | F146: 24 | G146: 22.91666667 | H146: 550
A147: A-133 | B147: 2020-01-14 | C147: 8397 | D147: نقدي | E147: خرسانة 3/4 | F147: 4 | G147: 25 | H147: 100
A148: A-134 | B148: 2020-01-14 | C148: 8398 | D148: نقدي | E148: خرسانة 3/4 | F148: 16 | G148: 25 | H148: 400
A149: A-135 | B149: 2020-01-15 | C149: 8399 | D149: مصنع العسيري | E149: خرسانة 3/4 | F149: 24 | G149: 22.91666667 | H149: 550
A150: A-136 | B150: 2020-01-15 | C150: 8400 | D150: مصنع العسيري | E150: خرسانة 3/4 | F150: 24 | G150: 22.91666667 | H150: 550
A151: A-137 | B151: 2020-01-15 | C151: 8401 | D151: مصنع العسيري | E151: خرسانة 3/8 | F151: 24 | G151: 22.91666667 | H151: 550
A152: A-138 | B152: 2020-01-15 | C152: 8402 | D152: مصنع العسيري | E152: خرسانة 3/8 | F152: 24 | G152: 22.91666667 | H152: 550
A153: A-139 | B153: 2020-01-15 | C153: 8403 | D153: نقدي | E153: خرسانة 3/4 | F153: 8 | G153: 25 | H153: 200
A154: A-140 | B154: 2020-01-15 | C154: 8404 | D154: نقدي | E154: خرسانة 3/4 | F154: 8 | G154: 25 | H154: 200
A155: A-141 | B155: 2020-01-15 | C155: 8405 | D155: نقدي | E155: خرسانة 3/8 | F155: 16 | G155: 24.375 | H155: 390
A156: A-142 | B156: 2020-01-15 | C156: 8406 | D156: مصنع العسيري | E156: خرسانة 3/8 | F156: 24 | G156: 22.91666667 | H156: 550
A157: A-143 | B157: 2020-01-16 | C157: 8407 | D157: نقدي | E157: خرسانة 3/4 | F157: 16 | G157: 25 | H157: 400
A158: A-144 | B158: 2020-01-16 | C158: 8408 | D158: مصنع العسيري | E158: خرسانة 3/4 | F158: 24 | G158: 22.91666667 | H158: 550
A159: A-145 | B159: 2020-01-16 | C159: 8409 | D159: نقدي | E159: خرسانة 3/8 | F159: 8 | G159: 25 | H159: 200
A160: A-146 | B160: 2020-01-16 | C160: 8410 | D160: نقدي | E160: خرسانة 3/8 | F160: 8 | G160: 25 | H160: 200
A161: A-147 | B161: 2020-01-16 | C161: 8411 | D161: ناصر - شركة القلابات | E161: تراب ناعم | F161: 24 | G161: 3.333333333 | H161: 80
A162: A-148 | B162: 2020-01-16 | C162: 8412 | D162: مصنع العسيري | E162: خرسانة 3/8 | F162: 24 | G162: 22.91666667 | H162: 550
A163: A-149 | B163: 2020-01-16 | C163: 8413 | D163: نقدي | E163: تراب ناعم | F163: 16 | G163: 3.125 | H163: 50
A164: A-150 | B164: 2020-01-16 | C164: 8414 | D164: مصنع العسيري | E164: خرسانة 3/4 | F164: 24 | G164: 22.91666667 | H164: 550
A165: A-151 | B165: 2020-01-16 | C165: 8415 | D165: مصنع العسيري | E165: خرسانة 3/8 | F165: 24 | G165: 22.91666667 | H165: 550
A166: A-152 | B166: 2020-01-16 | C166: 8416 | D166: نقدي | E166: خرسانة 3/8 | F166: 16 | G166: 24.375 | H166: 390
A167: A-153 | B167: 2020-01-16 | C167: 8417 | D167: مصنع العسيري | E167: خرسانة 3/8 | F167: 24 | G167: 22.91666667 | H167: 550
A168: A-154 | B168: 2020-01-16 | C168: 8418 | D168: نزير - شركة القلابات | E168: خرسانة 3/4 | F168: 16 | G168: 25 | H168: 400
A169: A-155 | B169: 2020-01-16 | C169: 8419 | D169: نقدي | E169: خرسانة 3/8 | F169: 16 | G169: 24.375 | H169: 390
A170: A-156 | B170: 2020-01-16 | C170: 8420 | D170: ناصر - شركة القلابات | E170: تراب ناعم | F170: 24 | G170: 3.333333333 | H170: 80
A171: A-157 | B171: 2020-01-16 | C171: 8421 | D171: نقدي | E171: خرسانة 3/4 | F171: 8 | G171: 25 | H171: 200
A172: A-158 | B172: 18/1/2020 | C172: 8422 | D172: مصنع العسيري | E172: خرسانة 3/8 | F172: 24 | G172: 22.91666667 | H172: 550
A173: A-159 | B173: 18/1/2020 | C173: 8423 | D173: واسيم - شركة القلابات | E173: تراب ناعم | F173: 16 | G173: 3.125 | H173: 50
A174: A-160 | B174: 18/1/2020 | C174: 8424 | D174: ناصر - شركة القلابات | E174: تراب ناعم | F174: 48 | G174: 3.333333333 | H174: 160
A175: A-161 | B175: 18/1/2020 | C175: 8425 | D175: نقدي | E175: خرسانة 3/4 | F175: 8 | G175: 25 | H175: 200
A176: A-162 | B176: 18/1/2020 | C176: 8426 | D176: نعيم - شركة القلابات | E176: خرسانة 3/4 | F176: 8 | G176: 25 | H176: 200
A177: A-163 | B177: 18/1/2020 | C177: 8427 | D177: نقدي | E177: خرسانة 3/8 | F177: 16 | G177: 24.375 | H177: 390
A178: A-164 | B178: 18/1/2020 | C178: 8428 | D178: نقدي | E178: خرسانة 3/8 | F178: 16 | G178: 24.375 | H178: 390
A179: A-165 | B179: 18/1/2020 | C179: 8429 | D179: مقصود - شركة القلابات | E179: تراب ناعم | F179: 16 | G179: 3.125 | H179: 50
A180: A-166 | B180: 19/1/2020 | C180: 8430 | D180: نقدي | E180: خرسانة 3/4 | F180: 16 | G180: 24.375 | H180: 390
A181: A-167 | B181: 19/1/2020 | C181: 8431 | D181: نقدي | E181: خرسانة 3/4 | F181: 16 | G181: 24.375 | H181: 390
A182: A-168 | B182: 19/1/2020 | C182: 8432 | D182: نقدي | E182: خرسانة 3/4 | F182: 16 | G182: 24.375 | H182: 390
A183: A-169 | B183: 19/1/2020 | C183: 8433 | D183: نقدي | E183: خرسانة 3/4 | F183: 16 | G183: 24.375 | H183: 390
A184: A-170 | B184: 19/1/2020 | C184: 8434 | D184: نقدي | E184: خرسانة 3/4 | F184: 16 | G184: 24.375 | H184: 390
A185: A-171 | B185: 19/1/2020 | C185: 8435 | D185: نقدي | E185: خرسانة 3/4 | F185: 16 | G185: 24.375 | H185: 390
A186: A-172 | B186: 19/1/2020 | C186: 8436 | D186: نقدي | E186: خرسانة 3/4 | F186: 16 | G186: 25 | H186: 400
A187: A-173 | B187: 19/1/2020 | C187: 8437 | D187: ناصر - شركة القلابات | E187: خرسانة 3/4 | F187: 24 | G187: 25 | H187: 600
A188: A-174 | B188: 19/1/2020 | C188: 8438 | D188: مصنع العسيري | E188: خرسانة 3/8 | F188: 24 | G188: 22.91666667 | H188: 550
A189: A-175 | B189: 19/1/2020 | C189: 8439 | D189: مصنع العسيري | E189: خرسانة 3/8 | F189: 24 | G189: 22.91666667 | H189: 550
A190: A-176 | B190: 19/1/2020 | C190: 8440 | D190: نقدي | E190: خرسانة 3/4 | F190: 16 | G190: 24.375 | H190: 390
A191: A-177 | B191: 19/1/2020 | C191: 8441 | D191: مصنع العسيري | E191: خرسانة 3/8 | F191: 24 | G191: 22.91666667 | H191: 550
A192: A-178 | B192: 19/1/2020 | C192: 8442 | D192: نقدي | E192: خرسانة 3/4 | F192: 16 | G192: 25 | H192: 400
A193: A-179 | B193: 19/1/2020 | C193: 8443 | D193: مصنع العسيري | E193: خرسانة 3/8 | F193: 24 | G193: 22.91666667 | H193: 550
A194: A-180 | B194: 20/1/2020 | C194: 8444 | D194: نعيم - شركة القلابات | E194: خرسانة 3/8 | F194: 16 | G194: 25 | H194: 400
A195: A-181 | B195: 20/1/2020 | C195: 8445 | D195: نقدي | E195: خرسانة 3/4 | F195: 8 | G195: =IFERROR(H195/F195,"-") -> 25 | H195: 200
A196: A-182 | B196: 20/1/2020 | C196: 8446 | D196: نقدي | E196: خرسانة 3/4 | F196: 16 | G196: 24.375 | H196: 390
A197: A-183 | B197: 21/1/2020 | C197: 8447 | D197: نقدي | E197: خرسانة 3/4 | F197: 16 | G197: 24.375 | H197: 390
A198: A-184 | B198: 21/1/2020 | C198: 8448 | D198: نقدي | E198: خرسانة 3/8 | F198: 16 | G198: 24.375 | H198: 390
A199: A-185 | B199: 21/1/2020 | C199: 8449 | D199: نقدي | E199: خرسانة 3/4 | F199: 8 | G199: 25 | H199: 200
A200: A-186 | B200: 21/1/2020 | C200: 8450 | D200: نقدي | E200: خرسانة 3/4 | F200: 16 | G200: 24.375 | H200: 390
... 113 more rows

Sheet فبراير
A1: تقرير مبيعات كسارة فبراير 2020
A2: S.N | B2: DATE | C2: NUMBER | D2: العميل | E2: نوع المواد | F2: QUANTITY | G2: PRICE | H2: AMOUNT | J2: بيان بقيمة الخرسانة المحملة علي شركة القلابات عن شهر ديسمبر 2019م | T2: اجمالى المبييعات | W2: =H227 -> 41430
A3: A-1 | B3: 2020-01-02 | C3: 8541 | D3: مصنع العسيري | E3: خرسانة 3/4 | F3: 24 | G3: =IFERROR(H3/F3,"-") -> 22.91666667 | H3: 550 | J3: الإجمالي | K3: واسيم - شركة القلابات | L3: حسين - شركة القلابات | M3: نعيم - شركة القلابات | N3: اكرام - شركة القلابات | O3: ناصر - شركة القلابات | P3: العمري - شركة القلابات | Q3: مقصود - شركة القلابات | R3: نزير - شركة القلابات | T3: مسلسل | U3: التاريخ | V3: رقم المستند | W3: ايداع | X3: الرصيد المتبقى | Y3: ملاحظات
A4: A-2 | B4: 2020-01-02 | C4: 8542 | D4: مصنع العسيري | E4: خرسانة 3/8 | F4: 24 | G4: 22.91666667 | H4: 550 | J4: =SUM(K4:R4) -> 11980 | K4: =SUMIF(D3:D225,K3:R3,H3:H225) -> 490 | L4: =SUMIF(D3:D225,K3:R3,H3:H225) -> 0 | M4: =SUMIF(D3:D225,K3:R3,H3:H225) -> 3080 | N4: =SUMIF(D3:D225,K3:R3,H3:H225) -> 2640 | O4: =SUMIF(D3:D225,K3:R3,H3:H225) -> 2200 | P4: =SUMIF(D3:D225,K3:R3,H3:H225) -> 0 | Q4: =SUMIF(D3:D225,K3:R3,H3:H225) -> 0 | R4: =SUMIF(D3:D225,K3:R3,H3:H225) -> 3570 | U4: 2020-06-02 | W4: 4425 | X4: =W2-W14 -> 26850 | Y4: ايداع في حساب الشركة
A5: A-3 | B5: 2020-01-02 | C5: 8543 | D5: مصنع العسيري | E5: خرسانة 3/4 | F5: 24 | G5: 22.91666667 | H5: 550 | U5: 13/02/2020 | W5: 3520 | Y5: ايداع في حساب الشركة
A6: A-4 | B6: 2020-01-02 | C6: 8544 | D6: مصنع العسيري | E6: خرسانة 3/8 | F6: 24 | G6: 22.91666667 | H6: 550 | U6: 16/02/2020 | W6: 2000 | Y6: ايداع في حساب الشركة
A7: A-5 | B7: 2020-01-02 | C7: 8545 | D7: نقدي | E7: خرسانة 3/4 | F7: 16 | G7: 27.5 | H7: 440 | U7: 16/02/2020 | W7: 2005 | Y7: ايداع في حساب الشركة
A8: A-6 | B8: 2020-01-02 | C8: 8546 | D8: اكرام - شركة القلابات | E8: خرسانة 3/4 | F8: 16 | G8: 27.5 | H8: 440 | U8: 23/02/2020 | W8: 2630 | Y8: ايداع في حساب الشركة
A9: A-7 | B9: 2020-01-02 | C9: 8547 | D9: مصنع العسيري | E9: خرسانة 3/8 | F9: 24 | G9: 22.91666667 | H9: 550 | Y9: 0
A10: A-8 | B10: 2020-01-02 | C10: 8548 | D10: نعيم - شركة القلابات | E10: خرسانة 3/4 | F10: 16 | G10: 27.5 | H10: 440
A11: A-10 | B11: 2020-02-02 | C11: 8550 | D11: مصنع العسيري | E11: خرسانة 3/8 | F11: 24 | G11: 22.91666667 | H11: 550
A12: A-11 | B12: 2020-02-02 | C12: 8551 | D12: نقدي | E12: خرسانة 3/8 | F12: 16 | G12: 27.5 | H12: 440
A13: A-12 | B13: 2020-02-02 | C13: 8552 | D13: مصنع العسيري | E13: خرسانة 3/8 | F13: 24 | G13: 22.91666667 | H13: 550
A14: A-13 | B14: 2020-02-02 | C14: 8553 | D14: نقدي | E14: خرسانة 3/8 | F14: 24 | G14: 27.08333333 | H14: 650 | T14: اجمالى الايداعات | W14: =SUM(W4:W13) -> 14580
A15: A-14 | B15: 2020-02-02 | C15: 8554 | D15: نقدي | E15: خرسانة 3/8 | F15: 16 | G15: 27.5 | H15: 440
A16: A-15 | B16: 2020-02-02 | C16: 8555 | D16: مصنع العسيري | E16: خرسانة 3/4 | F16: 24 | G16: 22.91666667 | H16: 550
A17: A-16 | B17: 2020-02-02 | C17: 8556 | D17: نقدي | E17: خرسانة 3/4 | F17: 16 | G17: 27.5 | H17: 440
A18: A-17 | B18: 2020-02-02 | C18: 8557 | D18: مصنع العسيري | E18: خرسانة 3/8 | F18: 24 | G18: 22.91666667 | H18: 550
A19: A-18 | B19: 2020-02-03 | C19: 8558 | D19: مصنع العسيري | E19: خرسانة 3/4 | F19: 24 | G19: 22.91666667 | H19: 550
A20: A-19 | B20: 2020-02-03 | C20: 8559 | D20: مصنع العسيري | E20: خرسانة 3/4 | F20: 24 | G20: 22.91666667 | H20: 550
A21: A-20 | B21: 2020-02-03 | C21: 8560 | D21: مصنع العسيري | E21: خرسانة 3/4 | F21: 24 | G21: 22.91666667 | H21: 550
A22: A-21 | B22: 2020-02-03 | C22: 8561 | D22: نقدي | E22: خرسانة 3/4 | F22: 14 | G22: 27.85714286 | H22: 390
A23: A-22 | B23: 2020-02-03 | C23: 8562 | D23: نقدي | E23: خرسانة 3/8 | F23: 16 | G23: 27.5 | H23: 440
A24: A-23 | B24: 2020-02-03 | C24: 8563 | D24: اكرام - شركة القلابات | E24: خرسانة 3/4 | F24: 16 | G24: 27.5 | H24: 440
A25: A-24 | B25: 2020-02-03 | C25: 8564 | D25: نقدي | E25: خرسانة 3/4 | F25: 24 | G25: 16.25 | H25: 390
A26: A-25 | B26: 2020-02-03 | C26: 8565 | D26: نقدي | E26: خرسانة 3/4 | F26: 8 | G26: 30 | H26: 240
A27: A-26 | B27: 2020-02-03 | C27: 8566 | D27: مصنع العسيري | E27: خرسانة 3/8 | F27: 24 | G27: 22.91666667 | H27: 550
A28: A-27 | B28: 2020-02-04 | C28: 8567 | D28: نزير - شركة القلابات | E28: خرسانة 3/4 | F28: 16 | G28: 27.5 | H28: 440
A29: A-28 | B29: 2020-02-04 | C29: 8568 | D29: مصنع العسيري | E29: خرسانة 3/4 | F29: 24 | G29: 22.91666667 | H29: 550
A30: A-29 | B30: 2020-02-04 | C30: 8569 | D30: نقدي | E30: خرسانة 3/4 | F30: 16 | G30: 27.5 | H30: 440
A31: A-30 | B31: 2020-02-04 | C31: 8570 | D31: نقدي | E31: خرسانة 3/8 | F31: 16 | G31: 27.5 | H31: 440
A32: A-31 | B32: 2020-02-04 | C32: 8571 | D32: نقدي | E32: خرسانة 3/4 | F32: 16 | G32: 27.5 | H32: 440
A33: A-32 | B33: 2020-02-04 | C33: 8572 | D33: مصنع العسيري | E33: خرسانة 3/8 | F33: 24 | G33: 22.91666667 | H33: 550
A34: A-33 | B34: 2020-02-04 | C34: 8573 | D34: مصنع العسيري | E34: خرسانة 3/4 | F34: 24 | G34: 22.91666667 | H34: 550
A35: A-34 | B35: 2020-02-04 | C35: 8574 | D35: مصنع العسيري | E35: خرسانة 3/8 | F35: 24 | G35: 22.91666667 | H35: 550
A36: A-35 | B36: 2020-02-04 | C36: 8575 | D36: نقدي | E36: خرسانة 3/4 | F36: 16 | G36: 27.5 | H36: 440
A37: A-36 | B37: 2020-02-04 | C37: 8576 | D37: مصنع العسيري | E37: خرسانة 3/8 | F37: 24 | G37: 22.91666667 | H37: 550
A38: A-37 | B38: 2020-02-04 | C38: 8577 | D38: نقدي | E38: خرسانة 3/4 | F38: 16 | G38: 27.5 | H38: 440
A39: A-38 | B39: 2020-02-05 | C39: 8578 | D39: مصنع العسيري | E39: خرسانة 3/4 | F39: 24 | G39: 22.91666667 | H39: 550
A40: A-39 | B40: 2020-02-05 | C40: 8579 | D40: نقدي | E40: خرسانة 3/4 | F40: 24 | G40: 22.91666667 | H40: 550
A41: A-40 | B41: 2020-02-05 | C41: 8580 | D41: نقدي | E41: خرسانة 3/4 | F41: 16 | G41: 27.5 | H41: 440
A42: A-41 | B42: 2020-02-05 | C42: 8581 | D42: نقدي | E42: خرسانة 3/4 | F42: 16 | G42: 27.5 | H42: 440
A43: A-42 | B43: 2020-02-05 | C43: 8582 | D43: نقدي | E43: خرسانة 3/8 | F43: 16 | G43: 27.5 | H43: 440
A44: A-43 | B44: 2020-02-05 | C44: 8583 | D44: نقدي | E44: خرسانة 3/4 | F44: 24 | G44: 22.91666667 | H44: 550
A45: A-44 | B45: 2020-02-06 | C45: 8584 | D45: نقدي | E45: خرسانة 3/4 | F45: 24 | G45: 22.91666667 | H45: 550
A46: A-45 | B46: 2020-02-06 | C46: 8585 | D46: مصنع العسيري | E46: خرسانة 3/4 | F46: 24 | G46: 22.91666667 | H46: 550
A47: A-46 | B47: 2020-02-06 | C47: 8586 | D47: مصنع العسيري | E47: خرسانة 3/4 | F47: 24 | G47: 22.91666667 | H47: 550
A48: A-47 | B48: 2020-02-06 | C48: 8587 | D48: مصنع العسيري | E48: خرسانة 3/4 | F48: 24 | G48: 22.91666667 | H48: 550
A49: A-48 | B49: 2020-02-06 | C49: 8588 | D49: نقدي | E49: خرسانة 3/4 | F49: 8 | G49: 30 | H49: 240
A50: A-49 | B50: 2020-02-06 | C50: 8589 | D50: نقدي | E50: خرسانة 3/4 | F50: 16 | G50: 27.5 | H50: 440
A51: A-50 | B51: 2020-02-06 | C51: 8590 | D51: مصنع العسيري | E51: خرسانة 3/4 | F51: 24 | G51: 22.91666667 | H51: 550
A52: A-51 | B52: 2020-02-06 | C52: 8591 | D52: مصنع العسيري | E52: خرسانة 3/8 | F52: 24 | G52: 22.91666667 | H52: 550
A53: A-52 | B53: 2020-02-06 | C53: 8592 | D53: مصنع العسيري | E53: خرسانة 3/8 | F53: 24 | G53: 22.91666667 | H53: 550
A54: A-53 | B54: 2020-02-06 | C54: 8593 | D54: نقدي | E54: خرسانة 3/4 | F54: 8 | G54: 30 | H54: 240
A55: A-54 | B55: 2020-02-06 | C55: 8594 | D55: نقدي | E55: خرسانة 3/8 | F55: 16 | G55: 27.5 | H55: 440
A56: A-55 | B56: 2020-02-06 | C56: 8595 | D56: نقدي | E56: خرسانة 3/4 | F56: 16 | G56: 27.5 | H56: 440
A57: A-56 | B57: 2020-02-06 | C57: 8596 | D57: نقدي | E57: خرسانة 3/4 | F57: 16 | G57: 27.5 | H57: 440
A58: A-57 | B58: 2020-02-08 | C58: 8597 | D58: نقدي | E58: خرسانة 3/4 | F58: 8 | G58: 30 | H58: 240
A59: A-58 | B59: 2020-02-08 | C59: 8598 | D59: مصنع العسيري | E59: خرسانة 3/4 | F59: 24 | G59: 22.91666667 | H59: 550
A60: A-59 | B60: 2020-02-08 | C60: 8599 | D60: مصنع العسيري | E60: خرسانة 3/4 | F60: 24 | G60: 22.91666667 | H60: 550
A61: A-60 | B61: 2020-02-08 | C61: 8600 | D61: نقدي | E61: خرسانة 3/4 | F61: 16 | G61: 27.5 | H61: 440
A62: A-61 | B62: 2020-02-08 | C62: 8601 | D62: نقدي | E62: خرسانة 3/4 | F62: 8 | G62: 30 | H62: 240
A63: A-62 | B63: 2020-02-08 | C63: 8602 | D63: مصنع العسيري | E63: خرسانة 3/4 | F63: 24 | G63: 22.91666667 | H63: 550
A64: A-63 | B64: 2020-02-08 | C64: 8603 | D64: نعيم - شركة القلابات | E64: خرسانة 3/4 | F64: 16 | G64: 27.5 | H64: 440
A65: A-64 | B65: 2020-02-08 | C65: 8604 | D65: نقدي | E65: خرسانة 3/4 | F65: 24 | G65: 26.66666667 | H65: 640
A66: A-65 | B66: 2020-02-08 | C66: 8605 | D66: نقدي | E66: خرسانة 3/4 | F66: 16 | G66: =IFERROR(H66/F66,"-") -> 27.5 | H66: 440
A67: A-66 | B67: 2020-02-08 | C67: 8606 | D67: مصنع العسيري | E67: خرسانة 3/4 | F67: 24 | G67: 22.91666667 | H67: 550
A68: A-67 | B68: 2020-02-08 | C68: 8607 | D68: نقدي | E68: خرسانة 3/8 | F68: 16 | G68: 27.5 | H68: 440
A69: A-68 | B69: 2020-02-09 | C69: 8608 | D69: مصنع العسيري | E69: خرسانة 3/4 | F69: 24 | G69: 22.91666667 | H69: 550
A70: A-69 | B70: 2020-02-09 | C70: 8609 | D70: مصنع العسيري | E70: خرسانة 3/4 | F70: 24 | G70: 22.91666667 | H70: 550
A71: A-70 | B71: 2020-02-09 | C71: 8610 | D71: نقدي | E71: خرسانة 3/8 | F71: 16 | G71: 27.5 | H71: 440
A72: A-71 | B72: 2020-02-09 | C72: 8611 | D72: مصنع العسيري | E72: خرسانة 3/8 | F72: 24 | G72: 22.91666667 | H72: 550
A73: A-72 | B73: 2020-02-09 | C73: 8612 | D73: مصنع العسيري | E73: خرسانة 3/4 | F73: 24 | G73: 22.91666667 | H73: 550
A74: A-73 | B74: 2020-02-09 | C74: 8613 | D74: مصنع العسيري | E74: خرسانة 3/8 | F74: 24 | G74: 22.91666667 | H74: 550
A75: A-74 | B75: 2020-02-09 | C75: 8614 | D75: مصنع العسيري | E75: خرسانة 3/4 | F75: 24 | G75: 22.91666667 | H75: 550
A76: A-75 | B76: 2020-02-09 | C76: 8615 | D76: نقدي | E76: خرسانة 3/4 | F76: 16 | G76: 27.5 | H76: 440
A77: A-76 | B77: 2020-02-10 | C77: 8616 | D77: نقدي | E77: خرسانة 3/8 | F77: 8 | G77: 30 | H77: 240
A78: A-77 | B78: 2020-02-10 | C78: 8617 | D78: نقدي | E78: خرسانة 3/4 | F78: 8 | G78: 30 | H78: 240
A79: A-78 | B79: 2020-02-11 | C79: 8618 | D79: مصنع العسيري | E79: خرسانة 3/4 | F79: 24 | G79: 22.91666667 | H79: 550
A80: A-79 | B80: 2020-02-11 | C80: 8619 | D80: نقدي | E80: خرسانة 3/8 | F80: 16 | G80: 27.5 | H80: 440
A81: A-80 | B81: 2020-02-11 | C81: 8620 | D81: نقدي | E81: خرسانة 3/8 | F81: 16 | G81: 27.5 | H81: 440
A82: A-81 | B82: 2020-02-11 | C82: 8621 | D82: مصنع العسيري | E82: خرسانة 3/4 | F82: 24 | G82: 22.91666667 | H82: 550
A83: A-82 | B83: 2020-02-11 | C83: 8622 | D83: مصنع العسيري | E83: خرسانة 3/4 | F83: 24 | G83: 22.91666667 | H83: 550
A84: A-83 | B84: 2020-02-11 | C84: 8623 | D84: مصنع العسيري | E84: خرسانة 3/8 | F84: 24 | G84: 22.91666667 | H84: 550
A85: A-84 | B85: 2020-02-11 | C85: 8624 | D85: نقدي | E85: خرسانة 3/4 | F85: 16 | G85: 27.5 | H85: 440
A86: A-85 | B86: 2020-02-11 | C86: 8625 | D86: مصنع العسيري | E86: خرسانة 3/4 | F86: 24 | G86: 22.91666667 | H86: 550
A87: A-86 | B87: 2020-02-11 | C87: 8626 | D87: نقدي | E87: خرسانة 3/4 | F87: 16 | G87: 27.5 | H87: 440
A88: A-87 | B88: 2020-02-12 | C88: 8627 | D88: نقدي | E88: خرسانة 3/4 | F88: 16 | G88: 27.5 | H88: 440
A89: A-88 | B89: 2020-02-12 | C89: 8628 | D89: راشد الاسمري - ايجار معدات | E89: خرسانة 3/4 | F89: 16 | G89: 27.5 | H89: 440
A90: A-89 | B90: 2020-02-12 | C90: 8629 | D90: نقدي | E90: خرسانة 3/4 | F90: 16 | G90: 27.5 | H90: 440
A91: A-90 | B91: 2020-02-12 | C91: 8630 | D91: نقدي | E91: خرسانة 3/4 | F91: 16 | G91: 27.5 | H91: 440
A92: A-91 | B92: 2020-02-12 | C92: 8631 | D92: مصنع العسيري | E92: خرسانة 3/4 | F92: 24 | G92: 22.91666667 | H92: 550
A93: A-92 | B93: 2020-02-12 | C93: 8632 | D93: مصنع العسيري | E93: خرسانة 3/4 | F93: 24 | G93: 22.91666667 | H93: 550
A94: A-93 | B94: 2020-02-12 | C94: 8633 | D94: نقدي | E94: خرسانة 3/8 | F94: 16 | G94: 27.5 | H94: 440
A95: A-94 | B95: 2020-02-12 | C95: 8634 | D95: مصنع العسيري | E95: خرسانة 3/4 | F95: 24 | G95: 22.91666667 | H95: 550
A96: A-95 | B96: 2020-02-13 | C96: 8635 | D96: مصنع العسيري | E96: خرسانة 3/8 | F96: 24 | G96: 22.91666667 | H96: 550
A97: A-96 | B97: 2020-02-13 | C97: 8636 | D97: نقدي | E97: خرسانة 3/4 | F97: 16 | G97: 27.5 | H97: 440
A98: A-97 | B98: 2020-02-13 | C98: 8637 | D98: نقدي | E98: خرسانة 3/4 | F98: 16 | G98: 27.5 | H98: 440
A99: A-98 | B99: 2020-02-13 | C99: 8638 | D99: نقدي | E99: خرسانة 3/4 | F99: 16 | G99: 27.5 | H99: 440
A100: A-99 | B100: 2020-02-13 | C100: 8639 | D100: نقدي | E100: خرسانة 3/4 | F100: 16 | G100: 27.5 | H100: 440
A101: A-100 | B101: 2020-02-13 | C101: 8640 | D101: مصنع العسيري | E101: خرسانة 3/4 | F101: 24 | G101: 22.91666667 | H101: 550
A102: A-101 | B102: 2020-02-13 | C102: 8641 | D102: مصنع العسيري | E102: خرسانة 3/4 | F102: 24 | G102: 22.91666667 | H102: 550
A103: A-102 | B103: 2020-02-13 | C103: 8642 | D103: ظافر النماص | E103: خرسانة 3/4 | F103: 16 | G103: 27.5 | H103: 440
A104: A-103 | B104: 2020-02-13 | C104: 8643 | D104: نقدي | E104: خرسانة 3/4 | F104: 16 | G104: 27.5 | H104: 440
A105: A-104 | B105: 2020-02-13 | C105: 8644 | D105: مصنع العسيري | E105: خرسانة 3/8 | F105: 24 | G105: 22.91666667 | H105: 550
A106: A-105 | B106: 2020-02-13 | C106: 8645 | D106: مصنع العسيري | E106: خرسانة 3/8 | F106: 24 | G106: 22.91666667 | H106: 550
A107: A-106 | B107: 2020-02-13 | C107: 8646 | D107: مصنع العسيري | E107: خرسانة 3/8 | F107: 24 | G107: 22.91666667 | H107: 550
A108: A-107 | B108: 2020-02-15 | C108: 8647 | D108: نقدي | E108: خرسانة 3/4 | F108: 16 | G108: 27.5 | H108: 440
A109: A-108 | B109: 2020-02-15 | C109: 8648 | D109: نقدي | E109: خرسانة 3/4 | F109: 16 | G109: 27.5 | H109: 440
A110: A-109 | B110: 2020-02-15 | C110: 8649 | D110: نعيم - شركة القلابات | E110: خرسانة 3/4 | F110: 16 | G110: 27.5 | H110: 440
A111: A-110 | B111: 2020-02-15 | C111: 8650 | D111: نقدي | E111: خرسانة 3/4 | F111: 8 | G111: 30 | H111: 240
A112: A-99 | B112: 2020-02-15 | C112: 8651 | D112: نقدي | E112: خرسانة 3/8 | F112: 16 | G112: 27.5 | H112: 440
A113: A-100 | B113: 2020-02-15 | C113: 8652 | D113: نقدي | E113: خرسانة 3/8 | F113: 16 | G113: 27.5 | H113: 440
A114: A-101 | B114: 2020-02-15 | C114: 8653 | D114: نقدي | E114: خرسانة 3/8 | F114: 16 | G114: 27.5 | H114: 440
A115: A-102 | B115: 2020-02-15 | C115: 8654 | D115: واسيم - شركة القلابات | E115: خرسانة 3/4 | F115: 16 | G115: 27.5 | H115: 440
A116: A-103 | B116: 2020-02-15 | C116: 8655 | D116: راشد الاسمري - ايجار معدات | E116: خرسانة 3/4 | F116: 16 | G116: 27.5 | H116: 440
A117: A-104 | B117: 16/2/2020 | C117: 8656 | D117: مصنع العسيري | E117: خرسانة 3/4 | F117: 24 | G117: 22.91666667 | H117: 550
A118: A-105 | B118: 16/2/2020 | C118: 8657 | D118: مصنع العسيري | E118: خرسانة 3/4 | F118: 24 | G118: 22.91666667 | H118: 550
A119: A-106 | B119: 16/2/2020 | C119: 8658 | D119: مصنع العسيري | E119: خرسانة 3/4 | F119: 24 | G119: 22.91666667 | H119: 550
A120: A-107 | B120: 16/2/2020 | C120: 8659 | D120: مصنع العسيري | E120: خرسانة 3/4 | F120: 24 | G120: 22.91666667 | H120: 550
A121: A-108 | B121: 16/2/2020 | C121: 8660 | D121: مصنع العسيري | E121: خرسانة 3/4 | F121: 24 | G121: 22.91666667 | H121: 550
A122: A-109 | B122: 16/2/2020 | C122: 8661 | D122: نقدي | E122: خرسانة 3/4 | F122: 16 | G122: 27.5 | H122: 440
A123: A-110 | B123: 16/2/2020 | C123: 8662 | D123: نقدي | E123: خرسانة 3/4 | F123: 16 | G123: 27.5 | H123: 440
A124: A-111 | B124: 16/2/2020 | C124: 8663 | D124: نقدي | E124: خرسانة 3/4 | F124: 16 | G124: 27.5 | H124: 440
A125: A-112 | B125: 16/2/2020 | C125: 8664 | D125: مصنع العسيري | E125: خرسانة 3/8 | F125: 24 | G125: 22.91666667 | H125: 550
A126: A-113 | B126: 17/2/2020 | C126: 8665 | D126: مصنع العسيري | E126: خرسانة 3/4 | F126: 24 | G126: 22.91666667 | H126: 550
A127: A-114 | B127: 17/2/2020 | C127: 8666 | D127: نزير - شركة القلابات | E127: خرسانة 3/4 | F127: 16 | G127: 27.5 | H127: 440
A128: A-115 | B128: 17/2/2020 | C128: 8667 | D128: نعيم - شركة القلابات | E128: خرسانة 3/4 | F128: 16 | G128: 27.5 | H128: 440
A129: A-116 | B129: 18/2/2020 | C129: 8668 | D129: مصنع العسيري | E129: خرسانة 3/4 | F129: 24 | G129: 22.91666667 | H129: 550
A130: A-117 | B130: 18/2/2020 | C130: 8669 | D130: مصنع العسيري | E130: خرسانة 3/4 | F130: 24 | G130: =IFERROR(H130/F130,"-") -> 22.91666667 | H130: 550
A131: A-118 | B131: 18/2/2020 | C131: 8670 | D131: مصنع العسيري | E131: خرسانة 3/4 | F131: 24 | G131: 22.91666667 | H131: 550
A132: A-119 | B132: 18/2/2020 | C132: 8671 | D132: نقدي | E132: خرسانة 3/4 | F132: 16 | G132: 27.5 | H132: 440
A133: A-120 | B133: 18/2/2020 | C133: 8672 | D133: نقدي | E133: خرسانة 3/8 | F133: 16 | G133: 27.5 | H133: 440
A134: A-121 | B134: 18/2/2020 | C134: 8673 | D134: نقدي | E134: خرسانة 3/4 | F134: 16 | G134: 27.5 | H134: 440
A135: A-122 | B135: 18/2/2020 | C135: 8674 | D135: نقدي | E135: خرسانة 3/8 | F135: 16 | G135: 27.5 | H135: 440
A136: A-123 | B136: 18/2/2020 | C136: 8675 | D136: ناصر - شركة القلابات | E136: خرسانة 3/4 | F136: 16 | G136: 27.5 | H136: 440
A137: A-124 | B137: 19/2/2020 | C137: 8676 | D137: ناصر - شركة القلابات | E137: خرسانة 3/4 | F137: 16 | G137: 27.5 | H137: 440
A138: A-125 | B138: 19/2/2020 | C138: 8677 | D138: مصنع العسيري | E138: خرسانة 3/8 | F138: 24 | G138: 22.91666667 | H138: 550
A139: A-126 | B139: 19/2/2020 | C139: 8678 | D139: مصنع العسيري | E139: خرسانة 3/8 | F139: 24 | G139: 22.91666667 | H139: 550
A140: A-127 | B140: 19/2/2020 | C140: 8679 | D140: نقدي | E140: خرسانة 3/8 | F140: 24 | G140: 26.66666667 | H140: 640
A141: A-128 | B141: 19/2/2020 | C141: 8680 | D141: اكرام - شركة القلابات | E141: خرسانة 3/4 | F141: 16 | G141: 27.5 | H141: 440
A142: A-129 | B142: 19/2/2020 | C142: 8681 | D142: مصنع العسيري | E142: خرسانة 3/4 | F142: 24 | G142: 22.91666667 | H142: 550
A143: A-130 | B143: 19/2/2020 | C143: 8682 | D143: نقدي | E143: خرسانة 3/4 | F143: 16 | G143: 27.5 | H143: 440
A144: A-131 | B144: 19/2/2020 | C144: 8683 | D144: نعيم - شركة القلابات | E144: خرسانة 3/8 | F144: 16 | G144: 27.5 | H144: 440
A145: A-132 | B145: 19/2/2020 | C145: 8684 | D145: مصنع العسيري | E145: خرسانة 3/8 | F145: 24 | G145: 22.91666667 | H145: 550
A146: A-133 | B146: 19/2/2020 | C146: 8685 | D146: واسيم - شركة القلابات | E146: تراب ناعم | F146: 16 | G146: 3.125 | H146: 50
A147: A-134 | B147: 19/2/2020 | C147: 8686 | D147: نقدي | E147: خرسانة 3/4 | F147: 16 | G147: 27.5 | H147: 440
A148: A-135 | B148: 19/2/2020 | C148: 8687 | D148: مصنع العسيري | E148: خرسانة 3/8 | F148: 24 | G148: 22.91666667 | H148: 550
A149: A-136 | B149: 20/2/2020 | C149: 8688 | D149: مصنع العسيري | E149: خرسانة 3/4 | F149: 24 | G149: 22.91666667 | H149: 550
A150: A-137 | B150: 20/2/2020 | C150: 8689 | D150: مصنع العسيري | E150: خرسانة 3/8 | F150: 24 | G150: 22.91666667 | H150: 550
A151: A-138 | B151: 20/2/2020 | C151: 8690 | D151: مصنع العسيري | E151: خرسانة 3/8 | F151: 24 | G151: 22.91666667 | H151: 550
A152: A-139 | B152: 20/2/2020 | C152: 8691 | D152: مصنع العسيري | E152: خرسانة 3/4 | F152: 24 | G152: 22.91666667 | H152: 550
A153: A-140 | B153: 20/2/2020 | C153: 8692 | D153: مصنع العسيري | E153: خرسانة 3/4 | F153: 24 | G153: 22.91666667 | H153: 550
A154: A-141 | B154: 20/2/2020 | C154: 8693 | D154: راشد الاسمري - ايجار معدات | E154: خرسانة 3/4 | F154: 16 | G154: 27.5 | H154: 440
A155: A-143 | B155: 20/2/2020 | C155: 8695 | D155: نزير - شركة القلابات | E155: خرسانة 3/4 | F155: 16 | G155: 27.5 | H155: 440
A156: A-144 | B156: 20/2/2020 | C156: 8696 | D156: نقدي | E156: خرسانة 3/4 | F156: 16 | G156: 27.5 | H156: 440
A157: A-145 | B157: 21/2/2020 | C157: 8697 | D157: نقدي | E157: خرسانة 3/8 | F157: 16 | G157: 27.5 | H157: 440
A158: A-146 | B158: 22/2/2020 | C158: 8698 | D158: نعيم - شركة القلابات | E158: خرسانة 3/4 | F158: 16 | G158: 27.5 | H158: 440
A159: A-147 | B159: 22/2/2020 | C159: 8699 | D159: نقدي | E159: خرسانة 3/4 | F159: 8 | G159: 30 | H159: 240
A160: A-148 | B160: 22/2/2020 | C160: 8700 | D160: نقدي | E160: تراب ناعم | F160: 32 | G160: 3.125 | H160: 100
A161: A-149 | B161: 22/2/2020 | C161: 8701 | D161: نقدي | E161: خرسانة 3/4 | F161: 16 | G161: 27.5 | H161: 440
A162: A-150 | B162: 22/2/2020 | C162: 8702 | D162: نقدي | E162: خرسانة 3/4 | F162: 8 | G162: 30 | H162: 240
A163: A-151 | B163: 22/2/2020 | C163: 8703 | D163: نعيم - شركة القلابات | E163: خرسانة 3/4 | F163: 16 | G163: 27.5 | H163: 440
A164: A-152 | B164: 22/2/2020 | C164: 8704 | D164: نقدي | E164: خرسانة 3/4 | F164: 24 | G164: 26.66666667 | H164: 640
A165: A-153 | B165: 22/2/2020 | C165: 8705 | D165: نزير - شركة القلابات | E165: تراب ناعم | F165: 16 | G165: 3.125 | H165: 50
A166: A-154 | B166: 22/2/2020 | C166: 8706 | D166: مصنع العسيري | E166: خرسانة 3/4 | F166: 24 | G166: 22.91666667 | H166: 550
A167: A-155 | B167: 22/2/2020 | C167: 8707 | D167: مصنع العسيري | E167: خرسانة 3/4 | F167: 24 | G167: 22.91666667 | H167: 550
A168: A-156 | B168: 22/2/2020 | C168: 8708 | D168: مصنع العسيري | E168: خرسانة 3/8 | F168: 24 | G168: 22.91666667 | H168: 550
A169: A-157 | B169: 22/2/2020 | C169: 8709 | D169: مصنع العسيري | E169: خرسانة 3/4 | F169: 24 | G169: 22.91666667 | H169: 550
A170: A-158 | B170: 22/2/2020 | C170: 8710 | D170: مصنع العسيري | E170: خرسانة 3/8 | F170: 24 | G170: 22.91666667 | H170: 550
A171: A-159 | B171: 22/2/2020 | C171: 8711 | D171: نقدي | E171: خرسانة 3/4 | F171: 8 | G171: 30 | H171: 240
A172: A-160 | B172: 23/2/2020 | C172: 8712 | D172: نزير - شركة القلابات | E172: خرسانة 3/4 | F172: 16 | G172: 27.5 | H172: 440
A173: A-161 | B173: 23/2/2020 | C173: 8713 | D173: مصنع العسيري | E173: خرسانة 3/4 | F173: 24 | G173: 22.91666667 | H173: 550
A174: A-162 | B174: 23/2/2020 | C174: 8714 | D174: مصنع العسيري | E174: خرسانة 3/8 | F174: 24 | G174: 22.91666667 | H174: 550
A175: A-163 | B175: 23/2/2020 | C175: 8715 | D175: مصنع العسيري | E175: خرسانة 3/8 | F175: 24 | G175: 22.91666667 | H175: 550
A176: A-164 | B176: 23/2/2020 | C176: 8716 | D176: مصنع العسيري | E176: خرسانة 3/4 | F176: 24 | G176: 22.91666667 | H176: 550
A177: A-165 | B177: 23/2/2020 | C177: 8717 | D177: مصنع العسيري | E177: خرسانة 3/4 | F177: 24 | G177: 22.91666667 | H177: 550
A178: A-166 | B178: 23/2/2020 | C178: 8718 | D178: نزير - شركة القلابات | E178: خرسانة 3/4 | F178: 16 | G178: 27.5 | H178: 440
A179: A-167 | B179: 23/2/2020 | C179: 8719 | D179: نقدي | E179: خرسانة 3/4 | F179: 16 | G179: 28.75 | H179: 460
A180: A-168 | B180: 23/2/2020 | C180: 8720 | D180: نقدي | E180: خرسانة 3/4 | F180: 16 | G180: 28.75 | H180: 460
A181: A-169 | B181: 23/2/2020 | C181: 8721 | D181: ناصر - شركة القلابات | E181: خرسانة 3/4 | F181: 16 | G181: 27.5 | H181: 440
A182: A-170 | B182: 24/2/2020 | C182: 8722 | D182: مصنع العسيري | E182: خرسانة 3/4 | F182: 24 | G182: 22.91666667 | H182: 550
A183: A-171 | B183: 24/2/2020 | C183: 8723 | D183: مصنع العسيري | E183: خرسانة 3/4 | F183: 24 | G183: 22.91666667 | H183: 550
A184: A-172 | B184: 24/2/2020 | C184: 8724 | D184: مصنع العسيري | E184: خرسانة 3/4 | F184: 24 | G184: 22.91666667 | H184: 550
A185: A-173 | B185: 24/2/2020 | C185: 8725 | D185: مصنع العسيري | E185: خرسانة 3/8 | F185: 24 | G185: 22.91666667 | H185: 550
A186: A-174 | B186: 24/2/2020 | C186: 8726 | D186: مصنع العسيري | E186: خرسانة 3/8 | F186: 24 | G186: 22.91666667 | H186: 550
A187: A-175 | B187: 24/2/2020 | C187: 8727 | D187: نقدي | E187: خرسانة 3/4 | F187: 8 | G187: 30 | H187: 240
A188: A-176 | B188: 24/2/2020 | C188: 8728 | D188: نقدي | E188: خرسانة 3/4 | F188: 24 | G188: 29.16666667 | H188: 700
A189: A-177 | B189: 24/2/2020 | C189: 8729 | D189: نزير - شركة القلابات | E189: خرسانة 3/4 | F189: 16 | G189: 27.5 | H189: 440
A190: A-178 | B190: 24/2/2020 | C190: 8730 | D190: اكرام - شركة القلابات | E190: خرسانة 3/8 | F190: 16 | G190: 27.5 | H190: 440
A191: A-179 | B191: 24/2/2020 | C191: 8731 | D191: اكرام - شركة القلابات | E191: خرسانة 3/4 | F191: 16 | G191: 27.5 | H191: 440
A192: A-180 | B192: 25/2/2020 | C192: 8732 | D192: مصنع العسيري | E192: خرسانة 3/4 | F192: 24 | G192: 22.91666667 | H192: 550
A193: A-181 | B193: 25/2/2020 | C193: 8733 | D193: مصنع العسيري | E193: خرسانة 3/4 | F193: 24 | G193: 22.91666667 | H193: 550
A194: A-182 | B194: 25/2/2020 | C194: 8734 | D194: مصنع العسيري | E194: خرسانة 3/4 | F194: 24 | G194: 22.91666667 | H194: 550
A195: A-183 | B195: 25/2/2020 | C195: 8735 | D195: ناصر - شركة القلابات | E195: خرسانة 3/4 | F195: 16 | G195: 27.5 | H195: 440
A196: A-184 | B196: 25/2/2020 | C196: 8736 | D196: نزير - شركة القلابات | E196: خرسانة 3/4 | F196: 16 | G196: 27.5 | H196: 440
A197: A-185 | B197: 26/2/20200 | C197: 8737 | D197: ناصر - شركة القلابات | E197: خرسانة 3/4 | F197: 16 | G197: 27.5 | H197: 440
A198: A-186 | B198: 26/2/20200 | C198: 8738 | D198: مصنع العسيري | E198: خرسانة 3/4 | F198: 24 | G198: 22.91666667 | H198: 550
A199: A-187 | B199: 26/2/20200 | C199: 8739 | D199: مصنع العسيري | E199: خرسانة 3/8 | F199: 24 | G199: 22.91666667 | H199: 550
A200: A-188 | B200: 26/2/20200 | C200: 8740 | D200: نقدي | E200: خرسانة 3/8 | F200: 16 | G200: 27.5 | H200: 440
... 48 more rows

Sheet مارس
A1: تقرير مبيعات كسارة مارس 2020
A2: S.N | B2: DATE | C2: NUMBER | D2: العميل | E2: نوع المواد | F2: QUANTITY | G2: PRICE | H2: AMOUNT | J2: بيان بقيمة الخرسانة المحملة علي شركة القلابات عن شهر ديسمبر 2019م | T2: اجمالى المبييعات | W2: =H245 -> 26610
A3: A-1 | B3: 2020-01-03 | C3: 8766 | D3: مصنع العسيري | E3: خرسانة 3/4 | F3: 24 | G3: =IFERROR(H3/F3,"-") -> 22.91666667 | H3: 550 | J3: الإجمالي | K3: واسيم - شركة القلابات | L3: حسين - شركة القلابات | M3: نعيم - شركة القلابات | N3: اكرام - شركة القلابات | O3: ناصر - شركة القلابات | P3: العمري - شركة القلابات | Q3: مقصود - شركة القلابات | R3: نزير - شركة القلابات | T3: مسلسل | U3: التاريخ | V3: رقم المستند | W3: ايداع | X3: الرصيد المتبقى | Y3: ملاحظات
A4: A-2 | B4: 2020-01-03 | C4: 8767 | D4: نعيم - شركة القلابات | E4: خرسانة 3/4 | F4: 16 | G4: 27.5 | H4: 440 | J4: =SUM(K4:R4) -> 21450 | K4: =SUMIF(D3:D243,K3:R3,H3:H243) -> 1320 | L4: =SUMIF(D3:D243,K3:R3,H3:H243) -> 3670 | M4: =SUMIF(D3:D243,K3:R3,H3:H243) -> 4610 | N4: =SUMIF(D3:D243,K3:R3,H3:H243) -> 5390 | O4: =SUMIF(D3:D243,K3:R3,H3:H243) -> 3720 | P4: =SUMIF(D3:D243,K3:R3,H3:H243) -> 0 | Q4: =SUMIF(D3:D243,K3:R3,H3:H243) -> 0 | R4: =SUMIF(D3:D243,K3:R3,H3:H243) -> 2740 | U4: 2020-06-02 | W4: 4425 | X4: =W2-W15 -> 12030 | Y4: ايداع في حساب الشركة
A5: A-3 | B5: 2020-01-03 | C5: 8768 | D5: مصنع العسيري | E5: خرسانة 3/8 | F5: 24 | G5: 22.91666667 | H5: 550 | U5: 13/02/2020 | W5: 3520 | Y5: ايداع في حساب الشركة
A6: A-4 | B6: 2020-01-03 | C6: 8769 | D6: مصنع العسيري | E6: خرسانة 3/8 | F6: 24 | G6: 22.91666667 | H6: 550 | U6: 16/02/2020 | W6: 2000 | Y6: ايداع في حساب الشركة
A7: A-5 | B7: 2020-01-03 | C7: 8770 | D7: نعيم - شركة القلابات | E7: تراب ناعم | F7: 32 | G7: 3.125 | H7: 100 | U7: 16/02/2020 | W7: 2005 | Y7: ايداع في حساب الشركة
A8: A-6 | B8: 2020-01-03 | C8: 8771 | D8: مصنع العسيري | E8: خرسانة 3/4 | F8: 24 | G8: 22.91666667 | H8: 550 | U8: 23/02/2020 | W8: 2630 | Y8: ايداع في حساب الشركة
A9: A-7 | B9: 2020-02-03 | C9: 8772 | D9: مصنع العسيري | E9: خرسانة 3/8 | F9: 24 | G9: 22.91666667 | H9: 550 | Y9: 0
A10: A-8 | B10: 2020-02-03 | C10: 8773 | D10: نعيم - شركة القلابات | E10: تراب ناعم | F10: 16 | G10: 3.125 | H10: 50
A11: A-9 | B11: 2020-02-03 | C11: 8774 | D11: واسيم - شركة القلابات | E11: خرسانة 3/4 | F11: 16 | G11: 27.5 | H11: 440
A12: A-10 | B12: 2020-02-03 | C12: 8775 | D12: مصنع العسيري | E12: خرسانة 3/8 | F12: 24 | G12: 22.91666667 | H12: 550
A13: A-11 | B13: 2020-02-03 | C13: 8776 | D13: مصنع العسيري | E13: خرسانة 3/8 | F13: 24 | G13: 22.91666667 | H13: 550
A14: A-12 | B14: 2020-02-03 | C14: 8777 | D14: نقدي | E14: خرسانة 3/8 | F14: 16 | G14: 27.5 | H14: 440
A15: A-13 | B15: 2020-02-03 | C15: 8778 | D15: مصنع العسيري | E15: خرسانة 3/8 | F15: 24 | G15: 22.91666667 | H15: 550 | T15: اجمالى الايداعات | W15: =SUM(W4:W14) -> 14580
A16: A-14 | B16: 2020-02-03 | C16: 8779 | D16: نقدي | E16: خرسانة 3/4 | F16: 16 | G16: 27.5 | H16: 440
A17: A-15 | B17: 2020-02-03 | C17: 8780 | D17: نقدي | E17: خرسانة 3/8 | F17: 16 | G17: 27.5 | H17: 440
A18: A-16 | B18: 2020-02-03 | C18: 8781 | D18: نقدي | E18: خرسانة 3/8 | F18: 16 | G18: 27.5 | H18: 440
A19: A-17 | B19: 2020-03-04 | C19: 8782 | D19: مصنع العسيري | E19: خرسانة 3/8 | F19: 24 | G19: 22.91666667 | H19: 550
A20: A-18 | B20: 2020-04-03 | C20: 8783 | D20: مصنع العسيري | E20: خرسانة 3/4 | F20: 24 | G20: 22.91666667 | H20: 550
A21: A-19 | B21: 2020-04-03 | C21: 8784 | D21: نقدي | E21: خرسانة 3/4 | F21: 16 | G21: 27.5 | H21: 440
A22: A-20 | B22: 2020-05-03 | C22: 8785 | D22: مصنع العسيري | E22: خرسانة 3/4 | F22: 24 | G22: 22.91666667 | H22: 550
A23: A-21 | C23: 8786 | D23: مصنع العسيري | E23: خرسانة 3/4 | F23: 24 | G23: 22.91666667 | H23: 550
A24: A-22 | B24: 2020-05-03 | C24: 8787 | D24: ناصر - شركة القلابات | E24: تراب ناعم | F24: 32 | G24: 3.125 | H24: 100
A25: A-23 | B25: 2020-05-03 | C25: 8788 | D25: ظافر النماص | E25: خرسانة 3/4 | F25: 16 | G25: 27.5 | H25: 440
A26: A-24 | B26: 2020-05-03 | C26: 8789 | D26: نقدي | E26: خرسانة 3/4 | F26: 16 | G26: 27.5 | H26: 440
A27: A-25 | B27: 2020-05-03 | C27: 8790 | D27: مصنع العسيري | E27: خرسانة 3/4 | F27: 24 | G27: 22.91666667 | H27: 550
A28: A-26 | B28: 2020-05-03 | C28: 8791 | D28: مصنع العسيري | E28: خرسانة 3/4 | F28: 24 | G28: 22.91666667 | H28: 550
A29: A-27 | B29: 2020-05-03 | C29: 8792 | D29: مصنع العسيري | E29: خرسانة 3/8 | F29: 24 | G29: 22.91666667 | H29: 550
A30: A-28 | B30: 2020-05-03 | C30: 8793 | D30: مصنع العسيري | E30: خرسانة 3/8 | F30: 24 | G30: 22.91666667 | H30: 550
A31: A-29 | B31: 2020-05-03 | C31: 8794 | D31: نعيم - شركة القلابات | E31: خرسانة 3/4 | F31: 440 | G31: 1 | H31: 440
A32: A-30 | B32: 2020-05-03 | C32: 8795 | D32: حسين - شركة القلابات | E32: تراب ناعم | F32: 32 | G32: 3.125 | H32: 100
A33: A-31 | B33: 2020-06-03 | C33: 8796 | D33: مصنع العسيري | E33: خرسانة 3/4 | F33: 24 | G33: 22.91666667 | H33: 550
A34: A-32 | B34: 2020-06-03 | C34: 8797 | D34: مصنع العسيري | E34: خرسانة 3/4 | F34: 24 | G34: 22.91666667 | H34: 550
A35: A-33 | B35: 2020-06-03 | C35: 8798 | D35: مصنع العسيري | E35: خرسانة 3/4 | F35: 24 | G35: 22.91666667 | H35: 550
A36: A-34 | B36: 2020-06-03 | C36: 8799 | D36: مصنع العسيري | E36: خرسانة 3/4 | F36: 24 | G36: 22.91666667 | H36: 550
A37: A-35 | B37: 2020-06-03 | C37: 8800 | D37: مصنع العسيري | E37: خرسانة 3/4 | F37: 24 | G37: 22.91666667 | H37: 550
A38: A-36 | B38: 2020-06-03 | C38: 8801 | D38: مصنع العسيري | E38: خرسانة 3/8 | F38: 24 | G38: 22.91666667 | H38: 550
A39: A-37 | B39: 2020-06-03 | C39: 8802 | D39: مصنع العسيري | E39: خرسانة 3/4 | F39: 24 | G39: 22.91666667 | H39: 550
A40: A-38 | B40: 2020-06-03 | C40: 8803 | D40: مصنع العسيري | E40: خرسانة 3/8 | F40: 24 | G40: 22.91666667 | H40: 550
A41: A-39 | B41: 2020-07-03 | C41: 8804 | D41: مصنع العسيري | E41: خرسانة 3/8 | F41: 24 | G41: 22.91666667 | H41: 550
A42: A-40 | B42: 2020-07-03 | C42: 8805 | D42: نقدي | E42: خرسانة 3/4 | F42: 16 | G42: 27.5 | H42: 440
A43: A-41 | B43: 2020-07-03 | C43: 8806 | D43: مصنع العسيري | E43: خرسانة 3/8 | F43: 24 | G43: 22.91666667 | H43: 550
A44: A-42 | B44: 2020-07-03 | C44: 8807 | D44: مصنع العسيري | E44: خرسانة 3/8 | F44: 24 | G44: 22.91666667 | H44: 550
A45: A-43 | B45: 2020-07-03 | C45: 8808 | D45: مصنع العسيري | E45: خرسانة 3/8 | F45: 24 | G45: 22.91666667 | H45: 550
A46: A-44 | B46: 2020-08-03 | C46: 8809 | D46: نقدي | E46: خرسانة 3/4 | F46: 16 | G46: 27.5 | H46: 440
A47: A-45 | B47: 2020-09-03 | C47: 8810 | D47: نقدي | E47: خرسانة 3/4 | F47: 16 | G47: 27.5 | H47: 440
A48: A-46 | B48: 2020-09-03 | C48: 8811 | D48: مصنع العسيري | E48: خرسانة 3/4 | F48: 24 | G48: 22.91666667 | H48: 550
A49: A-47 | B49: 2020-09-03 | C49: 8812 | D49: نزير - شركة القلابات | E49: خرسانة 3/4 | F49: 16 | G49: 27.5 | H49: 440
A50: A-48 | B50: 2020-09-03 | C50: 8813 | D50: اكرام - شركة القلابات | E50: خرسانة 3/4 | F50: 16 | G50: 27.5 | H50: 440
A51: A-49 | B51: 2020-09-03 | C51: 8814 | D51: مصنع العسيري | E51: خرسانة 3/4 | F51: 24 | G51: 22.91666667 | H51: 550
A52: A-50 | B52: 2020-09-03 | C52: 8815 | D52: مصنع العسيري | E52: خرسانة 3/4 | F52: 24 | G52: 22.91666667 | H52: 550
A53: A-51 | B53: 2020-09-03 | C53: 8816 | D53: مصنع العسيري | E53: خرسانة 3/4 | F53: 24 | G53: 22.91666667 | H53: 550
A54: A-52 | B54: 2020-09-03 | C54: 8817 | D54: مصنع العسيري | E54: خرسانة 3/4 | F54: 24 | G54: 22.91666667 | H54: 550
A55: A-53 | B55: 2020-09-03 | C55: 8818 | D55: نعيم - شركة القلابات | E55: خرسانة 3/4 | F55: 16 | G55: 27.5 | H55: 440
A56: A-54 | B56: 2020-09-03 | C56: 8819 | D56: نقدي | E56: خرسانة 3/4 | F56: 16 | G56: 27.5 | H56: 440
A57: A-55 | B57: 2020-09-03 | C57: 8820 | D57: نقدي | E57: خرسانة 3/4 | F57: 16 | G57: 27.5 | H57: 440
A58: A-56 | B58: 2020-09-03 | C58: 8821 | D58: نعيم - شركة القلابات | E58: خرسانة 3/4 | F58: 16 | G58: 27.5 | H58: 440
A59: A-57 | B59: 2020-10-03 | C59: 8822 | D59: مصنع العسيري | E59: خرسانة 3/4 | F59: 24 | G59: 22.91666667 | H59: 550
A60: A-58 | B60: 2020-10-03 | C60: 8823 | D60: مصنع العسيري | E60: خرسانة 3/4 | F60: 24 | G60: 22.91666667 | H60: 550
A61: A-59 | B61: 2020-10-03 | C61: 8824 | D61: مصنع العسيري | E61: خرسانة 3/4 | F61: 24 | G61: 22.91666667 | H61: 550
A62: A-60 | B62: 2020-10-03 | C62: 8825 | D62: مصنع العسيري | E62: خرسانة 3/4 | F62: 24 | G62: 22.91666667 | H62: 550
A63: A-61 | B63: 2020-10-03 | C63: 8826 | D63: نقدي | E63: خرسانة 3/4 | F63: 16 | G63: 27.5 | H63: 440
A64: A-62 | B64: 2020-10-03 | C64: 8827 | D64: نعيم - شركة القلابات | E64: خرسانة 3/4 | F64: 16 | G64: 27.5 | H64: 440
A65: A-63 | B65: 2020-10-03 | C65: 8828 | D65: مصنع العسيري | E65: خرسانة 3/4 | F65: 24 | G65: 22.91666667 | H65: 550
A66: A-64 | B66: 2020-10-03 | C66: 8829 | D66: نقدي | E66: خرسانة 3/4 | F66: 16 | G66: 25 | H66: 400
A67: A-65 | B67: 2020-11-03 | C67: 8830 | D67: نقدي | E67: خرسانة 3/4 | F67: 16 | G67: =IFERROR(H67/F67,"-") -> 27.5 | H67: 440
A68: A-66 | B68: 2020-11-03 | C68: 8831 | D68: مصنع العسيري | E68: خرسانة 3/8 | F68: 24 | G68: 22.91666667 | H68: 550
A69: A-67 | B69: 2020-11-03 | C69: 8832 | D69: نقدي | E69: خرسانة 3/4 | F69: 16 | G69: 27.5 | H69: 440
A70: A-68 | B70: 2020-11-03 | C70: 8833 | D70: مؤسسة بن دروم | E70: خرسانة 3/4 | F70: 8 | G70: 32.5 | H70: 260
A71: A-69 | B71: 2020-11-03 | C71: 8834 | D71: مصنع العسيري | E71: خرسانة 3/4 | F71: 24 | G71: 22.91666667 | H71: 550
A72: A-70 | B72: 2020-11-03 | C72: 8835 | D72: مصنع العسيري | E72: خرسانة 3/4 | F72: 24 | G72: 22.91666667 | H72: 550
A73: A-71 | B73: 2020-11-03 | C73: 8836 | D73: نقدي | E73: خرسانة 3/4 | F73: 16 | G73: 27.5 | H73: 440
A74: A-72 | B74: 2020-11-03 | C74: 8837 | D74: مصنع العسيري | E74: خرسانة 3/8 | F74: 24 | G74: 22.91666667 | H74: 550
A75: A-73 | B75: 2020-11-03 | C75: 8838 | D75: مصنع العسيري | E75: خرسانة 3/8 | F75: 24 | G75: 22.91666667 | H75: 550
A76: A-74 | B76: 2020-11-03 | C76: 8839 | D76: مصنع العسيري | E76: خرسانة 3/4 | F76: 24 | G76: 22.91666667 | H76: 550
A77: A-75 | B77: 2020-12-03 | C77: 8840 | D77: نقدي | E77: خرسانة 3/4 | F77: 16 | G77: 27.5 | H77: 440
A78: A-76 | B78: 2020-12-03 | C78: 8841 | D78: مؤسسة بن دروم | E78: خرسانة 3/4 | F78: 16 | G78: 29.375 | H78: 470
A79: A-77 | B79: 2020-12-03 | C79: 8842 | D79: مصنع العسيري | E79: خرسانة 3/4 | F79: 24 | G79: 22.91666667 | H79: 550
A80: A-78 | B80: 2020-12-03 | C80: 8843 | D80: حسين - شركة القلابات | E80: خرسانة 3/4 | F80: 16 | G80: 27.5 | H80: 440
A81: A-79 | B81: 2020-12-03 | C81: 8844 | D81: مصنع العسيري | E81: خرسانة 3/4 | F81: 24 | G81: 22.91666667 | H81: 550
A82: A-80 | B82: 2020-12-03 | C82: 8845 | D82: نعيم - شركة القلابات | E82: خرسانة 3/4 | F82: 16 | G82: 27.5 | H82: 440
A83: A-81 | B83: 2020-12-03 | C83: 8846 | D83: نقدي | E83: خرسانة 3/4 | F83: 16 | G83: 27.5 | H83: 440
A84: A-82 | B84: 2020-12-03 | C84: 8847 | D84: مصنع العسيري | E84: خرسانة 3/8 | F84: 24 | G84: 22.91666667 | H84: 550
A85: A-83 | B85: 2020-12-03 | C85: 8848 | D85: مصنع العسيري | E85: خرسانة 3/4 | F85: 24 | G85: 22.91666667 | H85: 550
A86: A-84 | B86: 2020-12-03 | C86: 8849 | D86: حسين - شركة القلابات | E86: تراب ناعم | F86: 16 | G86: 3.125 | H86: 50
A87: A-85 | B87: 2020-12-03 | C87: 8850 | D87: نعيم - شركة القلابات | E87: خرسانة 3/4 | F87: 16 | G87: 27.5 | H87: 440
A88: A-86 | B88: 14/3/2020 | C88: 8851 | D88: نقدي | E88: خرسانة 3/4 | F88: 16 | G88: 27.5 | H88: 440
A89: A-87 | B89: 14/3/2020 | C89: 8852 | D89: ناصر - شركة القلابات | E89: خرسانة 3/4 | F89: 16 | G89: 27.5 | H89: 440
A90: A-88 | B90: 14/3/2020 | C90: 8853 | D90: مصنع العسيري | E90: خرسانة 3/4 | F90: 24 | G90: 22.91666667 | H90: 550
A91: A-89 | B91: 14/3/2020 | C91: 8854 | D91: اكرام - شركة القلابات | E91: خرسانة 3/4 | F91: 16 | G91: 27.5 | H91: 440
A92: A-90 | B92: 14/3/2020 | C92: 8855 | D92: مصنع العسيري | E92: خرسانة 3/4 | F92: 24 | G92: 22.91666667 | H92: 550
A93: A-91 | B93: 14/3/2020 | C93: 8856 | D93: ناصر - شركة القلابات | E93: خرسانة 3/4 | F93: 16 | G93: 27.5 | H93: 440
A94: A-92 | B94: 14/3/2020 | C94: 8857 | D94: مصنع العسيري | E94: خرسانة 3/4 | F94: 24 | G94: 22.91666667 | H94: 550
A95: A-93 | B95: 14/3/2020 | C95: 8858 | D95: مصنع العسيري | E95: خرسانة 3/4 | F95: 24 | G95: 22.91666667 | H95: 550
A96: A-94 | B96: 14/3/2020 | C96: 8859 | D96: مصنع العسيري | E96: خرسانة 3/8 | F96: 24 | G96: 22.91666667 | H96: 550
A97: A-95 | B97: 14/3/2020 | C97: 8860 | D97: اكرام - شركة القلابات | E97: خرسانة 3/4 | F97: 16 | G97: 27.5 | H97: 440
A98: A-96 | B98: 14/3/2020 | C98: 8861 | D98: ناصر - شركة القلابات | E98: خرسانة 3/4 | F98: 16 | G98: 27.5 | H98: 440
A99: A-97 | B99: 14/3/2020 | C99: 8862 | D99: مصنع العسيري | E99: خرسانة 3/4 | F99: 24 | G99: 22.91666667 | H99: 550
A100: A-98 | B100: 14/3/2020 | C100: 8863 | D100: مصنع العسيري | E100: خرسانة 3/4 | F100: 24 | G100: 22.91666667 | H100: 550
A101: A-99 | B101: 14/3/2020 | C101: 8864 | D101: اكرام - شركة القلابات | E101: خرسانة 3/4 | F101: 16 | G101: 27.5 | H101: 440
A102: A-100 | B102: 15/3/2020 | C102: 8865 | D102: ناصر - شركة القلابات | E102: خرسانة 3/4 | F102: 16 | G102: 27.5 | H102: 440
A103: A-101 | B103: 15/3/2020 | C103: 8866 | D103: مصنع العسيري | E103: خرسانة 3/4 | F103: 24 | G103: 22.91666667 | H103: 550
A104: A-102 | B104: 15/3/2020 | C104: 8867 | D104: نقدي | E104: خرسانة 3/4 | F104: 16 | G104: 27.5 | H104: 440
A105: A-103 | B105: 15/3/2020 | C105: 8868 | D105: مصنع العسيري | E105: خرسانة 3/4 | F105: 24 | G105: 22.91666667 | H105: 550
A106: A-104 | B106: 15/3/2020 | C106: 8869 | D106: مصنع العسيري | E106: خرسانة 3/4 | F106: 24 | G106: 22.91666667 | H106: 550
A107: A-105 | B107: 15/3/2020 | C107: 8870 | D107: نزير - شركة القلابات | E107: تراب ناعم | F107: 32 | G107: 3.125 | H107: 100
A108: A-106 | B108: 15/3/2020 | C108: 8871 | D108: راشد الاسمري - ايجار معدات | E108: خرسانة 3/4 | F108: 16 | G108: 27.5 | H108: 440
A109: A-107 | B109: 15/3/2020 | C109: 8872 | D109: حسين - شركة القلابات | E109: خرسانة 3/4 | F109: 16 | G109: 27.5 | H109: 440
A110: A-108 | B110: 15/3/2020 | C110: 8873 | D110: مصنع العسيري | E110: خرسانة 3/8 | F110: 24 | G110: 22.91666667 | H110: 550
A111: A-109 | B111: 15/3/2020 | C111: 8874 | D111: مصنع العسيري | E111: خرسانة 3/8 | F111: 24 | G111: 22.91666667 | H111: 550
A112: A-110 | B112: 15/3/2020 | C112: 8875 | D112: مصنع العسيري | E112: خرسانة 3/8 | F112: 24 | G112: 22.91666667 | H112: 550
A113: A-99 | B113: 15/3/2020 | C113: 8876 | D113: مصنع العسيري | E113: خرسانة 3/8 | F113: 24 | G113: 22.91666667 | H113: 550
A114: A-100 | B114: 16/3/2020 | C114: 8877 | D114: نقدي | E114: خرسانة 3/4 | F114: 16 | G114: 27.5 | H114: 440
A115: A-101 | B115: 16/3/2020 | C115: 8878 | D115: نقدي | E115: خرسانة 3/4 | F115: 16 | G115: 27.5 | H115: 440
A116: A-102 | B116: 16/3/2020 | C116: 8879 | D116: اكرام - شركة القلابات | E116: خرسانة 3/8 | F116: 16 | G116: 27.5 | H116: 440
A117: A-103 | B117: 16/3/2020 | C117: 8880 | D117: مصنع العسيري | E117: خرسانة 3/4 | F117: 24 | G117: 22.91666667 | H117: 550
A118: A-104 | B118: 16/3/2020 | C118: 8881 | D118: مصنع العسيري | E118: خرسانة 3/4 | F118: 24 | G118: 22.91666667 | H118: 550
A119: A-105 | B119: 16/3/2020 | C119: 8882 | D119: مصنع العسيري | E119: خرسانة 3/4 | F119: 24 | G119: 22.91666667 | H119: 550
A120: A-106 | B120: 16/3/2020 | C120: 8883 | D120: مصنع العسيري | E120: خرسانة 3/8 | F120: 24 | G120: 22.91666667 | H120: 550
A121: A-107 | B121: 16/3/2020 | C121: 8884 | D121: مصنع العسيري | E121: خرسانة 3/8 | F121: 24 | G121: 22.91666667 | H121: 550
A122: A-108 | B122: 16/3/2020 | C122: 8885 | D122: نعيم - شركة القلابات | E122: خرسانة 3/4 | F122: 16 | G122: 27.5 | H122: 440
A123: A-109 | B123: 16/3/2020 | C123: 8886 | D123: حسين - شركة القلابات | E123: خرسانة 3/4 | F123: 16 | G123: 27.5 | H123: 440
A124: A-110 | B124: 16/3/2020 | C124: 8887 | D124: نقدي | E124: خرسانة 3/4 | F124: 16 | G124: 27.5 | H124: 440
A125: A-111 | B125: 16/3/2020 | C125: 8888 | D125: واسيم - شركة القلابات | E125: خرسانة 3/4 | F125: 16 | G125: 27.5 | H125: 440
A126: A-112 | B126: 17/3/2020 | C126: 8889 | D126: ناصر - شركة القلابات | E126: خرسانة 3/4 | F126: 16 | G126: 27.5 | H126: 440
A127: A-113 | B127: 17/3/2020 | C127: 8890 | D127: ناصر - شركة القلابات | E127: خرسانة 3/4 | F127: 16 | G127: 27.5 | H127: 440
A128: A-114 | B128: 18/3/2020 | C128: 8891 | D128: نزير - شركة القلابات | E128: خرسانة 3/4 | F128: 16 | G128: 27.5 | H128: 440
A129: A-115 | B129: 18/3/2020 | C129: 8892 | D129: نقدي | E129: خرسانة 3/4 | F129: 24 | G129: 26.66666667 | H129: 640
A130: A-116 | B130: 18/3/2020 | C130: 8893 | D130: مصنع العسيري | E130: خرسانة 3/4 | F130: 24 | G130: 22.91666667 | H130: 550
A131: A-117 | B131: 18/3/2020 | C131: 8894 | D131: مصنع العسيري | E131: خرسانة 3/4 | F131: 24 | G131: =IFERROR(H131/F131,"-") -> 22.91666667 | H131: 550
A132: A-118 | B132: 18/3/2020 | C132: 8895 | D132: مصنع العسيري | E132: خرسانة 3/4 | F132: 24 | G132: 22.91666667 | H132: 550
A133: A-119 | B133: 18/3/2020 | C133: 8896 | D133: مصنع العسيري | E133: خرسانة 3/4 | F133: 24 | G133: 22.91666667 | H133: 550
A134: A-120 | B134: 18/3/2020 | C134: 8897 | D134: مصنع العسيري | E134: خرسانة 3/4 | F134: 24 | G134: 22.91666667 | H134: 550
A135: A-121 | B135: 18/3/2020 | C135: 8898 | D135: مصنع العسيري | E135: خرسانة 3/4 | F135: 24 | G135: 22.91666667 | H135: 550
A136: A-122 | B136: 18/3/2020 | C136: 8899 | D136: مصنع العسيري | E136: خرسانة 3/8 | F136: 24 | G136: 22.91666667 | H136: 550
A137: A-123 | B137: 18/3/2020 | C137: 8900 | D137: مصنع العسيري | E137: خرسانة 3/8 | F137: 24 | G137: 22.91666667 | H137: 550
A138: A-124 | B138: 18/3/2020 | C138: 8901 | D138: مصنع العسيري | E138: خرسانة 3/8 | F138: 24 | G138: 22.91666667 | H138: 550
A139: A-125 | B139: 19/3/2020 | C139: 8902 | D139: مصنع العسيري | E139: خرسانة 3/4 | F139: 24 | G139: 22.91666667 | H139: 550
A140: A-126 | B140: 19/3/2020 | C140: 8903 | D140: نقدي | E140: خرسانة 3/4 | F140: 24 | G140: 26.66666667 | H140: 640
A141: A-127 | B141: 19/3/2020 | C141: 8904 | D141: مصنع العسيري | E141: خرسانة 3/8 | F141: 24 | G141: 22.91666667 | H141: 550
A142: A-128 | B142: 19/3/2020 | C142: 8905 | D142: نقدي | E142: خرسانة 3/4 | F142: 16 | G142: 27.5 | H142: 440
A143: A-129 | B143: 19/3/2020 | C143: 8906 | D143: مصنع العسيري | E143: خرسانة 3/8 | F143: 24 | G143: 22.91666667 | H143: 550
A144: A-130 | B144: 19/3/2020 | C144: 8907 | D144: مصنع العسيري | E144: خرسانة 3/8 | F144: 24 | G144: 22.91666667 | H144: 550
A145: A-131 | B145: 19/3/2020 | C145: 8908 | D145: اكرام - شركة القلابات | E145: خرسانة 3/4 | F145: 16 | G145: 27.5 | H145: 440
A146: A-133 | B146: 19/3/2020 | C146: 8910 | D146: نقدي | E146: خرسانة 3/4 | F146: 16 | G146: 27.5 | H146: 440
A147: A-134 | B147: 19/3/2020 | C147: 8911 | D147: مؤسسة بن دروم | E147: خرسانة 3/8 | F147: 8 | G147: 32.5 | H147: 260
A148: A-135 | B148: 19/3/2020 | C148: 8912 | D148: نقدي | E148: خرسانة 3/4 | F148: 24 | G148: 26.66666667 | H148: 640
A149: A-136 | B149: 19/3/2020 | C149: 8913 | D149: مصنع العسيري | E149: خرسانة 3/8 | F149: 24 | G149: 22.91666667 | H149: 550
A150: A-137 | B150: 19/3/2020 | C150: 8914 | D150: نقدي | E150: خرسانة 3/4 | F150: 16 | G150: 27.5 | H150: 440
A151: A-138 | B151: 19/3/2020 | C151: 8915 | D151: ناصر - شركة القلابات | E151: خرسانة 3/4 | F151: 16 | G151: 27.5 | H151: 440
A152: A-139 | B152: 21/3/2020 | C152: 8916 | D152: مصنع العسيري | E152: خرسانة 3/8 | F152: 24 | G152: 22.91666667 | H152: 550
A153: A-140 | B153: 21/3/2020 | C153: 8917 | D153: مصنع العسيري | E153: خرسانة 3/4 | F153: 24 | G153: 22.91666667 | H153: 550
A154: A-141 | B154: 21/3/2020 | C154: 8918 | D154: اكرام - شركة القلابات | E154: خرسانة 3/4 | F154: 16 | G154: 27.5 | H154: 440
A155: A-142 | B155: 21/3/2020 | C155: 8919 | D155: مصنع العسيري | E155: خرسانة 3/8 | F155: 24 | G155: 22.91666667 | H155: 550
A156: A-143 | B156: 21/3/2020 | C156: 8920 | D156: مصنع العسيري | E156: خرسانة 3/4 | F156: 24 | G156: 22.91666667 | H156: 550
A157: A-144 | B157: 21/3/2020 | C157: 8921 | D157: مصنع العسيري | E157: خرسانة 3/8 | F157: 24 | G157: 22.91666667 | H157: 550
A158: A-145 | B158: 22/3/2020 | C158: 8922 | D158: نزير - شركة القلابات | E158: خرسانة 3/4 | F158: 16 | G158: 27.5 | H158: 440
A159: A-146 | B159: 22/3/2020 | C159: 8923 | D159: نقدي | E159: تراب ناعم | F159: 16 | G159: 3.125 | H159: 50
A160: A-147 | B160: 22/3/2020 | C160: 8924 | D160: ناصر - شركة القلابات | E160: تراب ناعم | F160: 16 | G160: 3.125 | H160: 50
A161: A-148 | B161: 22/3/2020 | C161: 8925 | D161: ناصر - شركة القلابات | E161: تراب ناعم | F161: 16 | G161: 3.125 | H161: 50
A162: A-149 | B162: 22/3/2020 | C162: 8926 | D162: مصنع العسيري | E162: خرسانة 3/4 | F162: 24 | G162: 22.91666667 | H162: 550
A163: A-150 | B163: 22/3/2020 | C163: 8927 | D163: مصنع العسيري | E163: خرسانة 3/4 | F163: 24 | G163: 22.91666667 | H163: 550
A164: A-151 | B164: 22/3/2020 | C164: 8928 | D164: مصنع العسيري | E164: خرسانة 3/8 | F164: 24 | G164: 22.91666667 | H164: 550
A165: A-152 | B165: 22/3/2020 | C165: 8929 | D165: مصنع العسيري | E165: خرسانة 3/8 | F165: 24 | G165: 22.91666667 | H165: 550
A166: A-153 | B166: 22/3/2020 | C166: 8930 | D166: مصنع العسيري | E166: خرسانة 3/8 | F166: 24 | G166: 22.91666667 | H166: 550
A167: A-154 | B167: 23/3/2020 | C167: 8931 | D167: نقدي | E167: خرسانة 3/4 | F167: 24 | G167: 25 | H167: 600
A168: A-155 | B168: 23/3/2020 | C168: 8932 | D168: نقدي | E168: خرسانة 3/4 | F168: 24 | G168: 25 | H168: 600
A169: A-156 | B169: 23/3/2020 | C169: 8933 | D169: حسين - شركة القلابات | E169: خرسانة 3/4 | F169: 16 | G169: 27.5 | H169: 440
A170: A-157 | B170: 23/3/2020 | C170: 8934 | D170: حسين - شركة القلابات | E170: خرسانة 3/4 | F170: 16 | G170: 27.5 | H170: 440
A171: A-158 | B171: 23/3/2020 | C171: 8935 | D171: راشد الاسمري - ايجار معدات | E171: خرسانة 3/8 | F171: 16 | G171: 27.5 | H171: 440
A172: A-159 | B172: 23/3/2020 | C172: 8936 | D172: نقدي | E172: خرسانة 3/4 | F172: 24 | G172: 26.66666667 | H172: 640
A173: A-160 | B173: 23/3/2020 | C173: 8937 | D173: مؤسسة بن دروم | E173: خرسانة 3/4 | F173: 16 | G173: 29.375 | H173: 470
A174: A-161 | B174: 23/3/2020 | C174: 8938 | D174: اكرام - شركة القلابات | E174: خرسانة 3/4 | F174: 16 | G174: 27.5 | H174: 440
A175: A-162 | B175: 24/3/2020 | C175: 8939 | D175: مصنع العسيري | E175: خرسانة 3/4 | F175: 24 | G175: 22.91666667 | H175: 550
A176: A-163 | B176: 24/3/2020 | C176: 8940 | D176: مصنع العسيري | E176: خرسانة 3/4 | F176: 24 | G176: 22.91666667 | H176: 550
A177: A-164 | B177: 24/3/2020 | C177: 8941 | D177: مصنع العسيري | E177: خرسانة 3/4 | F177: 24 | G177: 22.91666667 | H177: 550
A178: A-165 | B178: 24/3/2020 | C178: 8942 | D178: مصنع العسيري | E178: خرسانة 3/8 | F178: 24 | G178: 22.91666667 | H178: 550
A179: A-166 | B179: 24/3/2020 | C179: 8943 | D179: مصنع العسيري | E179: خرسانة 3/8 | F179: 24 | G179: 22.91666667 | H179: 550
A180: A-167 | B180: 24/3/2020 | C180: 8944 | D180: اكرام - شركة القلابات | E180: خرسانة 3/4 | F180: 16 | G180: 34.375 | H180: 550
A181: A-168 | B181: 24/3/2020 | C181: 8945 | D181: نقدي | E181: خرسانة 3/4 | F181: 16 | G181: 27.5 | H181: 440
A182: A-169 | B182: 24/3/2020 | C182: 8946 | D182: نقدي | E182: خرسانة 3/4 | F182: 16 | G182: 27.5 | H182: 440
A183: A-170 | B183: 24/3/2020 | C183: 8947 | D183: نقدي | E183: خرسانة 3/4 | F183: 16 | G183: 27.5 | H183: 440
A184: A-171 | B184: 24/3/2020 | C184: 8948 | D184: حسين - شركة القلابات | E184: خرسانة 3/4 | F184: 16 | G184: 27.5 | H184: 440
A185: A-172 | B185: 25/3/2020 | C185: 8949 | D185: نقدي | E185: خرسانة 3/4 | F185: 14 | G185: 28.57142857 | H185: 400
A186: A-173 | B186: 25/3/2020 | C186: 8950 | D186: نقدي | E186: خرسانة 3/8 | F186: 8 | G186: 36.25 | H186: 290
A187: A-174 | B187: 25/3/2020 | C187: 8951 | D187: نقدي | E187: خرسانة 3/8 | F187: 16 | G187: 27.5 | H187: 440
A188: A-175 | B188: 25/3/2020 | C188: 8952 | D188: نقدي | E188: خرسانة 3/4 | F188: 24 | G188: 26.66666667 | H188: 640
A189: A-176 | B189: 25/3/2020 | C189: 8953 | D189: نزير - شركة القلابات | E189: خرسانة 3/4 | F189: 16 | G189: 27.5 | H189: 440
A190: A-177 | B190: 25/3/2020 | C190: 8954 | D190: نقدي | E190: تراب ناعم | F190: 32 | G190: 3.125 | H190: 100
A191: A-178 | B191: 25/3/2020 | C191: 8955 | D191: نقدي | E191: خرسانة 3/4 | F191: 16 | G191: 27.5 | H191: 440
A192: A-179 | B192: 26/3/2020 | C192: 8956 | D192: نقدي | E192: تراب ناعم | F192: 16 | G192: 3.125 | H192: 50
A193: A-180 | B193: 26/3/2020 | C193: 8957 | D193: ناصر - شركة القلابات | E193: خرسانة 3/4 | F193: 16 | G193: 27.5 | H193: 440
A194: A-181 | B194: 26/3/2020 | C194: 8958 | D194: نقدي | E194: خرسانة 3/4 | F194: 16 | G194: 27.5 | H194: 440
A195: A-182 | B195: 26/3/2020 | C195: 8959 | D195: نقدي | E195: تراب ناعم | F195: 16 | G195: 3.125 | H195: 50
A196: A-183 | B196: 26/3/2020 | C196: 8960 | D196: نقدي | E196: خرسانة 3/4 | F196: 24 | G196: 26.66666667 | H196: 640
A197: A-184 | B197: 26/3/2020 | C197: 8961 | D197: نقدي | E197: خرسانة 3/4 | F197: 16 | G197: 27.5 | H197: 440
A198: A-185 | B198: 26/3/2020 | C198: 8962 | D198: مصنع العسيري | E198: خرسانة 3/4 | F198: 24 | G198: 22.91666667 | H198: 550
A199: A-186 | B199: 26/3/2020 | C199: 8963 | D199: مصنع العسيري | E199: خرسانة 3/4 | F199: 24 | G199: 22.91666667 | H199: 550
A200: A-187 | B200: 26/3/2020 | C200: 8964 | D200: مصنع العسيري | E200: خرسانة 3/4 | F200: 24 | G200: 22.91666667 | H200: 550
... 63 more rows

Sheet ابريل
A1: تقرير مبيعات كسارة ابريل 2020
A2: S.N | B2: DATE | C2: NUMBER | D2: العميل | E2: نوع المواد | F2: QUANTITY | G2: PRICE | H2: AMOUNT | J2: بيان بقيمة الخرسانة المحملة علي شركة القلابات عن شهر ديسمبر 2019م | T2: اجمالى المبييعات | W2: =H228 -> 22620
A3: A-1 | B3: 2020-01-04 | C3: 9008 | D3: ناصر - شركة القلابات | E3: خرسانة 3/4 | F3: 16 | G3: =IFERROR(H3/F3,"-") -> 27.5 | H3: 440 | J3: الإجمالي | K3: واسيم - شركة القلابات | L3: حسين - شركة القلابات | M3: نعيم - شركة القلابات | N3: اكرام - شركة القلابات | O3: ناصر - شركة القلابات | P3: محمد اشرف - شركة القلابات | Q3: عثمان - شركة القلابات | R3: نزير - شركة القلابات | T3: مسلسل | U3: التاريخ | V3: رقم المستند | W3: ايداع | X3: الرصيد المتبقى | Y3: ملاحظات
A4: A-2 | B4: 2020-01-04 | C4: 9009 | D4: اكرام - شركة القلابات | E4: خرسانة 3/4 | F4: 16 | G4: 27.5 | H4: 440 | J4: =SUM(K4:R4) -> 19310 | K4: =SUMIF(D3:D226,K3:R3,H3:H226) -> 5030 | L4: =SUMIF(D3:D226,K3:R3,H3:H226) -> 350 | M4: =SUMIF(D3:D226,K3:R3,H3:H226) -> 2900 | N4: =SUMIF(D3:D226,K3:R3,H3:H226) -> 880 | O4: =SUMIF(D3:D226,K3:R3,H3:H226) -> 2640 | P4: =SUMIF(D3:D226,K3:R3,H3:H226) -> 1670 | Q4: =SUMIF(D3:D226,K3:R3,H3:H226) -> 3580 | R4: =SUMIF(D3:D226,K3:R3,H3:H226) -> 2260 | U4: 2020-06-02 | W4: 4425 | X4: =W2-W15 -> 8040 | Y4: ايداع في حساب الشركة
A5: A-3 | B5: 2020-01-04 | C5: 9010 | D5: مصنع العسيري | E5: خرسانة 3/4 | F5: 24 | G5: 22.91666667 | H5: 550 | U5: 13/02/2020 | W5: 3520 | Y5: ايداع في حساب الشركة
A6: A-4 | B6: 2020-01-04 | C6: 9011 | D6: مصنع العسيري | E6: خرسانة 3/4 | F6: 24 | G6: 22.91666667 | H6: 550 | U6: 16/02/2020 | W6: 2000 | Y6: ايداع في حساب الشركة
A7: A-5 | B7: 2020-01-04 | C7: 9012 | D7: مصنع العسيري | E7: خرسانة 3/4 | F7: 24 | G7: 22.91666667 | H7: 550 | U7: 16/02/2020 | W7: 2005 | Y7: ايداع في حساب الشركة
A8: A-6 | B8: 2020-01-04 | C8: 9013 | D8: مصنع العسيري | E8: خرسانة 3/8 | F8: 24 | G8: 22.91666667 | H8: 550 | U8: 23/02/2020 | W8: 2630 | Y8: ايداع في حساب الشركة
A9: A-7 | B9: 2020-01-04 | C9: 9014 | D9: مصنع العسيري | E9: خرسانة 3/8 | F9: 24 | G9: 22.91666667 | H9: 550 | Y9: 0
A10: A-8 | B10: 2020-01-04 | C10: 9015 | D10: نقدي | E10: تراب ناعم | F10: 16 | G10: 3.125 | H10: 50
A11: A-9 | B11: 2020-02-04 | C11: 9016 | D11: نقدي | E11: تراب ناعم | F11: 80 | G11: 3.125 | H11: 250
A12: A-10 | B12: 2020-02-04 | C12: 9017 | D12: واسيم - شركة القلابات | E12: تراب ناعم | F12: 16 | G12: 3.125 | H12: 50
A13: A-11 | B13: 2020-02-04 | C13: 9018 | D13: مصنع العسيري | E13: خرسانة 3/4 | F13: 24 | G13: 22.91666667 | H13: 550
A14: A-12 | B14: 2020-02-04 | C14: 9019 | D14: مصنع العسيري | E14: خرسانة 3/4 | F14: 24 | G14: 22.91666667 | H14: 550
A15: A-13 | B15: 2020-02-04 | C15: 9020 | D15: مصنع العسيري | E15: خرسانة 3/4 | F15: 24 | G15: 22.91666667 | H15: 550 | T15: اجمالى الايداعات | W15: =SUM(W4:W14) -> 14580
A16: A-14 | B16: 2020-02-04 | C16: 9021 | D16: مصنع العسيري | E16: خرسانة 3/8 | F16: 24 | G16: 22.91666667 | H16: 550
A17: A-15 | B17: 2020-02-04 | C17: 9022 | D17: مصنع العسيري | E17: خرسانة 3/8 | F17: 24 | G17: 22.91666667 | H17: 550
A18: A-16 | B18: 2020-02-04 | C18: 9023 | D18: نقدي | E18: خرسانة 3/4 | F18: 16 | G18: 27.5 | H18: 440
A19: A-17 | B19: 2020-02-04 | C19: 9024 | D19: واسيم - شركة القلابات | E19: تراب ناعم | F19: 16 | G19: 3.125 | H19: 50
A20: A-18 | B20: 2020-04-04 | C20: 9025 | D20: حسين - شركة القلابات | E20: تراب ناعم | F20: 32 | G20: 3.125 | H20: 100
A21: A-19 | B21: 2020-04-04 | C21: 9026 | D21: نعيم - شركة القلابات | E21: خرسانة 3/4 | F21: 16 | G21: 27.5 | H21: 440
A22: A-20 | B22: 2020-04-04 | C22: 9027 | D22: واسيم - شركة القلابات | E22: خرسانة 3/4 | F22: 16 | G22: 27.5 | H22: 440
A23: A-21 | B23: 2020-04-04 | C23: 9028 | D23: نقدي | E23: تراب ناعم | F23: 16 | G23: 3.125 | H23: 50
A24: A-22 | B24: 2020-04-04 | C24: 9029 | D24: حسين - شركة القلابات | E24: تراب ناعم | F24: 48 | G24: 3.125 | H24: 150
A25: A-23 | B25: 2020-04-04 | C25: 9030 | D25: واسيم - شركة القلابات | E25: تراب ناعم | F25: 16 | G25: 3.125 | H25: 50
A26: A-24 | B26: 2020-04-04 | C26: 9031 | D26: نقدي | E26: تراب ناعم | F26: 16 | G26: 3.125 | H26: 50
A27: A-25 | B27: 2020-04-04 | C27: 9032 | D27: واسيم - شركة القلابات | E27: تراب ناعم | F27: 16 | G27: 3.125 | H27: 50
A28: A-26 | B28: 2020-04-04 | C28: 9033 | D28: مصنع العسيري | E28: خرسانة 3/4 | F28: 24 | G28: 22.91666667 | H28: 550
A29: A-27 | B29: 2020-04-04 | C29: 9034 | D29: نقدي | E29: تراب ناعم | F29: 16 | G29: 3.125 | H29: 50
A30: A-28 | B30: 2020-04-04 | C30: 9035 | D30: مصنع العسيري | E30: خرسانة 3/8 | F30: 24 | G30: 22.91666667 | H30: 550
A31: A-29 | B31: 2020-04-04 | C31: 9036 | D31: نقدي | E31: تراب ناعم | F31: 16 | G31: 3.125 | H31: 50
A32: A-30 | B32: 2020-04-04 | C32: 9037 | D32: مصنع العسيري | E32: خرسانة 3/4 | F32: 24 | G32: 22.91666667 | H32: 550
A33: A-31 | B33: 2020-04-04 | C33: 9038 | D33: واسيم - شركة القلابات | E33: خرسانة 3/4 | F33: 16 | G33: 27.5 | H33: 440
A34: A-32 | B34: 2020-04-04 | C34: 9039 | D34: نقدي | E34: تراب ناعم | F34: 16 | G34: 3.125 | H34: 50
A35: A-33 | B35: 2020-04-04 | C35: 9040 | D35: واسيم - شركة القلابات | E35: تراب ناعم | F35: 16 | G35: 3.125 | H35: 50
A36: A-34 | B36: 2020-05-04 | C36: 9041 | D36: حسين - شركة القلابات | E36: تراب ناعم | F36: 32 | G36: 3.125 | H36: 100
A37: A-35 | B37: 2020-05-04 | C37: 9042 | D37: نقدي | E37: خرسانة 3/4 | F37: 24 | G37: 26.66666667 | H37: 640
A38: A-36 | B38: 2020-05-04 | C38: 9043 | D38: راشد الاسمري - ايجار معدات | E38: خرسانة 3/4 | F38: 16 | G38: 27.5 | H38: 440
A39: A-37 | B39: 2020-05-04 | C39: 9044 | D39: راشد الاسمري - ايجار معدات | E39: خرسانة 3/4 | F39: 8 | G39: 36.25 | H39: 290
A40: A-38 | B40: 2020-05-04 | C40: 9045 | D40: مصنع العسيري | E40: خرسانة 3/8 | F40: 24 | G40: 22.91666667 | H40: 550
A41: A-39 | B41: 2020-05-04 | C41: 9046 | D41: مصنع العسيري | E41: خرسانة 3/8 | F41: 24 | G41: 22.91666667 | H41: 550
A42: A-40 | B42: 2020-05-04 | C42: 9047 | D42: اكرام - شركة القلابات | E42: خرسانة 3/4 | F42: 16 | G42: 27.5 | H42: 440
A43: A-41 | B43: 2020-06-04 | C43: 9048 | D43: نقدي | E43: خرسانة 3/8 | F43: 8 | G43: 36.25 | H43: 290
A44: A-42 | B44: 2020-06-04 | C44: 9049 | D44: نقدي | E44: خرسانة 3/8 | F44: 24 | G44: 26.66666667 | H44: 640
A45: A-43 | B45: 2020-06-04 | C45: 9050 | D45: نقدي | E45: خرسانة 3/8 | F45: 16 | G45: 27.5 | H45: 440
A46: A-44 | B46: 2020-06-04 | C46: 9051 | D46: مصنع العسيري | E46: خرسانة 3/8 | F46: 24 | G46: 22.91666667 | H46: 550
A47: A-45 | B47: 2020-06-04 | C47: 9052 | D47: مصنع العسيري | E47: خرسانة 3/8 | F47: 24 | G47: 22.91666667 | H47: 550
A48: A-46 | B48: 2020-06-04 | C48: 9053 | D48: مصنع العسيري | E48: خرسانة 3/4 | F48: 24 | G48: 22.91666667 | H48: 550
A49: A-47 | B49: 2020-06-04 | C49: 9054 | D49: مصنع العسيري | E49: خرسانة 3/4 | F49: 24 | G49: 22.91666667 | H49: 550
A50: A-48 | B50: 2020-06-04 | C50: 9055 | D50: مصنع العسيري | E50: خرسانة 3/4 | F50: 24 | G50: 22.91666667 | H50: 550
A51: A-49 | B51: 2020-06-04 | C51: 9056 | D51: نعيم - شركة القلابات | E51: تراب ناعم | F51: 8 | G51: 31.25 | H51: 250
A52: A-50 | B52: 2020-06-04 | C52: 9057 | D52: راشد الاسمري - ايجار معدات | E52: خرسانة 3/8 | F52: 16 | G52: 27.5 | H52: 440
A53: A-51 | B53: 2020-06-04 | C53: 9058 | D53: نزير - شركة القلابات | E53: تراب ناعم | F53: 16 | G53: 3.125 | H53: 50
A54: A-52 | B54: 2020-07-04 | C54: 9059 | D54: عثمان - شركة القلابات | E54: خرسانة 3/8 | F54: 16 | G54: 27.5 | H54: 440
A55: A-53 | B55: 2020-07-04 | C55: 9060 | D55: ظافر النماص | E55: خرسانة 3/4 | F55: 16 | G55: 27.5 | H55: 440
A56: A-54 | B56: 2020-07-04 | C56: 9061 | D56: مصنع العسيري | E56: خرسانة 3/4 | F56: 24 | G56: 22.91666667 | H56: 550
A57: A-55 | B57: 2020-07-04 | C57: 9062 | D57: مصنع العسيري | E57: خرسانة 3/4 | F57: 24 | G57: 22.91666667 | H57: 550
A58: A-56 | B58: 2020-07-04 | C58: 9063 | D58: مصنع العسيري | E58: خرسانة 3/8 | F58: 24 | G58: 22.91666667 | H58: 550
A59: A-57 | B59: 2020-07-04 | C59: 9064 | D59: مصنع العسيري | E59: خرسانة 3/8 | F59: 24 | G59: 22.91666667 | H59: 550
A60: A-58 | B60: 2020-07-04 | C60: 9065 | D60: مصنع العسيري | E60: خرسانة 3/8 | F60: 24 | G60: 22.91666667 | H60: 550
A61: A-59 | B61: 2020-08-04 | C61: 9066 | D61: مصنع العسيري | E61: خرسانة 3/4 | F61: 24 | G61: 22.91666667 | H61: 550
A62: A-60 | B62: 2020-08-04 | C62: 9067 | D62: مصنع العسيري | E62: خرسانة 3/4 | F62: 24 | G62: 22.91666667 | H62: 550
A63: A-61 | B63: 2020-08-04 | C63: 9068 | D63: مصنع العسيري | E63: خرسانة 3/4 | F63: 24 | G63: 22.91666667 | H63: 550
A64: A-62 | B64: 2020-08-05 | C64: 9069 | D64: ملغية | E64: ملغية | F64: 0 | G64: - | H64: 0
A65: A-63 | B65: 2020-08-06 | C65: 9070 | D65: ملغية | E65: ملغية | F65: 0 | G65: - | H65: 0
A66: A-64 | B66: 2020-08-04 | C66: 9071 | D66: عثمان - شركة القلابات | E66: خرسانة 3/8 | F66: 16 | G66: 27.5 | H66: 440
A67: A-65 | B67: 2020-09-04 | C67: 9072 | D67: مصنع العسيري | E67: خرسانة 3/8 | F67: 24 | G67: =IFERROR(H67/F67,"-") -> 29.16666667 | H67: 700
A68: A-66 | B68: 2020-09-04 | C68: 9073 | D68: مصنع العسيري | E68: خرسانة 3/4 | F68: 24 | G68: 29.16666667 | H68: 700
A69: A-67 | B69: 2020-09-04 | C69: 9074 | D69: عثمان - شركة القلابات | E69: خرسانة 3/4 | G69: - | H69: 540
A70: A-68 | B70: 2020-09-04 | C70: 9075 | D70: مصنع العسيري | E70: خرسانة 3/4 | F70: 24 | G70: 29.16666667 | H70: 700
A71: A-69 | B71: 2020-09-04 | C71: 9076 | D71: مصنع العسيري | E71: خرسانة 3/8 | F71: 24 | G71: 29.16666667 | H71: 700
A72: A-70 | B72: 2020-11-04 | C72: 9077 | D72: نقليات سلطان مردح | E72: خرسانة 3/4 | F72: 16 | G72: 33.75 | H72: 540
A73: A-71 | B73: 2020-11-04 | C73: 9078 | D73: نقدي | E73: تراب ناعم | F73: 16 | G73: 3.125 | H73: 50
A74: A-72 | B74: 2020-11-04 | C74: 9079 | D74: نقدي | E74: خرسانة 3/4 | F74: 16 | G74: 33.75 | H74: 540
A75: A-73 | B75: 2020-11-04 | C75: 9080 | D75: مصنع العسيري | E75: خرسانة 3/4 | F75: 24 | G75: 29.16666667 | H75: 700
A76: A-74 | B76: 2020-11-04 | C76: 9081 | D76: مصنع العسيري | E76: خرسانة 3/4 | F76: 24 | G76: 29.16666667 | H76: 700
A77: A-75 | B77: 2020-11-04 | C77: 9082 | D77: مصنع العسيري | E77: خرسانة 3/8 | F77: 24 | G77: 29.16666667 | H77: 700
A78: A-76 | B78: 2020-11-04 | C78: 9083 | D78: مصنع العسيري | E78: خرسانة 3/8 | F78: 24 | G78: 29.16666667 | H78: 700
A79: A-77 | B79: 2020-11-04 | C79: 9084 | D79: نقليات سلطان مردح | E79: خرسانة 3/4 | F79: 16 | G79: 33.75 | H79: 540
A80: A-78 | B80: 2020-11-04 | C80: 9085 | D80: مخرطة إسحاق | E80: خرسانة 3/4 | F80: 24 | G80: 35.41666667 | H80: 850
A81: A-79 | B81: 2020-11-04 | C81: 9086 | D81: مؤسسة بن دروم | E81: خرسانة 3/4 | F81: 8 | G81: 43.75 | H81: 350
A82: A-80 | B82: 2020-12-04 | C82: 9087 | D82: مخرطة إسحاق | E82: خرسانة 3/4 | F82: 24 | G82: 35.41666667 | H82: 850
A83: A-81 | B83: 2020-12-04 | C83: 9088 | D83: واسيم - شركة القلابات | E83: خرسانة 3/4 | F83: 16 | G83: 33.75 | H83: 540
A84: A-82 | B84: 2020-12-04 | C84: 9089 | D84: نعيم - شركة القلابات | E84: خرسانة 3/4 | F84: 16 | G84: 33.75 | H84: 540
A85: A-83 | B85: 2020-12-04 | C85: 9090 | D85: نقدي | E85: خرسانة 3/4 | F85: 8 | G85: 36.25 | H85: 290
A86: A-84 | B86: 2020-12-04 | C86: 9091 | D86: نعيم - شركة القلابات | E86: تراب ناعم | F86: 16 | G86: 3.125 | H86: 50
A87: A-85 | B87: 2020-12-04 | C87: 9092 | D87: نقدي | E87: خرسانة 3/4 | F87: 16 | G87: 33.75 | H87: 540
A88: A-86 | B88: 2020-12-04 | C88: 9093 | D88: مصنع العسيري | E88: خرسانة 3/4 | F88: 24 | G88: 29.16666667 | H88: 700
A89: A-87 | B89: 2020-12-04 | C89: 9094 | D89: مصنع العسيري | E89: خرسانة 3/4 | F89: 24 | G89: 29.16666667 | H89: 700
A90: A-88 | B90: 2020-12-04 | C90: 9095 | D90: مصنع العسيري | E90: خرسانة 3/8 | F90: 24 | G90: 29.16666667 | H90: 700
A91: A-89 | B91: 2020-12-04 | C91: 9096 | D91: مصنع العسيري | E91: خرسانة 3/8 | F91: 24 | G91: 29.16666667 | H91: 700
A92: A-90 | B92: 2020-12-04 | C92: 9097 | D92: محمد اشرف - شركة القلابات | E92: خرسانة 3/4 | F92: 16 | G92: 33.75 | H92: 540
A93: A-91 | B93: 2020-12-04 | C93: 9098 | D93: نعيم - شركة القلابات | E93: خرسانة 3/4 | F93: 16 | G93: 33.75 | H93: 540
A94: A-92 | B94: 2020-12-04 | C94: 9099 | D94: نقدي | E94: تراب ناعم | F94: 16 | G94: 3.125 | H94: 50
A95: A-93 | B95: 2020-12-04 | C95: 9100 | D95: نقدي | E95: خرسانة 3/4 | F95: 16 | G95: 33.75 | H95: 540
A96: A-94 | B96: 13/4/2020 | C96: 9101 | D96: نقدي | E96: خرسانة 3/4 | F96: 16 | G96: 33.75 | H96: 540
A97: A-95 | B97: 13/4/2020 | C97: 9102 | D97: نقدي | E97: خرسانة 3/4 | F97: 16 | G97: 33.75 | H97: 540
A98: A-96 | B98: 13/4/2020 | C98: 9103 | D98: ملغية | E98: ملغية | F98: 0 | G98: - | H98: 0
A99: A-97 | B99: 13/4/2020 | C99: 9104 | D99: واسيم - شركة القلابات | E99: تراب ناعم | F99: 16 | G99: 3.125 | H99: 50
A100: A-98 | B100: 13/4/2020 | C100: 9105 | D100: محمد اشرف - شركة القلابات | E100: خرسانة 3/4 | F100: 16 | G100: 33.75 | H100: 540
A101: A-99 | B101: 13/4/2020 | C101: 9106 | D101: مصنع العسيري | E101: خرسانة 3/4 | F101: 24 | G101: 29.16666667 | H101: 700
A102: A-100 | B102: 13/4/2020 | C102: 9107 | D102: مصنع العسيري | E102: خرسانة 3/4 | F102: 24 | G102: 29.16666667 | H102: 700
A103: A-101 | B103: 13/4/2020 | C103: 9108 | D103: واسيم - شركة القلابات | E103: تراب ناعم | F103: 80 | G103: 3.125 | H103: 250
A104: A-102 | B104: 13/4/2020 | C104: 9109 | D104: مخرطة إسحاق | E104: خرسانة 3/4 | F104: 24 | G104: 35.41666667 | H104: 850
A105: A-103 | B105: 13/4/2020 | C105: 9110 | D105: مصنع العسيري | E105: خرسانة 3/8 | F105: 24 | G105: 29.16666667 | H105: 700
A106: A-104 | B106: 13/4/2020 | C106: 9111 | D106: مصنع العسيري | E106: خرسانة 3/8 | F106: 24 | G106: 29.16666667 | H106: 700
A107: A-105 | B107: 13/4/2020 | C107: 9112 | D107: مصنع العسيري | E107: خرسانة 3/8 | F107: 24 | G107: 29.16666667 | H107: 700
A108: A-106 | B108: 13/4/2020 | C108: 9113 | D108: نقدي | E108: تراب ناعم | F108: 32 | G108: 3.125 | H108: 100
A109: A-107 | B109: 14/4/2020 | C109: 9114 | D109: نقدي | E109: خرسانة 3/4 | F109: 16 | G109: 33.75 | H109: 540
A110: A-108 | B110: 14/4/2020 | C110: 9115 | D110: نقدي | E110: خرسانة 3/4 | F110: 16 | G110: 33.75 | H110: 540
A111: A-109 | B111: 14/4/2020 | C111: 9116 | D111: مصنع العسيري | E111: خرسانة 3/4 | F111: 24 | G111: 29.16666667 | H111: 700
A112: A-110 | B112: 14/4/2020 | C112: 9117 | D112: مصنع العسيري | E112: خرسانة 3/4 | F112: 24 | G112: 29.16666667 | H112: 700
A113: A-99 | B113: 14/4/2020 | C113: 9118 | D113: مصنع العسيري | E113: خرسانة 3/8 | F113: 24 | G113: 29.16666667 | H113: 700
A114: A-100 | B114: 14/4/2020 | C114: 9119 | D114: مصنع العسيري | E114: خرسانة 3/8 | F114: 24 | G114: 29.16666667 | H114: 700
A115: A-101 | B115: 14/4/2020 | C115: 9120 | D115: مصنع العسيري | E115: خرسانة 3/8 | F115: 24 | G115: 29.16666667 | H115: 700
A116: A-102 | B116: 15/4/2020 | C116: 9121 | D116: ناصر - شركة القلابات | E116: خرسانة 3/4 | F116: 24 | G116: 35.41666667 | H116: 850
A117: A-103 | B117: 15/4/2020 | C117: 9122 | D117: مصنع العسيري | E117: خرسانة 3/4 | F117: 24 | G117: 29.16666667 | H117: 700
A118: A-104 | B118: 15/4/2020 | C118: 9123 | D118: مصنع العسيري | E118: خرسانة 3/4 | F118: 24 | G118: 29.16666667 | H118: 700
A119: A-105 | B119: 15/4/2020 | C119: 9124 | D119: مصنع العسيري | E119: خرسانة 3/8 | F119: 24 | G119: 29.16666667 | H119: 700
A120: A-106 | B120: 15/4/2020 | C120: 9125 | D120: مصنع العسيري | E120: خرسانة 3/8 | F120: 24 | G120: 29.16666667 | H120: 700
A121: A-107 | B121: 15/4/2020 | C121: 9126 | D121: مصنع العسيري | E121: خرسانة 3/4 | F121: 24 | G121: 29.16666667 | H121: 700
A122: A-108 | B122: 16/4/2020 | C122: 9127 | D122: نقدي | E122: خرسانة 3/4 | F122: 16 | G122: 33.75 | H122: 540
A123: A-109 | B123: 16/4/2020 | C123: 9128 | D123: ناصر - شركة القلابات | E123: خرسانة 3/4 | F123: 26 | G123: 31.92307692 | H123: 830
A124: A-110 | B124: 16/4/2020 | C124: 9129 | D124: نقدي | E124: خرسانة 3/4 | F124: 16 | G124: 33.75 | H124: 540
A125: A-111 | B125: 16/4/2020 | C125: 9130 | D125: نقدي | E125: خرسانة 3/4 | F125: 16 | G125: 33.75 | H125: 540
A126: A-112 | B126: 16/4/2020 | C126: 9131 | D126: نقدي | E126: خرسانة 3/8 | F126: 16 | G126: 33.75 | H126: 540
A127: A-113 | B127: 16/4/2020 | C127: 9132 | D127: نقدي | E127: خرسانة 3/4 | F127: 16 | G127: 33.75 | H127: 540
A128: A-114 | B128: 16/4/2020 | C128: 9133 | D128: نقدي | E128: خرسانة 3/4 | F128: 16 | G128: 33.75 | H128: 540
A129: A-115 | B129: 16/4/2020 | C129: 9134 | D129: مصنع العسيري | E129: خرسانة 3/4 | F129: 24 | G129: 29.16666667 | H129: 700
A130: A-116 | B130: 16/4/2020 | C130: 9135 | D130: مصنع العسيري | E130: خرسانة 3/8 | F130: 24 | G130: 29.16666667 | H130: 700
A131: A-117 | B131: 16/4/2020 | C131: 9136 | D131: واسيم - شركة القلابات | E131: تراب ناعم | F131: 80 | G131: =IFERROR(H131/F131,"-") -> 3.125 | H131: 250
A132: A-118 | B132: 16/4/2020 | C132: 9137 | D132: مصنع العسيري | E132: خرسانة 3/4 | F132: 24 | G132: 29.16666667 | H132: 700
A133: A-119 | B133: 16/4/2020 | C133: 9138 | D133: مصنع العسيري | E133: خرسانة 3/8 | F133: 24 | G133: 29.16666667 | H133: 700
A134: A-120 | B134: 18/4/2020 | C134: 9139 | D134: مخرطة إسحاق | E134: خرسانة 3/4 | F134: 24 | G134: 35.41666667 | H134: 850
A135: A-121 | B135: 18/4/2020 | C135: 9140 | D135: مخرطة إسحاق | E135: خرسانة 3/4 | F135: 24 | G135: 35.41666667 | H135: 850
A136: A-122 | B136: 18/4/2020 | C136: 9141 | D136: نزير - شركة القلابات | E136: خرسانة 3/4 | F136: 16 | G136: 33.75 | H136: 540
A137: A-123 | B137: 18/4/2020 | C137: 9142 | D137: مصنع العسيري | E137: خرسانة 3/4 | F137: 24 | G137: 29.16666667 | H137: 700
A138: A-124 | B138: 18/4/2020 | C138: 9143 | D138: مصنع العسيري | E138: خرسانة 3/4 | F138: 24 | G138: 29.16666667 | H138: 700
A139: A-125 | B139: 18/4/2020 | C139: 9144 | D139: مصنع العسيري | E139: خرسانة 3/8 | F139: 24 | G139: 29.16666667 | H139: 700
A140: A-126 | B140: 18/4/2020 | C140: 9145 | D140: مصنع العسيري | E140: خرسانة 3/8 | F140: 24 | G140: 29.16666667 | H140: 700
A141: A-127 | B141: 18/4/2020 | C141: 9146 | D141: مصنع العسيري | E141: خرسانة 3/8 | F141: 24 | G141: 29.16666667 | H141: 700
A142: A-128 | B142: 18/4/2020 | C142: 9147 | D142: نزير - شركة القلابات | E142: خرسانة 3/4 | F142: 16 | G142: 33.75 | H142: 540
A143: A-129 | B143: 18/4/2020 | C143: 9148 | D143: نزير - شركة القلابات | E143: خرسانة 3/4 | F143: 16 | G143: 33.75 | H143: 540
A144: A-130 | B144: 19/4/2020 | C144: 9149 | D144: محمد اشرف - شركة القلابات | E144: تراب ناعم | F144: 16 | G144: 3.125 | H144: 50
A145: A-131 | B145: 19/4/2020 | C145: 9150 | D145: نزير - شركة القلابات | E145: خرسانة 3/4 | F145: 16 | G145: 33.75 | H145: 540
A146: A-132 | B146: 19/4/2020 | C146: 9151 | D146: مصنع العسيري | E146: خرسانة 3/4 | F146: 24 | G146: 29.16666667 | H146: 700
A147: A-133 | B147: 19/4/2020 | C147: 9152 | D147: مصنع العسيري | E147: خرسانة 3/4 | F147: 24 | G147: 29.16666667 | H147: 700
A148: A-134 | B148: 19/4/2020 | C148: 9153 | D148: مصنع العسيري | E148: خرسانة 3/4 | F148: 24 | G148: 29.16666667 | H148: 700
A149: A-135 | B149: 19/4/2020 | C149: 9154 | D149: مصنع العسيري | E149: خرسانة 3/8 | F149: 24 | G149: 29.16666667 | H149: 700
A150: A-136 | B150: 19/4/2020 | C150: 9155 | D150: مصنع العسيري | E150: خرسانة 3/8 | F150: 24 | G150: 29.16666667 | H150: 700
A151: A-137 | B151: 19/4/2020 | C151: 9156 | D151: نزير - شركة القلابات | E151: تراب ناعم | F151: 16 | G151: 3.125 | H151: 50
A152: A-138 | B152: 19/4/2020 | C152: 9157 | D152: محمد اشرف - شركة القلابات | E152: خرسانة 3/4 | F152: 16 | G152: 33.75 | H152: 540
A153: A-139 | B153: 19/4/2020 | C153: 9158 | D153: نقدي | E153: خرسانة 3/4 | F153: 16 | G153: 33.75 | H153: 540
A154: A-140 | B154: 19/4/2020 | C154: 9159 | D154: نقدي | E154: خرسانة 3/4 | F154: 16 | G154: 33.75 | H154: 540
A155: A-141 | B155: 20/4/2020 | C155: 9160 | D155: نقدي | E155: خرسانة 3/8 | F155: 24 | G155: 36.25 | H155: 870
A156: A-142 | B156: 20/4/2020 | C156: 9161 | D156: نقدي | E156: خرسانة 3/8 | F156: 24 | G156: 36.25 | H156: 870
A157: A-143 | B157: 21/4/2020 | C157: 9162 | D157: واسيم - شركة القلابات | E157: خرسانة 3/4 | F157: 16 | G157: 33.75 | H157: 540
A158: A-144 | B158: 21/4/2020 | C158: 9163 | D158: نقدي | E158: خرسانة 3/4 | F158: 16 | G158: 33.75 | H158: 540
A159: A-145 | B159: 21/4/2020 | C159: 9164 | D159: نقدي | E159: خرسانة 3/4 | F159: 16 | G159: 33.75 | H159: 540
A160: A-146 | B160: 21/4/2020 | C160: 9165 | D160: نقدي | E160: خرسانة 3/4 | F160: 16 | G160: 33.75 | H160: 540
A161: A-147 | B161: 21/4/2020 | C161: 9166 | D161: واسيم - شركة القلابات | E161: خرسانة 3/4 | F161: 24 | G161: 34.58333333 | H161: 830
A162: A-148 | B162: 21/4/2020 | C162: 9167 | D162: واسيم - شركة القلابات | E162: خرسانة 3/4 | F162: 16 | G162: 28.125 | H162: 450
A163: A-149 | B163: 21/4/2020 | C163: 9168 | D163: مصنع العسيري | E163: خرسانة 3/4 | F163: 24 | G163: 29.16666667 | H163: 700
A164: A-150 | B164: 21/4/2020 | C164: 9169 | D164: مصنع العسيري | E164: خرسانة 3/8 | F164: 24 | G164: 29.16666667 | H164: 700
A165: A-151 | B165: 21/4/2020 | C165: 9170 | D165: مصنع العسيري | E165: خرسانة 3/4 | F165: 24 | G165: 29.16666667 | H165: 700
A166: A-152 | B166: 21/4/2020 | C166: 9171 | D166: مصنع العسيري | E166: خرسانة 3/8 | F166: 24 | G166: 29.16666667 | H166: 700
A167: A-153 | B167: 21/4/2020 | C167: 9172 | D167: مصنع العسيري | E167: خرسانة 3/8 | F167: 24 | G167: 29.16666667 | H167: 700
A168: A-154 | B168: 21/4/2020 | C168: 9173 | D168: نقدي | E168: تراب ناعم | F168: 16 | G168: 3.125 | H168: 50
A169: A-155 | B169: 22/04/2020 | C169: 9174 | D169: نعيم - شركة القلابات | E169: خرسانة 3/4 | F169: 16 | G169: 33.75 | H169: 540
A170: A-156 | C170: 9175 | D170: واسيم - شركة القلابات | E170: خرسانة 3/4 | F170: 16 | G170: 28.125 | H170: 450
A171: A-157 | B171: 22/04/2020 | C171: 9176 | D171: نقدي | E171: خرسانة 3/8 | F171: 24 | G171: 32.5 | H171: 780
A172: A-158 | B172: 22/04/2020 | C172: 9177 | D172: مصنع العسيري | E172: خرسانة 3/4 | F172: 24 | G172: 29.16666667 | H172: 700
A173: A-159 | B173: 22/04/2020 | C173: 9178 | D173: مصنع العسيري | E173: خرسانة 3/8 | F173: 24 | G173: 29.16666667 | H173: 700
A174: A-160 | B174: 22/04/2020 | C174: 9179 | D174: مصنع العسيري | E174: خرسانة 3/8 | F174: 24 | G174: 29.16666667 | H174: 700
A175: A-161 | B175: 22/04/2020 | C175: 9180 | D175: مصنع العسيري | E175: خرسانة 3/8 | F175: 24 | G175: 29.16666667 | H175: 700
A176: A-162 | B176: 22/04/2020 | C176: 9181 | D176: مصنع العسيري | E176: خرسانة 3/8 | F176: 24 | G176: 29.16666667 | H176: 700
A177: A-163 | B177: 23/4/2020 | C177: 9182 | D177: نقدي | E177: خرسانة 3/4 | F177: 16 | G177: 33.75 | H177: 540
A178: A-164 | B178: 23/4/2020 | C178: 9183 | D178: مصنع العسيري | E178: خرسانة 3/4 | F178: 24 | G178: 29.16666667 | H178: 700
A179: A-165 | B179: 23/4/2020 | C179: 9184 | D179: مصنع العسيري | E179: خرسانة 3/4 | F179: 24 | G179: 29.16666667 | H179: 700
A180: A-166 | B180: 23/4/2020 | C180: 9185 | D180: مصنع العسيري | E180: خرسانة 3/4 | F180: 24 | G180: 29.16666667 | H180: 700
A181: A-167 | B181: 23/4/2020 | C181: 9186 | D181: مصنع العسيري | E181: خرسانة 3/4 | F181: 24 | G181: 29.16666667 | H181: 700
A182: A-168 | B182: 23/4/2020 | C182: 9187 | D182: ناصر - شركة القلابات | E182: خرسانة 3/4 | F182: 18 | G182: 28.88888889 | H182: 520
A183: A-169 | B183: 23/4/2020 | C183: 9187 | D183: نقدي | E183: خرسانة 3/4 | F183: 8 | G183: 38.75 | H183: 310
A184: A-170 | B184: 25/4/2020 | C184: 9188 | D184: مصنع العسيري | E184: خرسانة 3/4 | F184: 24 | G184: 29.16666667 | H184: 700
A185: A-171 | B185: 25/4/2020 | C185: 9189 | D185: مصنع العسيري | E185: خرسانة 3/4 | F185: 24 | G185: 29.16666667 | H185: 700
A186: A-172 | B186: 25/4/2020 | C186: 9190 | D186: مصنع العسيري | E186: خرسانة 3/4 | F186: 24 | G186: 29.16666667 | H186: 700
A187: A-173 | B187: 25/4/2020 | C187: 9191 | D187: مصنع العسيري | E187: خرسانة 3/8 | F187: 24 | G187: 29.16666667 | H187: 700
A188: A-174 | B188: 25/4/2020 | C188: 9192 | D188: مصنع العسيري | E188: خرسانة 3/8 | F188: 24 | G188: 29.16666667 | H188: 700
A189: A-175 | B189: 25/4/2020 | C189: 9193 | D189: عثمان - شركة القلابات | E189: خرسانة 3/4 | F189: 16 | G189: 33.75 | H189: 540
A190: A-176 | B190: 25/4/2020 | C190: 9194 | D190: نقدي | E190: تراب ناعم | F190: 16 | G190: 3.125 | H190: 50
A191: A-177 | B191: 25/4/2020 | C191: 9195 | D191: راشد الاسمري - ايجار معدات | E191: خرسانة 3/4 | F191: 16 | G191: 33.75 | H191: 540
A192: A-178 | B192: 25/4/2020 | C192: 9196 | D192: واسيم - شركة القلابات | E192: خرسانة 3/4 | F192: 16 | G192: 33.75 | H192: 540
A193: A-179 | B193: 26/4/2020 | C193: 9197 | D193: نقدي | E193: خرسانة 3/4 | F193: 16 | G193: 33.75 | H193: 540
A194: A-180 | B194: 26/4/2020 | C194: 9198 | D194: نقدي | E194: خرسانة 3/4 | F194: 16 | G194: 33.75 | H194: 540
A195: A-181 | B195: 26/4/2020 | C195: 9199 | D195: نقدي | E195: خرسانة 3/4 | F195: 16 | G195: 33.75 | H195: 540
A196: A-182 | B196: 26/4/2020 | C196: 9200 | D196: نقدي | E196: خرسانة 3/4 | F196: 16 | G196: 33.75 | H196: 540
A197: A-183 | B197: 26/4/2020 | C197: 9201 | D197: مصنع العسيري | E197: خرسانة 3/4 | F197: 24 | G197: 29.16666667 | H197: 700
A198: A-184 | B198: 26/4/2020 | C198: 9202 | D198: مصنع العسيري | E198: خرسانة 3/4 | F198: 24 | G198: 29.16666667 | H198: 700
A199: A-185 | B199: 26/4/2020 | C199: 9203 | D199: مصنع العسيري | E199: خرسانة 3/8 | F199: 24 | G199: 29.16666667 | H199: 700
A200: A-186 | B200: 27/4/2020 | C200: 9204 | D200: مصنع العسيري | E200: خرسانة 3/4 | F200: 24 | G200: 29.16666667 | H200: 700
... 50 more rows

Sheet مايو
A1: تقرير مبيعات كسارة مايو 2020
A2: S.N | B2: DATE | C2: NUMBER | D2: العميل | E2: نوع المواد | F2: QUANTITY | G2: PRICE | H2: AMOUNT | J2: بيان بقيمة الخرسانة المحملة علي شركة القلابات عن شهر ديسمبر 2019م | T2: اجمالى المبييعات | W2: =H149 -> 16550
A3: A-1 | B3: 2020-02-05 | C3: 9231 | D3: نعيم - شركة القلابات | E3: خرسانة 3/4 | F3: 16 | G3: =IFERROR(H3/F3,"-") -> 33.75 | H3: 540 | J3: الإجمالي | K3: واسيم - شركة القلابات | L3: محمد اشرف - شركة القلابات | M3: نعيم - شركة القلابات | N3: اكرام - شركة القلابات | O3: ناصر - شركة القلابات | P3: العمري - شركة القلابات | Q3: عثمان - شركة القلابات | R3: نزير - شركة القلابات | T3: مسلسل | U3: التاريخ | V3: رقم المستند | W3: ايداع | X3: الرصيد المتبقى | Y3: ملاحظات
A4: A-2 | B4: 2020-02-05 | C4: 9232 | D4: نقدي | E4: خرسانة 3/4 | F4: 16 | G4: 33.75 | H4: 540 | J4: =SUM(K4:R4) -> 14410 | K4: =SUMIF(D3:D147,K3:R3,H3:H147) -> 3100 | L4: =SUMIF(D3:D147,K3:R3,H3:H147) -> 2750 | M4: =SUMIF(D3:D147,K3:R3,H3:H147) -> 5260 | N4: =SUMIF(D3:D147,K3:R3,H3:H147) -> 0 | O4: =SUMIF(D3:D147,K3:R3,H3:H147) -> 0 | P4: =SUMIF(D3:D147,K3:R3,H3:H147) -> 0 | Q4: =SUMIF(D3:D147,K3:R3,H3:H147) -> 2700 | R4: =SUMIF(D3:D147,K3:R3,H3:H147) -> 600 | U4: 2020-06-02 | W4: 4425 | X4: =W2-W15 -> 1970 | Y4: ايداع في حساب الشركة
A5: A-3 | B5: 2020-02-05 | C5: 9233 | D5: نقدي | E5: خرسانة 3/4 | F5: 16 | G5: 33.75 | H5: 540 | U5: 13/02/2020 | W5: 3520 | Y5: ايداع في حساب الشركة
A6: A-4 | B6: 2020-02-05 | C6: 9234 | D6: نقدي | E6: خرسانة 3/4 | F6: 16 | G6: 33.75 | H6: 540 | U6: 16/02/2020 | W6: 2000 | Y6: ايداع في حساب الشركة
A7: A-5 | B7: 2020-02-05 | C7: 9235 | D7: عثمان - شركة القلابات | E7: خرسانة 3/4 | F7: 16 | G7: 33.75 | H7: 540 | U7: 16/02/2020 | W7: 2005 | Y7: ايداع في حساب الشركة
A8: A-6 | B8: 2020-02-05 | C8: 9236 | D8: واسيم - شركة القلابات | E8: تراب ناعم | F8: 16 | G8: 3.125 | H8: 50 | U8: 23/02/2020 | W8: 2630 | Y8: ايداع في حساب الشركة
A9: A-7 | B9: 2020-03-05 | C9: 9237 | D9: نقدي | E9: خرسانة 3/4 | F9: 16 | G9: 33.75 | H9: 540 | Y9: 0
A10: A-8 | B10: 2020-03-05 | C10: 9238 | D10: عثمان - شركة القلابات | E10: خرسانة 3/4 | F10: 16 | G10: 33.75 | H10: 540
A11: A-9 | B11: 2020-03-05 | C11: 9239 | D11: مصنع العسيري | E11: خرسانة 3/4 | F11: 24 | G11: 29.16666667 | H11: 700
A12: A-10 | B12: 2020-03-05 | C12: 9240 | D12: مصنع العسيري | E12: خرسانة 3/4 | F12: 24 | G12: 29.16666667 | H12: 700
A13: A-11 | B13: 2020-03-05 | C13: 9241 | D13: مصنع العسيري | E13: خرسانة 3/8 | F13: 24 | G13: 29.16666667 | H13: 700
A14: A-12 | B14: 2020-03-05 | C14: 9242 | D14: مصنع العسيري | E14: خرسانة 3/8 | F14: 24 | G14: 29.16666667 | H14: 700
A15: A-13 | B15: 2020-03-05 | C15: 9243 | D15: راشد الاسمري - ايجار معدات | E15: خرسانة 3/8 | F15: 8 | G15: 43.75 | H15: 350 | T15: اجمالى الايداعات | W15: =SUM(W4:W14) -> 14580
A16: A-14 | B16: 2020-03-05 | C16: 9244 | D16: نقدي | E16: خرسانة 3/4 | F16: 16 | G16: 33.75 | H16: 540
A17: A-15 | B17: 2020-04-05 | C17: 9245 | D17: نقدي | E17: تراب ناعم | F17: 16 | G17: 3.125 | H17: 50
A18: A-16 | B18: 2020-04-05 | C18: 9246 | D18: مصنع العسيري | E18: خرسانة 3/4 | F18: 24 | G18: 29.16666667 | H18: 700
A19: A-17 | B19: 2020-04-05 | C19: 9247 | D19: نقدي | E19: خرسانة 3/4 | F19: 16 | G19: 34.375 | H19: 550
A20: A-18 | B20: 2020-04-05 | C20: 9248 | D20: مصنع العسيري | E20: خرسانة 3/4 | F20: 24 | G20: 29.16666667 | H20: 700
A21: A-19 | B21: 2020-04-05 | C21: 9249 | D21: مصنع العسيري | E21: خرسانة 3/8 | F21: 24 | G21: 29.16666667 | H21: 700
A22: A-20 | B22: 2020-04-05 | C22: 9250 | D22: مصنع العسيري | E22: خرسانة 3/8 | F22: 24 | G22: 29.16666667 | H22: 700
A23: A-21 | B23: 2020-04-05 | C23: 9251 | D23: عثمان - شركة القلابات | E23: خرسانة 3/4 | F23: 16 | G23: 33.75 | H23: 540
A24: A-22 | B24: 2020-05-05 | C24: 9252 | D24: محمد اشرف - شركة القلابات | E24: خرسانة 3/4 | F24: 16 | G24: 33.75 | H24: 540
A25: A-23 | B25: 2020-05-05 | C25: 9253 | D25: نقدي | E25: خرسانة 3/4 | F25: 16 | G25: 33.75 | H25: 540
A26: A-24 | B26: 2020-05-05 | C26: 9254 | D26: نقدي | E26: خرسانة 3/4 | F26: 16 | G26: 33.75 | H26: 540
A27: A-25 | B27: 2020-05-05 | C27: 9255 | D27: نقدي | E27: خرسانة 3/4 | F27: 16 | G27: 33.75 | H27: 540
A28: A-26 | B28: 2020-05-05 | C28: 9256 | D28: مصنع العسيري | E28: خرسانة 3/4 | F28: 24 | G28: 29.16666667 | H28: 700
A29: A-27 | B29: 2020-05-05 | C29: 9257 | D29: مصنع العسيري | E29: خرسانة 3/4 | F29: 24 | G29: 29.16666667 | H29: 700
A30: A-28 | B30: 2020-05-05 | C30: 9258 | D30: مصنع العسيري | E30: خرسانة 3/8 | F30: 24 | G30: 29.16666667 | H30: 700
A31: A-29 | B31: 2020-06-05 | C31: 9259 | D31: محمد اشرف - شركة القلابات | E31: خرسانة 3/4 | F31: 16 | G31: 33.75 | H31: 540
A32: A-30 | B32: 2020-06-05 | C32: 9260 | D32: نقدي | E32: خرسانة 3/4 | F32: 16 | G32: 33.75 | H32: 540
A33: A-31 | B33: 2020-06-05 | C33: 9261 | D33: نقدي | E33: تراب ناعم | F33: 16 | G33: 3.125 | H33: 50
A34: A-32 | B34: 2020-06-05 | C34: 9262 | D34: مصنع العسيري | E34: خرسانة 3/4 | F34: 24 | G34: 29.16666667 | H34: 700
A35: A-33 | B35: 2020-06-05 | C35: 9263 | D35: مصنع العسيري | E35: خرسانة 3/4 | F35: 24 | G35: 29.16666667 | H35: 700
A36: A-34 | B36: 2020-06-05 | C36: 9264 | D36: مصنع العسيري | E36: خرسانة 3/8 | F36: 24 | G36: 29.16666667 | H36: 700
A37: A-35 | B37: 2020-06-05 | C37: 9265 | D37: مصنع العسيري | E37: خرسانة 3/8 | F37: 24 | G37: 29.16666667 | H37: 700
A38: A-36 | B38: 2020-07-05 | C38: 9266 | D38: واسيم - شركة القلابات | E38: خرسانة 3/4 | F38: 16 | G38: 33.75 | H38: 540
A39: A-37 | B39: 2020-07-05 | C39: 9267 | D39: مصنع العسيري | E39: خرسانة 3/4 | F39: 24 | G39: 29.16666667 | H39: 700
A40: A-38 | B40: 2020-07-05 | C40: 9268 | D40: مصنع العسيري | E40: خرسانة 3/4 | F40: 24 | G40: 29.16666667 | H40: 700
A41: A-39 | B41: 2020-07-05 | C41: 9269 | D41: مصنع العسيري | E41: خرسانة 3/8 | F41: 24 | G41: 29.16666667 | H41: 700
A42: A-40 | B42: 2020-07-05 | C42: 9270 | D42: مصنع العسيري | E42: خرسانة 3/8 | F42: 24 | G42: 29.16666667 | H42: 700
A43: A-41 | B43: 2020-07-05 | C43: 9271 | D43: عثمان - شركة القلابات | E43: خرسانة 3/4 | F43: 16 | G43: 33.75 | H43: 540
A44: A-42 | B44: 2020-09-05 | C44: 9272 | D44: عثمان - شركة القلابات | E44: خرسانة 3/4 | F44: 16 | G44: 33.75 | H44: 540
A45: A-43 | B45: 2020-10-05 | C45: 9273 | D45: نقدي | E45: تراب ناعم | F45: 32 | G45: 3.125 | H45: 100
A46: A-44 | B46: 2020-10-05 | C46: 9274 | D46: مصنع العسيري | E46: خرسانة 3/4 | F46: 24 | G46: 29.16666667 | H46: 700
A47: A-45 | B47: 2020-10-05 | C47: 9275 | D47: مصنع العسيري | E47: خرسانة 3/4 | F47: 24 | G47: 29.16666667 | H47: 700
A48: A-46 | B48: 2020-10-05 | C48: 9276 | D48: مصنع العسيري | E48: خرسانة 3/8 | F48: 24 | G48: 29.16666667 | H48: 700
A49: A-47 | B49: 2020-10-05 | C49: 9277 | D49: مصنع العسيري | E49: خرسانة 3/8 | F49: 24 | G49: 29.16666667 | H49: 700
A50: A-48 | B50: 2020-10-05 | C50: 9278 | D50: نقدي | E50: تراب ناعم | F50: 32 | G50: 3.125 | H50: 100
A51: A-49 | B51: 2020-11-05 | C51: 9279 | D51: نقدي | E51: تراب ناعم | F51: 16 | G51: 3.125 | H51: 50
A52: A-50 | B52: 2020-11-05 | C52: 9280 | D52: نقدي | E52: خرسانة 3/4 | F52: 16 | G52: 33.75 | H52: 540
A53: A-51 | B53: 2020-11-05 | C53: 9281 | D53: نقدي | E53: تراب ناعم | F53: 16 | G53: 6.25 | H53: 100
A54: A-52 | B54: 2020-11-05 | C54: 9282 | D54: نقدي | E54: خرسانة 3/4 | F54: 16 | G54: 33.75 | H54: 540
A55: A-53 | B55: 2020-11-05 | C55: 9283 | D55: نقدي | E55: خرسانة 3/4 | F55: 16 | G55: 33.75 | H55: 540
A56: A-54 | B56: 2020-11-05 | C56: 9284 | D56: نقدي | E56: خرسانة 3/4 | F56: 16 | G56: 33.75 | H56: 540
A57: A-55 | B57: 2020-11-05 | C57: 9285 | D57: نقدي | E57: خرسانة 3/4 | F57: 16 | G57: 33.75 | H57: 540
A58: A-56 | B58: 2020-11-05 | C58: 9286 | D58: مصنع العسيري | E58: خرسانة 3/8 | F58: 24 | G58: 29.16666667 | H58: 700
A59: A-57 | B59: 2020-11-05 | C59: 9287 | D59: واسيم - شركة القلابات | E59: خرسانة 3/4 | F59: 16 | G59: 33.75 | H59: 540
A60: A-58 | B60: 2020-12-05 | C60: 9288 | D60: محمد اشرف - شركة القلابات | E60: خرسانة 3/4 | F60: 16 | G60: 33.75 | H60: 540
A61: A-59 | B61: 2020-12-05 | C61: 9289 | D61: نزير - شركة القلابات | E61: تراب ناعم | F61: 16 | G61: 3.125 | H61: 50
A62: A-60 | B62: 2020-12-05 | C62: 9290 | D62: نعيم - شركة القلابات | E62: خرسانة 3/4 | F62: 16 | G62: 33.75 | H62: 540
A63: A-61 | B63: 2020-12-05 | C63: 9291 | D63: محمد اشرف - شركة القلابات | E63: خرسانة 3/4 | F63: 16 | G63: 33.75 | H63: 540
A64: A-62 | B64: 2020-12-05 | C64: 9292 | D64: نزير - شركة القلابات | E64: تراب ناعم | F64: 32 | G64: 3.125 | H64: 100
A65: A-63 | B65: 2020-12-05 | C65: 9293 | D65: نعيم - شركة القلابات | E65: خرسانة 3/4 | F65: 16 | G65: 33.75 | H65: 540
A66: A-64 | B66: 2020-12-05 | C66: 9294 | D66: نعيم - شركة القلابات | E66: خرسانة 3/4 | F66: 16 | G66: 33.75 | H66: 540
A67: A-65 | B67: 2020-05-13 | C67: 9295 | D67: نزير - شركة القلابات | E67: تراب ناعم | F67: 48 | G67: =IFERROR(H67/F67,"-") -> 3.125 | H67: 150
A68: A-66 | B68: 2020-05-13 | C68: 9296 | D68: واسيم - شركة القلابات | E68: تراب ناعم | F68: 16 | G68: 3.125 | H68: 50
A69: A-67 | B69: 2020-05-13 | C69: 9297 | D69: نقدي | E69: خرسانة 3/4 | F69: 14 | G69: 35.71428571 | H69: 500
A70: A-68 | B70: 2020-05-13 | C70: 9298 | D70: نعيم - شركة القلابات | E70: تراب ناعم | F70: 32 | G70: 3.125 | H70: 100
A71: A-69 | B71: 2020-05-13 | C71: 9299 | D71: عابد الله - شركة القلابات | E71: خرسانة 3/4 | F71: 16 | G71: 33.75 | H71: 540
A72: A-70 | B72: 2020-04-14 | C72: 9300 | D72: ظافر النماص | E72: بودرة | F72: 16 | G72: 28.125 | H72: 450
A73: A-71 | B73: 2020-04-14 | C73: 9301 | D73: نقدي | E73: تراب ناعم | F73: 32 | G73: 3.125 | H73: 100
A74: A-72 | B74: 2020-04-14 | C74: 9302 | D74: نعيم - شركة القلابات | E74: تراب ناعم | F74: 48 | G74: 3.125 | H74: 150
A75: A-73 | B75: 2020-04-14 | C75: 9303 | D75: محمد اشرف - شركة القلابات | E75: تراب ناعم | F75: 16 | G75: 3.125 | H75: 50
A76: A-74 | B76: 2020-04-14 | C76: 9304 | D76: محمد اشرف - شركة القلابات | E76: خرسانة 3/4 | F76: 16 | G76: 33.75 | H76: 540
A77: A-75 | B77: 2020-04-14 | C77: 9305 | D77: نزير - شركة القلابات | E77: تراب ناعم | F77: 48 | G77: 3.125 | H77: 150
A78: A-76 | B78: 2020-04-14 | C78: 9306 | D78: مصنع العسيري | E78: خرسانة 3/8 | F78: 24 | G78: 29.16666667 | H78: 700
A79: A-77 | B79: 2020-04-14 | C79: 9307 | D79: ظافر النماص | E79: بودرة | F79: 16 | G79: 28.125 | H79: 450
A80: A-78 | B80: 2020-04-14 | C80: 9308 | D80: مصنع العسيري | E80: خرسانة 3/8 | F80: 24 | G80: 29.16666667 | H80: 700
A81: A-79 | B81: 2020-05-16 | C81: 9309 | D81: نعيم - شركة القلابات | E81: تراب ناعم | F81: 48 | G81: 3.125 | H81: 150
A82: A-80 | B82: 2020-05-16 | C82: 9310 | D82: نزير - شركة القلابات | E82: تراب ناعم | F82: 48 | G82: 3.125 | H82: 150
A83: A-81 | B83: 2020-05-16 | C83: 9311 | D83: نقدي | E83: خرسانة 3/4 | F83: 16 | G83: 33.75 | H83: 540
A84: A-82 | B84: 2020-05-16 | C84: 9312 | D84: نقدي | E84: خرسانة 3/4 | F84: 16 | G84: 33.75 | H84: 540
A85: A-83 | B85: 2020-05-16 | C85: 9313 | D85: ظافر النماص | E85: بودرة | F85: 16 | G85: 28.125 | H85: 450
A86: A-84 | B86: 2020-05-16 | C86: 9314 | D86: واسيم - شركة القلابات | E86: تراب ناعم | F86: 80 | G86: 3.125 | H86: 250
A87: A-85 | B87: 2020-05-16 | C87: 9315 | D87: ظافر النماص | E87: بودرة | F87: 16 | G87: 28.125 | H87: 450
A88: A-86 | B88: 2020-05-16 | C88: 9316 | D88: مصنع العسيري | E88: خرسانة 3/8 | F88: 24 | G88: 29.16666667 | H88: 700
A89: A-87 | B89: 2020-05-16 | C89: 9317 | D89: مصنع العسيري | E89: خرسانة 3/8 | F89: 24 | G89: 29.16666667 | H89: 700
A90: A-88 | B90: 2020-05-16 | C90: 9318 | D90: مصنع العسيري | E90: خرسانة 3/8 | F90: 24 | G90: 29.16666667 | H90: 700
A91: A-89 | B91: 2020-05-16 | C91: 9319 | D91: مصنع العسيري | E91: خرسانة 3/8 | F91: 24 | G91: 29.16666667 | H91: 700
A92: A-90 | B92: 2020-05-16 | C92: 9320 | D92: راشد الاسمري - ايجار معدات | E92: خرسانة 3/4 | F92: 16 | G92: 33.75 | H92: 540
A93: A-91 | B93: 2020/15/17 | C93: 9321 | D93: مصنع العسيري | E93: خرسانة 3/8 | F93: 24 | G93: 29.16666667 | H93: 700
A94: A-92 | B94: 2020/15/17 | C94: 9322 | D94: مصنع العسيري | E94: خرسانة 3/8 | F94: 24 | G94: 29.16666667 | H94: 700
A95: A-93 | B95: 2020-05-18 | C95: 9323 | D95: نقدي | E95: خرسانة 3/4 | F95: 16 | G95: 33.75 | H95: 540
A96: A-94 | B96: 2020-05-18 | C96: 9324 | D96: مصنع العسيري | E96: خرسانة 3/8 | F96: 24 | G96: 29.16666667 | H96: 700
A97: A-95 | B97: 2020-05-18 | C97: 9325 | D97: مصنع العسيري | E97: خرسانة 3/8 | F97: 24 | G97: 29.16666667 | H97: 700
A98: A-96 | B98: 2020-05-18 | C98: 9326 | D98: نقدي | E98: خرسانة 3/4 | F98: 16 | G98: 33.75 | H98: 540
A99: A-97 | B99: 2020-05-18 | C99: 9327 | D99: مصنع العسيري | E99: خرسانة 3/8 | F99: 24 | G99: 29.16666667 | H99: 700
A100: A-98 | B100: 2020-05-19 | C100: 9328 | D100: نقدي | E100: خرسانة 3/4 | F100: 16 | G100: 33.75 | H100: 540
A101: A-99 | B101: 2020-05-19 | C101: 9329 | D101: نقدي | E101: تراب ناعم | F101: 80 | G101: 3.125 | H101: 250
A102: A-100 | B102: 2020-05-19 | C102: 9330 | D102: واسيم - شركة القلابات | E102: خرسانة 3/4 | F102: 16 | G102: 33.75 | H102: 540
A103: A-101 | B103: 2020-05-19 | C103: 9331 | D103: مصنع العسيري | E103: خرسانة 3/4 | F103: 24 | G103: 29.16666667 | H103: 700
A104: A-102 | B104: 2020-05-19 | C104: 9332 | D104: مصنع العسيري | E104: خرسانة 3/8 | F104: 24 | G104: 29.16666667 | H104: 700
A105: A-103 | B105: 2020-05-19 | C105: 9333 | D105: مصنع العسيري | E105: خرسانة 3/8 | F105: 24 | G105: 29.16666667 | H105: 700
A106: A-104 | B106: 2020-05-19 | C106: 9334 | D106: نقدي | E106: تراب ناعم | F106: 16 | G106: 3.125 | H106: 50
A107: A-105 | B107: 2020-05-19 | C107: 9335 | D107: ملغية | E107: خرسانة 3/8 | F107: 0 | G107: - | H107: 0 | I107: 24
A108: A-106 | B108: 2020-05-19 | C108: 9336 | D108: واسيم - شركة القلابات | E108: خرسانة 3/8 | F108: 16 | G108: 33.75 | H108: 540
A109: A-107 | B109: 2020-05-20 | C109: 9337 | D109: نقدي | E109: تراب ناعم | F109: 32 | G109: 3.125 | H109: 100
A110: A-108 | B110: 2020-05-20 | C110: 9338 | D110: نعيم - شركة القلابات | E110: خرسانة 3/8 | F110: 16 | G110: 33.75 | H110: 540
A111: A-109 | B111: 2020-05-20 | C111: 9339 | D111: سعيد جذينان | E111: خرسانة 3/4 | F111: 24 | G111: 25 | H111: 600
A112: A-110 | B112: 2020-05-20 | C112: 9340 | D112: سعيد جذينان | E112: خرسانة 3/4 | F112: 24 | G112: 25 | H112: 600
A113: A-99 | B113: 2020-05-20 | C113: 9341 | D113: سعيد جذينان | E113: خرسانة 3/4 | F113: 24 | G113: 25 | H113: 600
A114: A-100 | B114: 2020-05-20 | C114: 9342 | D114: سعيد جذينان | E114: خرسانة 3/4 | F114: 24 | G114: 25 | H114: 600
A115: A-101 | B115: 2020-05-20 | C115: 9343 | D115: سعيد جذينان | E115: خرسانة 3/4 | F115: 24 | G115: 25 | H115: 600
A116: A-102 | B116: 2020-05-20 | C116: 9344 | D116: مصنع العسيري | E116: خرسانة 3/8 | F116: 24 | G116: 29.16666667 | H116: 700
A117: A-103 | B117: 2020-05-20 | C117: 9345 | D117: مصنع العسيري | E117: خرسانة 3/8 | F117: 24 | G117: 29.16666667 | H117: 700
A118: A-104 | B118: 2020-05-20 | C118: 9346 | D118: مصنع العسيري | E118: خرسانة 3/8 | F118: 24 | G118: 29.16666667 | H118: 700
A119: A-105 | B119: 2020-05-20 | C119: 9347 | D119: مصنع العسيري | E119: خرسانة 3/8 | F119: 24 | G119: 29.16666667 | H119: 700
A120: A-106 | B120: 2020-05-20 | C120: 9348 | D120: مصنع العسيري | E120: خرسانة 3/8 | F120: 24 | G120: 29.16666667 | H120: 700
A121: A-107 | B121: 2020-05-20 | C121: 9349 | D121: مصنع العسيري | E121: خرسانة 3/8 | F121: 24 | G121: 29.16666667 | H121: 700
A122: A-108 | B122: 2020-05-20 | C122: 9350 | D122: مصنع العسيري | E122: خرسانة 3/8 | F122: 24 | G122: 29.16666667 | H122: 700
A123: A-109 | B123: 2020-05-20 | C123: 9351 | D123: مصنع العسيري | E123: خرسانة 3/8 | F123: 24 | G123: 29.16666667 | H123: 700
A124: A-110 | B124: 2020-05-20 | C124: 9352 | D124: نقدي | E124: تراب ناعم | F124: 16 | G124: 3.125 | H124: 50
A125: A-111 | B125: 2020-05-20 | C125: 9353 | D125: نقدي | E125: خرسانة 3/4 | F125: 16 | G125: 33.75 | H125: 540
A126: A-112 | B126: 2020-05-21 | C126: 9354 | D126: نعيم - شركة القلابات | E126: خرسانة 3/4 | F126: 16 | G126: 33.75 | H126: 540
A127: A-113 | B127: 2020-05-21 | C127: 9355 | D127: نعيم - شركة القلابات | E127: خرسانة 3/4 | F127: 16 | G127: 33.75 | H127: 540
A128: A-114 | B128: 2020-05-21 | C128: 9356 | D128: نقدي | E128: تراب ناعم | F128: 16 | G128: 3.125 | H128: 50
A129: A-115 | B129: 2020-05-28 | C129: 9357 | D129: نقدي | E129: خرسانة 3/4 | F129: 16 | G129: 33.75 | H129: 540
A130: A-116 | B130: 2020-05-28 | C130: 9358 | D130: واسيم - شركة القلابات | E130: خرسانة 3/4 | F130: 16 | G130: 33.75 | H130: 540
A131: A-117 | B131: 2020-05-28 | C131: 9359 | D131: واسيم - شركة القلابات | E131: تراب ناعم | F131: 16 | G131: =IFERROR(H131/F131,"-") -> 3.125 | H131: 50
A132: A-118 | B132: 2020-05-28 | C132: 9360 | D132: نعيم - شركة القلابات | E132: خرسانة 3/4 | F132: 16 | G132: 33.75 | H132: 540
A133: A-119 | B133: 2020-05-30 | C133: 9361 | D133: نعيم - شركة القلابات | E133: خرسانة 3/4 | F133: 16 | G133: 33.75 | H133: 540
A134: A-120 | B134: 2020-05-30 | C134: 9362 | D134: نقدي | E134: تراب ناعم | F134: 16 | G134: 3.125 | H134: 50
A135: A-121 | B135: 2020-05-30 | C135: 9363 | D135: نقدي | E135: خرسانة 3/8 | F135: 8 | G135: 43.75 | H135: 350
A136: A-122 | B136: 2020-05-30 | C136: 9364 | D136: نقدي | E136: خرسانة 3/8 | F136: 16 | G136: 31.25 | H136: 500
A137: A-123 | B137: 2020-05-30 | C137: 9365 | D137: مصنع العسيري | E137: خرسانة 3/8 | F137: 24 | G137: 29.16666667 | H137: 700
A138: A-124 | B138: 2020-05-30 | C138: 9366 | D138: مصنع العسيري | E138: خرسانة 3/8 | F138: 24 | G138: 29.16666667 | H138: 700
A139: A-125 | B139: 2020-05-31 | C139: 9367 | D139: ظافر النماص | E139: خرسانة 3/4 | F139: 16 | G139: 28.125 | H139: 450
A140: A-126 | B140: 2020-05-31 | C140: 9368 | D140: نقدي | E140: خرسانة 3/4 | F140: 16 | G140: 33.75 | H140: 540
A141: A-127 | B141: 2020-05-31 | C141: 9369 | D141: نقدي | E141: خرسانة 3/4 | F141: 16 | G141: 33.75 | H141: 540
A142: A-128 | B142: 2020-05-31 | C142: 9370 | D142: مصنع العسيري | E142: خرسانة 3/8 | F142: 24 | G142: 29.16666667 | H142: 700
A143: A-129 | B143: 2020-05-31 | C143: 9371 | D143: نقدي | E143: خرسانة 3/4 | F143: 16 | G143: 33.75 | H143: 540
A144: A-130 | B144: 2020-05-31 | C144: 9372 | D144: نقدي | E144: خرسانة 3/4 | F144: 16 | G144: 33.75 | H144: 540
A145: A-131 | B145: 2020-05-31 | C145: 9373 | D145: مصنع العسيري | E145: خرسانة 3/8 | F145: 24 | G145: 29.16666667 | H145: 700
A146: A-132 | B146: 2020-05-31 | C146: 9374 | D146: مصنع العسيري | E146: خرسانة 3/8 | F146: 24 | G146: 29.16666667 | H146: 700
A147: A-133 | B147: 2020-05-31 | C147: 9375 | D147: نقدي | E147: تراب ناعم | F147: 16 | G147: 3.125 | H147: 50
B148: TOTAL | F148: =SUBTOTAL(109,F3:F147) -> 3118 | H148: =SUBTOTAL(109,H3:H147) -> 73340
D149: نقدي | F149: =SUMIF($D$3:$D$147,D149,$F$3:$F$147) -> 806 | G149: =IFERROR(H149/F149,"-") -> 20.53349876 | H149: =SUMIF($D$3:$D$147,D149,$H$3:$H$147) -> 16550
D150: راشد الاسمري - ايجار معدات | F150: 24 | G150: 37.08333333 | H150: 890
D151: واسيم - شركة القلابات | F151: 208 | G151: 14.90384615 | H151: 3100
D152: عثمان - شركة القلابات | F152: 80 | G152: 33.75 | H152: 2700
D153: نعيم - شركة القلابات | F153: 272 | G153: 19.33823529 | H153: 5260
D154: مصنع العسيري | F154: 1224 | G154: 29.16666667 | H154: 35700
D155: نزير - شركة القلابات | F155: 192 | G155: 3.125 | H155: 600
D156: عابد الله - شركة القلابات | F156: 16 | G156: 33.75 | H156: 540
D157: ظافر النماص | F157: 80 | G157: 28.125 | H157: 2250
D158: محمد اشرف - شركة القلابات | F158: 96 | G158: 28.64583333 | H158: 2750
D159: سعيد جذينان | F159: 120 | G159: 25 | H159: 3000
A160: TOTAL | F160: =SUM(F149:F159) -> 3118 | G160: =SUBTOTAL(109,G3:G158) -> 3999.135699 | H160: =SUM(H149:H159) -> 73340
E161: القيمة المضافة | F161: الإيرادات | G161: المبيعات
E162: =G162-F162 -> 3492.380952 | F162: =G162/1.05 -> 69847.61905 | G162: =H148 -> 73340
E165: نوع المواد | F165: QUANTITY | G165: PRICE | H165: AMOUNT | I165: الإيرادات | J165: VAT
E166: خرسانة 3/4 | F166: =SUMIF($E$3:$E$159,E166,$F$3:$F$159) -> 1262 | G166: =IFERROR(H166/F166,"-") -> 31.74326466 | H166: =SUMIF($E$3:$E$159,E166,$H$3:$H$159) -> 40060 | I166: =H166/1.05 -> 38152.38095 | J166: =I166*0.05 -> 1907.619048
E167: خرسانة 3/8 | F167: =SUMIF($E$3:$E$159,E167,$F$3:$F$159) -> 976 | G167: =IFERROR(H167/F167,"-") -> 29.59016393 | H167: =SUMIF($E$3:$E$159,E167,$H$3:$H$159) -> 28880 | I167: =H167/1.05 -> 27504.7619 | J167: =I167*0.05 -> 1375.238095
E168: تراب ناعم | F168: =SUMIF($E$3:$E$159,E168,$F$3:$F$159) -> 816 | G168: =IFERROR(H168/F168,"-") -> 3.18627451 | H168: =SUMIF($E$3:$E$159,E168,$H$3:$H$159) -> 2600 | I168: =H168/1.05 -> 2476.190476 | J168: =I168*0.05 -> 123.8095238
E169: بودرة | F169: =SUMIF($E$3:$E$159,E169,$F$3:$F$159) -> 64 | G169: =IFERROR(H169/F169,"-") -> 28.125 | H169: =SUMIF($E$3:$E$159,E169,$H$3:$H$159) -> 1800 | I169: =H169/1.05 -> 1714.285714 | J169: =I169*0.05 -> 85.71428571
E170: اجمالى | F170: =SUM(F166:F169) -> 3118 | H170: =SUM(H166:H169) -> 73340 | I170: =SUM(I166:I169) -> 69847.61905 | J170: =SUM(J166:J169) -> 3492.380952

Sheet يونية
A1: تقرير مبيعات كسارة يونية 2020
A2: S.N | B2: DATE | C2: NUMBER | D2: العميل | E2: نوع المواد | F2: QUANTITY | G2: PRICE | H2: AMOUNT | J2: بيان بقيمة الخرسانة المحملة علي شركة القلابات عن شهر ديسمبر 2019م | T2: اجمالى المبييعات | W2: =H234 -> 48130
A3: A-1 | B3: 2020-06-01 | C3: 9376 | D3: مصنع العسيري | E3: خرسانة 3/8 | F3: 24 | G3: =IFERROR(H3/F3,"-") -> 29.16666667 | H3: 700 | J3: الإجمالي | K3: واسيم - شركة القلابات | L3: محمد اشرف - شركة القلابات | M3: نعيم - شركة القلابات | N3: اكرام - شركة القلابات | O3: ناصر - شركة القلابات | P3: العمري - شركة القلابات | Q3: عثمان - شركة القلابات | R3: نزير - شركة القلابات | T3: مسلسل | U3: التاريخ | V3: رقم المستند | W3: ايداع | X3: الرصيد المتبقى | Y3: ملاحظات
A4: A-2 | B4: 2020-06-01 | C4: 9377 | D4: نقدي | E4: خرسانة 3/4 | F4: 16 | G4: 33.75 | H4: 540 | J4: =SUM(K4:R4) -> 9070 | K4: =SUMIF(D3:D232,K3:R3,H3:H232) -> 150 | L4: =SUMIF(D3:D232,K3:R3,H3:H232) -> 1580 | M4: =SUMIF(D3:D232,K3:R3,H3:H232) -> 3000 | N4: =SUMIF(D3:D232,K3:R3,H3:H232) -> 0 | O4: =SUMIF(D3:D232,K3:R3,H3:H232) -> 0 | P4: =SUMIF(D3:D232,K3:R3,H3:H232) -> 0 | Q4: =SUMIF(D3:D232,K3:R3,H3:H232) -> 1620 | R4: =SUMIF(D3:D232,K3:R3,H3:H232) -> 2720 | U4: 2020-06-02 | W4: 4425 | X4: =W2-W15 -> 33550 | Y4: ايداع في حساب الشركة
A5: A-3 | B5: 2020-06-01 | C5: 9378 | D5: مصنع العسيري | E5: خرسانة 3/8 | F5: 24 | G5: 29.16666667 | H5: 700 | U5: 13/02/2020 | W5: 3520 | Y5: ايداع في حساب الشركة
A6: A-4 | B6: 2020-06-01 | C6: 9379 | D6: عابد الله - شركة القلابات | E6: خرسانة 3/8 | F6: 16 | G6: 33.75 | H6: 540 | U6: 16/02/2020 | W6: 2000 | Y6: ايداع في حساب الشركة
A7: A-5 | B7: 2020-06-02 | C7: 9380 | D7: عابد الله - شركة القلابات | E7: تراب ناعم | F7: 32 | G7: 3.125 | H7: 100 | U7: 16/02/2020 | W7: 2005 | Y7: ايداع في حساب الشركة
A8: A-6 | B8: 2020-06-02 | C8: 9381 | D8: هزار- شركة القلابات | E8: تراب ناعم | F8: 16 | G8: 3.125 | H8: 50 | U8: 23/02/2020 | W8: 2630 | Y8: ايداع في حساب الشركة
A9: A-7 | B9: 2020-06-02 | C9: 9382 | D9: نقدي | E9: خرسانة 3/4 | F9: 16 | G9: 33.75 | H9: 540 | Y9: 0
A10: A-8 | B10: 2020-06-02 | C10: 9383 | D10: مصنع العسيري | E10: خرسانة 3/4 | F10: 24 | G10: 29.16666667 | H10: 700
A11: A-9 | B11: 2020-06-02 | C11: 9384 | D11: مصنع العسيري | E11: خرسانة 3/4 | F11: 24 | G11: 29.16666667 | H11: 700
A12: A-10 | B12: 2020-06-02 | C12: 9385 | D12: محمد اشرف - شركة القلابات | E12: خرسانة 3/4 | F12: 16 | G12: 33.75 | H12: 540
A13: A-11 | B13: 2020-06-02 | C13: 9386 | D13: محمد اشرف - شركة القلابات | E13: خرسانة 3/4 | F13: 16 | G13: 33.75 | H13: 540
A14: A-12 | B14: 2020-06-02 | C14: 9387 | D14: عابد الله - شركة القلابات | E14: تراب ناعم | F14: 16 | G14: 3.125 | H14: 50
A15: A-13 | B15: 2020-06-02 | C15: 9388 | D15: واسيم - شركة القلابات | E15: تراب ناعم | F15: 32 | G15: 3.125 | H15: 100 | T15: اجمالى الايداعات | W15: =SUM(W4:W14) -> 14580
A16: A-14 | B16: 2020-06-02 | C16: 9389 | D16: عابد الله - شركة القلابات | E16: تراب ناعم | F16: 16 | G16: 3.125 | H16: 50
A17: A-15 | B17: 2020-06-02 | C17: 9390 | D17: مصنع العسيري | E17: خرسانة 3/4 | F17: 24 | G17: 29.16666667 | H17: 700
A18: A-16 | B18: 2020-06-02 | C18: 9391 | D18: مصنع العسيري | E18: خرسانة 3/8 | F18: 24 | G18: 29.16666667 | H18: 700
A19: A-17 | B19: 2020-06-02 | C19: 9392 | D19: مصنع العسيري | E19: خرسانة 3/8 | F19: 24 | G19: 29.16666667 | H19: 700
A20: A-18 | B20: 2020-06-02 | C20: 9393 | D20: عابد الله - شركة القلابات | E20: تراب ناعم | F20: 16 | G20: 3.125 | H20: 50
A21: A-19 | B21: 2020-06-03 | C21: 9394 | D21: نقدي | E21: خرسانة 3/4 | F21: 16 | G21: 33.75 | H21: 540
A22: A-20 | B22: 2020-06-03 | C22: 9395 | D22: مصنع العسيري | E22: خرسانة 3/4 | F22: 24 | G22: 29.16666667 | H22: 700
A23: A-21 | B23: 2020-06-03 | C23: 9396 | D23: مصنع العسيري | E23: خرسانة 3/8 | F23: 24 | G23: 29.16666667 | H23: 700
A24: A-22 | B24: 2020-06-03 | C24: 9397 | D24: نقدي | E24: خرسانة 3/4 | F24: 16 | G24: 33.75 | H24: 540
A25: A-23 | B25: 2020-06-03 | C25: 9398 | D25: نقدي | E25: خرسانة 3/4 | F25: 16 | G25: 33.75 | H25: 540
A26: A-24 | B26: 2020-06-03 | C26: 9399 | D26: نقدي | E26: خرسانة 3/4 | F26: 16 | G26: 33.75 | H26: 540
A27: A-25 | B27: 2020-06-03 | C27: 9400 | D27: نقدي | E27: خرسانة 3/4 | F27: 14 | G27: 35.71428571 | H27: 500
A28: A-26 | B28: 2020-06-03 | C28: 9401 | D28: مصنع العسيري | E28: خرسانة 3/8 | F28: 24 | G28: 29.16666667 | H28: 700
A29: A-27 | B29: 2020-06-03 | C29: 9402 | D29: مصنع العسيري | E29: خرسانة 3/8 | F29: 24 | G29: 29.16666667 | H29: 700
A30: A-28 | B30: 2020-06-03 | C30: 9403 | D30: نقدي | E30: خرسانة 3/8 | F30: 16 | G30: 33.75 | H30: 540
A31: A-29 | B31: 2020-06-03 | C31: 9404 | D31: نقدي | E31: خرسانة 3/4 | F31: 14 | G31: 35.71428571 | H31: 500
A32: A-30 | B32: 2020-06-04 | C32: 9405 | D32: نقدي | E32: خرسانة 3/4 | F32: 16 | G32: 33.75 | H32: 540
A33: A-31 | B33: 2020-06-04 | C33: 9406 | D33: نعيم - شركة القلابات | E33: خرسانة 3/4 | F33: 16 | G33: 33.75 | H33: 540
A34: A-32 | B34: 2020-06-04 | C34: 9407 | D34: مصنع العسيري | E34: خرسانة 3/4 | F34: 24 | G34: 29.16666667 | H34: 700
A35: A-33 | B35: 2020-06-04 | C35: 9408 | D35: مصنع العسيري | E35: خرسانة 3/8 | F35: 24 | G35: 29.16666667 | H35: 700
A36: A-34 | B36: 2020-06-04 | C36: 9409 | D36: نقدي | E36: خرسانة 3/4 | F36: 14 | G36: 35.71428571 | H36: 500
A37: A-35 | B37: 2020-06-04 | C37: 9410 | D37: نقدي | E37: خرسانة 3/4 | F37: 16 | G37: 33.75 | H37: 540
A38: A-36 | B38: 2020-06-04 | C38: 9411 | D38: نقدي | E38: خرسانة 3/4 | F38: 14 | G38: 35.71428571 | H38: 500
A39: A-37 | B39: 2020-06-04 | C39: 9412 | D39: مصنع العسيري | E39: خرسانة 3/8 | F39: 24 | G39: 29.16666667 | H39: 700
A40: A-38 | B40: 2020-06-04 | C40: 9413 | D40: نقدي | E40: خرسانة 3/8 | F40: 16 | G40: 33.75 | H40: 540
A41: A-39 | B41: 2020-06-04 | C41: 9414 | D41: مصنع العسيري | E41: خرسانة 3/8 | F41: 24 | G41: 29.16666667 | H41: 700
A42: A-40 | B42: 2020-06-06 | C42: 9415 | D42: نقدي | E42: خرسانة 3/4 | F42: 16 | G42: 33.75 | H42: 540
A43: A-41 | B43: 2020-06-06 | C43: 9416 | D43: نعيم - شركة القلابات | E43: خرسانة 3/4 | F43: 16 | G43: 33.75 | H43: 540
A44: A-42 | B44: 2020-06-06 | C44: 9417 | D44: مصنع العسيري | E44: خرسانة 3/8 | F44: 24 | G44: 29.16666667 | H44: 700
A45: A-43 | B45: 2020-06-06 | C45: 9418 | D45: مصنع العسيري | E45: خرسانة 3/4 | F45: 24 | G45: 29.16666667 | H45: 700
A46: A-44 | B46: 2020-06-06 | C46: 9419 | D46: نقدي | E46: خرسانة 3/4 | F46: 16 | G46: 33.75 | H46: 540
A47: A-45 | B47: 2020-06-06 | C47: 9420 | D47: نقدي | E47: خرسانة 3/8 | F47: 16 | G47: 33.75 | H47: 540
A48: A-46 | B48: 2020-06-06 | C48: 9421 | D48: راشد الاسمري - ايجار معدات | E48: خرسانة 3/4 | F48: 8 | G48: 43.75 | H48: 350
A49: A-47 | B49: 2020-06-06 | C49: 9422 | D49: مصنع العسيري | E49: خرسانة 3/4 | F49: 24 | G49: 29.16666667 | H49: 700
A50: A-48 | B50: 2020-06-06 | C50: 9423 | D50: نقدي | E50: خرسانة 3/4 | F50: 14 | G50: 35.71428571 | H50: 500
A51: A-49 | B51: 2020-06-06 | C51: 9424 | D51: مصنع العسيري | E51: خرسانة 3/8 | F51: 24 | G51: 29.16666667 | H51: 700
A52: A-50 | B52: 2020-06-06 | C52: 9425 | D52: مصنع العسيري | E52: خرسانة 3/8 | F52: 24 | G52: 29.16666667 | H52: 700
A53: A-51 | B53: 2020-06-06 | C53: 9426 | D53: مصنع العسيري | E53: خرسانة 3/8 | F53: 24 | G53: 29.16666667 | H53: 700
A54: A-52 | B54: 2020-06-06 | C54: 9427 | D54: مصنع العسيري | E54: خرسانة 3/8 | F54: 24 | G54: 29.16666667 | H54: 700
A55: A-53 | B55: 2020-06-06 | C55: 9428 | D55: نزير - شركة القلابات | E55: تراب ناعم | F55: 16 | G55: 3.125 | H55: 50
A56: A-54 | B56: 2020-06-07 | C56: 9429 | D56: نقدي | E56: خرسانة 3/4 | F56: 16 | G56: 33.75 | H56: 540
A57: A-55 | B57: 2020-06-07 | C57: 9430 | D57: مصنع العسيري | E57: خرسانة 3/4 | F57: 24 | G57: 29.16666667 | H57: 700
A58: A-56 | B58: 2020-06-07 | C58: 9431 | D58: نقدي | E58: خرسانة 3/4 | F58: 16 | G58: 34.375 | H58: 550
A59: A-57 | B59: 2020-06-07 | C59: 9432 | D59: نقدي | E59: خرسانة 3/8 | F59: 16 | G59: 33.75 | H59: 540
A60: A-58 | B60: 2020-06-07 | C60: 9433 | D60: مصنع العسيري | E60: خرسانة 3/8 | F60: 24 | G60: 29.16666667 | H60: 700
A61: A-59 | B61: 2020-06-07 | C61: 9434 | D61: نقدي | E61: خرسانة 3/4 | F61: 16 | G61: 33.75 | H61: 540
A62: A-60 | B62: 2020-06-07 | C62: 9435 | D62: عابد الله - شركة القلابات | E62: خرسانة 3/8 | F62: 16 | G62: 33.75 | H62: 540
A63: A-61 | B63: 2020-06-08 | C63: 9436 | D63: نقدي | E63: خرسانة 3/4 | F63: 16 | G63: 33.75 | H63: 540
A64: A-62 | B64: 2020-06-08 | C64: 9437 | D64: عابد الله - شركة القلابات | E64: خرسانة 3/4 | F64: 16 | G64: 33.75 | H64: 540
A65: A-63 | B65: 2020-06-08 | C65: 9438 | D65: نعيم - شركة القلابات | E65: خرسانة 3/4 | F65: 16 | G65: 33.75 | H65: 540
A66: A-64 | B66: 2020-06-08 | C66: 9439 | D66: نقدي | E66: خرسانة 3/8 | F66: 16 | G66: 33.75 | H66: 540
A67: A-65 | B67: 2020-06-08 | C67: 9440 | D67: نقدي | E67: خرسانة 3/8 | F67: 16 | G67: =IFERROR(H67/F67,"-") -> 33.75 | H67: 540
A68: A-66 | B68: 2020-06-08 | C68: 9441 | D68: نزير - شركة القلابات | E68: خرسانة 3/8 | F68: 16 | G68: 33.75 | H68: 540
A69: A-67 | B69: 2020-06-08 | C69: 9442 | D69: مصنع العسيري | E69: خرسانة 3/4 | F69: 24 | G69: 29.16666667 | H69: 700
A70: A-68 | B70: 2020-06-08 | C70: 9443 | D70: نعيم - شركة القلابات | E70: تراب ناعم | F70: 16 | G70: 3.125 | H70: 50
A71: A-69 | B71: 2020-06-08 | C71: 9444 | D71: نقدي | E71: خرسانة 3/4 | F71: 16 | G71: 33.75 | H71: 540
A72: A-70 | B72: 2020-06-08 | C72: 9445 | D72: واسيم - شركة القلابات | E72: تراب ناعم | F72: 16 | G72: 3.125 | H72: 50
A73: A-71 | B73: 2020-06-08 | C73: 9446 | D73: نقدي | E73: خرسانة 3/4 | F73: 8 | G73: 42.5 | H73: 340
A74: A-72 | B74: 2020-06-09 | C74: 9447 | D74: نقدي | E74: خرسانة 3/4 | F74: 16 | G74: 33.75 | H74: 540
A75: A-73 | B75: 2020-06-09 | C75: 9448 | D75: مصنع العسيري | E75: خرسانة 3/4 | F75: 24 | G75: 29.16666667 | H75: 700
A76: A-74 | B76: 2020-06-09 | C76: 9449 | D76: مصنع العسيري | E76: خرسانة 3/8 | F76: 24 | G76: 29.16666667 | H76: 700
A77: A-75 | B77: 2020-06-09 | C77: 9450 | D77: نزير - شركة القلابات | E77: خرسانة 3/8 | F77: 16 | G77: 33.75 | H77: 540
A78: A-76 | B78: 2020-06-09 | C78: 9451 | D78: نقدي | E78: خرسانة 3/4 | F78: 16 | G78: 33.75 | H78: 540
A79: A-77 | B79: 2020-06-09 | C79: 9452 | D79: مصنع العسيري | E79: خرسانة 3/8 | F79: 24 | G79: 29.16666667 | H79: 700
A80: A-78 | B80: 2020-06-09 | C80: 9453 | D80: مصنع العسيري | E80: خرسانة 3/8 | F80: 24 | G80: 29.16666667 | H80: 700
A81: A-79 | B81: 2020-06-09 | C81: 9454 | D81: نقدي | E81: خرسانة 3/4 | F81: 8 | G81: 42.5 | H81: 340
A82: A-80 | B82: 2020-06-09 | C82: 9455 | D82: مصنع العسيري | E82: خرسانة 3/4 | F82: 24 | G82: 29.16666667 | H82: 700
A83: A-81 | B83: 2020-06-09 | C83: 9456 | D83: هزار- شركة القلابات | E83: تراب ناعم | F83: 16 | G83: 3.125 | H83: 50
A84: A-82 | B84: 2020-06-09 | C84: 9457 | D84: هزار- شركة القلابات | E84: تراب ناعم | F84: 16 | G84: 3.125 | H84: 50
A85: A-83 | B85: 2020-06-09 | C85: 9458 | D85: نقدي | E85: خرسانة 3/4 | F85: 16 | G85: 33.75 | H85: 540
A86: A-84 | B86: 2020-06-09 | C86: 9459 | D86: نزير - شركة القلابات | E86: خرسانة 3/8 | F86: 16 | G86: 33.75 | H86: 540
A87: A-85 | B87: 2020-06-09 | C87: 9460 | D87: نقدي | E87: خرسانة 3/4 | F87: 16 | G87: 33.75 | H87: 540
A88: A-86 | B88: 2020-06-10 | C88: 9461 | D88: مصنع العسيري | E88: خرسانة 3/4 | F88: 24 | G88: 29.16666667 | H88: 700
A89: A-87 | B89: 2020-06-10 | C89: 9462 | D89: نقدي | E89: خرسانة 3/4 | F89: 16 | G89: 33.75 | H89: 540
A90: A-88 | B90: 2020-06-10 | C90: 9463 | D90: عثمان - شركة القلابات | E90: خرسانة 3/4 | F90: 16 | G90: 33.75 | H90: 540
A91: A-89 | B91: 2020-06-10 | C91: 9464 | D91: نقدي | E91: خرسانة 3/4 | F91: 16 | G91: 34.375 | H91: 550
A92: A-90 | B92: 2020-06-10 | C92: 9465 | D92: عابد الله - شركة القلابات | E92: خرسانة 3/8 | F92: 16 | G92: 33.75 | H92: 540
A93: A-91 | B93: 2020-06-10 | C93: 9466 | D93: مصنع العسيري | E93: خرسانة 3/8 | F93: 24 | G93: 29.16666667 | H93: 700
A94: A-92 | B94: 2020-06-10 | C94: 9467 | D94: نقدي | E94: خرسانة 3/4 | F94: 16 | G94: 33.75 | H94: 540
A95: A-93 | B95: 2020-06-10 | C95: 9468 | D95: مصنع العسيري | E95: خرسانة 3/8 | F95: 24 | G95: 29.16666667 | H95: 700
A96: A-94 | B96: 2020-06-10 | C96: 9469 | D96: مصنع العسيري | E96: خرسانة 3/8 | F96: 24 | G96: 29.16666667 | H96: 700
A97: A-95 | B97: 2020-06-10 | C97: 9470 | D97: مصنع العسيري | E97: خرسانة 3/8 | F97: 24 | G97: 29.16666667 | H97: 700
A98: A-96 | B98: 2020-06-10 | C98: 9471 | D98: مصنع العسيري | E98: خرسانة 3/8 | F98: 24 | G98: 29.16666667 | H98: 700
A99: A-97 | B99: 2020-06-11 | C99: 9472 | D99: نقدي | E99: خرسانة 3/4 | F99: 16 | G99: 33.75 | H99: 540
A100: A-98 | B100: 2020-06-11 | C100: 9473 | D100: نعيم - شركة القلابات | E100: خرسانة 3/4 | F100: 16 | G100: 33.75 | H100: 540
A101: A-99 | B101: 2020-06-11 | C101: 9474 | D101: مصنع العسيري | E101: خرسانة 3/8 | F101: 24 | G101: 29.16666667 | H101: 700
A102: A-100 | B102: 2020-06-11 | C102: 9475 | D102: نعيم - شركة القلابات | E102: تراب ناعم | F102: 16 | G102: 3.125 | H102: 50
A103: A-101 | B103: 2020-06-11 | C103: 9476 | D103: نقدي | E103: خرسانة 3/4 | F103: 16 | G103: 33.75 | H103: 540
A104: A-102 | B104: 2020-06-11 | C104: 9477 | D104: نقدي | E104: تراب ناعم | F104: 16 | G104: 3.125 | H104: 50
A105: A-103 | B105: 2020-06-11 | C105: 9478 | D105: مصنع العسيري | E105: خرسانة 3/8 | F105: 24 | G105: 29.16666667 | H105: 700
A106: A-104 | B106: 2020-06-11 | C106: 9479 | D106: نقدي | E106: خرسانة 3/4 | F106: 14 | G106: 35.71428571 | H106: 500
A107: A-105 | B107: 2020-06-13 | C107: 9480 | D107: نقدي | E107: تراب ناعم | F107: 16 | G107: 3.125 | H107: 50
A108: A-106 | B108: 2020-06-13 | C108: 9481 | D108: مصنع العسيري | E108: خرسانة 3/4 | F108: 24 | G108: 29.16666667 | H108: 700
A109: A-107 | B109: 2020-06-13 | C109: 9482 | D109: مصنع العسيري | E109: خرسانة 3/4 | F109: 24 | G109: 29.16666667 | H109: 700
A110: A-108 | B110: 2020-06-13 | C110: 9483 | D110: نقدي | E110: خرسانة 3/4 | F110: 16 | G110: 33.75 | H110: 540
A111: A-109 | B111: 2020-06-13 | C111: 9484 | D111: نعيم - شركة القلابات | E111: خرسانة 3/4 | F111: 16 | G111: 33.75 | H111: 540
A112: A-110 | B112: 2020-06-13 | C112: 9485 | D112: هزار- شركة القلابات | E112: تراب ناعم | F112: 16 | G112: 3.125 | H112: 50
A113: A-99 | B113: 2020-06-14 | C113: 9486 | D113: نقدي | E113: تراب ناعم | F113: 16 | G113: 3.125 | H113: 50
A114: A-100 | B114: 2020-06-14 | C114: 9487 | D114: نقدي | E114: تراب ناعم | F114: 16 | G114: 3.125 | H114: 50
A115: A-101 | B115: 2020-06-15 | C115: 9488 | D115: نزير - شركة القلابات | E115: تراب ناعم | F115: 16 | G115: 3.125 | H115: 50
A116: A-102 | B116: 2020-06-15 | C116: 9489 | D116: نزير - شركة القلابات | E116: تراب ناعم | F116: 16 | G116: 3.125 | H116: 50
A117: A-103 | B117: 2020-06-15 | C117: 9490 | D117: نزير - شركة القلابات | E117: تراب ناعم | F117: 16 | G117: 3.125 | H117: 50
A118: A-104 | B118: 2020-06-15 | C118: 9491 | D118: نزير - شركة القلابات | E118: تراب ناعم | F118: 16 | G118: 3.125 | H118: 50
A119: A-105 | B119: 2020-06-15 | C119: 9492 | D119: نزير - شركة القلابات | E119: تراب ناعم | F119: 16 | G119: 3.125 | H119: 50
A120: A-106 | B120: 2020-06-16 | C120: 9493 | D120: نزير - شركة القلابات | E120: تراب ناعم | F120: 16 | G120: 3.125 | H120: 50
A121: A-107 | B121: 2020-06-16 | C121: 9494 | D121: نزير - شركة القلابات | E121: تراب ناعم | F121: 16 | G121: 3.125 | H121: 50
A122: A-108 | B122: 2020-06-17 | C122: 9495 | D122: محمد اشرف - شركة القلابات | E122: تراب ناعم | F122: 16 | G122: 3.125 | H122: 50
A123: A-109 | B123: 2020-06-17 | C123: 9496 | D123: محمد اشرف - شركة القلابات | E123: تراب ناعم | F123: 16 | G123: 3.125 | H123: 50
A124: A-110 | B124: 2020-06-17 | C124: 9497 | D124: محمد اشرف - شركة القلابات | E124: تراب ناعم | F124: 16 | G124: 3.125 | H124: 50
A125: A-111 | B125: 2020-06-17 | C125: 9498 | D125: نزير - شركة القلابات | E125: تراب ناعم | F125: 16 | G125: 3.125 | H125: 50
A126: A-112 | B126: 2020-06-17 | C126: 9499 | D126: نزير - شركة القلابات | E126: تراب ناعم | F126: 16 | G126: 3.125 | H126: 50
A127: A-113 | B127: 2020-06-17 | C127: 9500 | D127: محمد اشرف - شركة القلابات | E127: تراب ناعم | F127: 16 | G127: 3.125 | H127: 50
A128: A-114 | B128: 2020-06-18 | C128: 9501 | D128: نزير - شركة القلابات | E128: تراب ناعم | F128: 16 | G128: 3.125 | H128: 50
A129: A-115 | B129: 2020-06-18 | C129: 9502 | D129: نزير - شركة القلابات | E129: تراب ناعم | F129: 16 | G129: 3.125 | H129: 50
A130: A-116 | B130: 2020-06-18 | C130: 9503 | D130: نزير - شركة القلابات | E130: تراب ناعم | F130: 16 | G130: 3.125 | H130: 50
A131: A-117 | B131: 2020-06-18 | C131: 9504 | D131: نزير - شركة القلابات | E131: تراب ناعم | F131: 16 | G131: =IFERROR(H131/F131,"-") -> 3.125 | H131: 50
A132: A-118 | B132: 2020-06-18 | C132: 9505 | D132: نزير - شركة القلابات | E132: تراب ناعم | F132: 16 | G132: 3.125 | H132: 50
A133: A-119 | B133: 2020-06-20 | C133: 9506 | D133: نقدي | E133: خرسانة 3/4 | F133: 16 | G133: 33.75 | H133: 540
A134: A-120 | B134: 2020-06-20 | C134: 9507 | D134: نعيم - شركة القلابات | E134: تراب ناعم | F134: 16 | G134: 3.125 | H134: 50
A135: A-121 | B135: 2020-06-20 | C135: 9508 | D135: نزير - شركة القلابات | E135: تراب ناعم | F135: 16 | G135: 3.125 | H135: 50
A136: A-122 | B136: 2020-06-20 | C136: 9509 | D136: نزير - شركة القلابات | E136: تراب ناعم | F136: 16 | G136: 3.125 | H136: 50
A137: A-123 | B137: 2020-06-20 | C137: 9510 | D137: نزير - شركة القلابات | E137: تراب ناعم | F137: 16 | G137: 3.125 | H137: 50
A138: A-124 | B138: 2020-06-21 | C138: 9511 | D138: نقدي | E138: خرسانة 3/4 | F138: 16 | G138: 33.75 | H138: 540
A139: A-125 | B139: 2020-06-21 | C139: 9512 | D139: مصنع العسيري | E139: خرسانة 3/4 | F139: 24 | G139: 29.16666667 | H139: 700
A140: A-126 | B140: 2020-06-21 | C140: 9513 | D140: مصنع العسيري | E140: خرسانة 3/4 | F140: 24 | G140: 29.16666667 | H140: 700
A141: A-127 | B141: 2020-06-21 | C141: 9514 | D141: نزير - شركة القلابات | E141: تراب ناعم | F141: 16 | G141: 3.125 | H141: 50
A142: A-128 | B142: 2020-06-21 | C142: 9515 | D142: نزير - شركة القلابات | E142: تراب ناعم | F142: 16 | G142: 3.125 | H142: 50
A143: A-129 | B143: 2020-06-21 | C143: 9516 | D143: مصنع العسيري | E143: خرسانة 3/8 | F143: 24 | G143: 29.16666667 | H143: 700
A144: A-130 | B144: 2020-06-21 | C144: 9517 | D144: مصنع العسيري | E144: خرسانة 3/8 | F144: 24 | G144: 29.16666667 | H144: 700
A145: A-131 | B145: 2020-06-21 | C145: 9518 | D145: نزير - شركة القلابات | E145: تراب ناعم | F145: 16 | G145: 3.125 | H145: 50
A146: A-132 | B146: 2020-06-21 | C146: 9519 | D146: محمد اشرف - شركة القلابات | E146: تراب ناعم | F146: 16 | G146: 3.125 | H146: 50
A147: A-133 | B147: 2020-06-21 | C147: 9520 | D147: نقدي | E147: خرسانة 3/4 | F147: 16 | G147: 34.375 | H147: 550
A148: A-134 | B148: 2020-06-21 | C148: 9521 | D148: مصنع العسيري | E148: خرسانة 3/8 | F148: 24 | G148: 29.16666667 | H148: 700
A149: A-135 | B149: 2020-06-21 | C149: 9522 | D149: نقدي | E149: خرسانة 3/4 | F149: 16 | G149: 33.75 | H149: 540
A150: A-136 | B150: 2020-06-22 | C150: 9523 | D150: نقدي | E150: خرسانة 3/4 | F150: 16 | G150: 33.75 | H150: 540
A151: A-137 | B151: 2020-06-22 | C151: 9524 | D151: مصنع العسيري | E151: خرسانة 3/4 | F151: 24 | G151: 29.16666667 | H151: 700
A152: A-138 | B152: 2020-06-22 | C152: 9525 | D152: نقدي | E152: خرسانة 3/4 | F152: 16 | G152: 33.75 | H152: 540
A153: A-139 | B153: 2020-06-22 | C153: 9526 | D153: مصنع العسيري | E153: خرسانة 3/4 | F153: 24 | G153: 29.16666667 | H153: 700
A154: A-140 | B154: 2020-06-22 | C154: 9527 | D154: نقدي | E154: خرسانة 3/8 | F154: 24 | G154: 32.5 | H154: 780
A155: A-141 | B155: 2020-06-22 | C155: 9528 | D155: نقدي | E155: خرسانة 3/8 | F155: 24 | G155: 32.5 | H155: 780
A156: A-142 | B156: 2020-06-22 | C156: 9529 | D156: نعيم - شركة القلابات | E156: تراب ناعم | F156: 16 | G156: 3.125 | H156: 50
A157: A-143 | B157: 2020-06-22 | C157: 9530 | D157: نقدي | E157: خرسانة 3/4 | F157: 16 | G157: 33.75 | H157: 540
A158: A-144 | B158: 2020-06-22 | C158: 9531 | D158: محمد اشرف - شركة القلابات | E158: تراب ناعم | F158: 16 | G158: 3.125 | H158: 50
A159: A-145 | B159: 2020-06-22 | C159: 9532 | D159: نقدي | E159: خرسانة 3/4 | F159: 16 | G159: 33.75 | H159: 540
A160: A-146 | B160: 2020-06-22 | C160: 9533 | D160: نعيم - شركة القلابات | E160: تراب ناعم | F160: 16 | G160: 3.125 | H160: 50
A161: A-147 | B161: 2020-06-22 | C161: 9534 | D161: نعيم - شركة القلابات | E161: تراب ناعم | F161: 16 | G161: 3.125 | H161: 50
A162: A-148 | B162: 2020-06-22 | C162: 9535 | D162: مصنع العسيري | E162: خرسانة 3/8 | F162: 24 | G162: 29.16666667 | H162: 700
A163: A-149 | B163: 2020-06-22 | C163: 9536 | D163: مصنع العسيري | E163: خرسانة 3/8 | F163: 24 | G163: 29.16666667 | H163: 700
A164: A-150 | B164: 2020-06-22 | C164: 9537 | D164: محمد اشرف - شركة القلابات | E164: تراب ناعم | F164: 16 | G164: 3.125 | H164: 50
A165: A-151 | B165: 2020-06-22 | C165: 9538 | D165: محمد اشرف - شركة القلابات | E165: تراب ناعم | F165: 16 | G165: 3.125 | H165: 50
A166: A-152 | B166: 2020-06-22 | C166: 9539 | D166: محمد اشرف - شركة القلابات | E166: تراب ناعم | F166: 16 | G166: 3.125 | H166: 50
A167: A-153 | B167: 2020-06-22 | C167: 9540 | D167: نقدي | E167: خرسانة 3/4 | F167: 16 | G167: 33.75 | H167: 540
A168: A-154 | B168: 2020-06-22 | C168: 9541 | D168: نقدي | E168: تراب ناعم | F168: 16 | G168: 3.125 | H168: 50
A169: A-155 | B169: 2020-06-22 | C169: 9542 | D169: محمد اشرف - شركة القلابات | E169: تراب ناعم | F169: 16 | G169: 3.125 | H169: 50
A170: A-156 | B170: 2020-06-22 | C170: 9543 | D170: نقدي | E170: خرسانة 3/4 | F170: 14 | G170: 35.71428571 | H170: 500
A171: A-157 | B171: 2020-06-23 | C171: 9544 | D171: نقدي | E171: خرسانة 3/4 | F171: 16 | G171: 33.75 | H171: 540
A172: A-158 | B172: 2020-06-23 | C172: 9545 | D172: نقدي | E172: خرسانة 3/4 | F172: 16 | G172: 33.75 | H172: 540
A173: A-159 | B173: 2020-06-23 | C173: 9546 | D173: مصنع العسيري | E173: خرسانة 3/4 | F173: 24 | G173: 29.16666667 | H173: 700
A174: A-160 | B174: 2020-06-23 | C174: 9547 | D174: مصنع العسيري | E174: خرسانة 3/4 | F174: 24 | G174: 29.16666667 | H174: 700
A175: A-161 | B175: 2020-06-23 | C175: 9548 | D175: نقدي | E175: خرسانة 3/4 | F175: 16 | G175: 33.75 | H175: 540
A176: A-162 | B176: 2020-06-23 | C176: 9549 | D176: نقدي | E176: تراب ناعم | F176: 16 | G176: 3.125 | H176: 50
A177: A-163 | B177: 2020-06-23 | C177: 9550 | D177: نزير - شركة القلابات | E177: تراب ناعم | F177: 16 | G177: 3.125 | H177: 50
A178: A-164 | B178: 2020-06-23 | C178: 9551 | D178: مصنع العسيري | E178: خرسانة 3/8 | F178: 24 | G178: 29.16666667 | H178: 700
A179: A-165 | B179: 2020-06-23 | C179: 9552 | D179: مصنع العسيري | E179: خرسانة 3/8 | F179: 24 | G179: 29.16666667 | H179: 700
A180: A-166 | B180: 2020-06-23 | C180: 9553 | D180: مصنع العسيري | E180: خرسانة 3/8 | F180: 24 | G180: 29.16666667 | H180: 700
A181: A-167 | B181: 2020-06-24 | C181: 9554 | D181: نقدي | E181: تراب ناعم | F181: 16 | G181: 3.125 | H181: 50
A182: A-168 | B182: 2020-06-24 | C182: 9555 | D182: نقدي | E182: تراب ناعم | F182: 16 | G182: 3.125 | H182: 50
A183: A-169 | B183: 2020-06-25 | C183: 9556 | D183: نقدي | E183: تراب ناعم | F183: 16 | G183: 3.125 | H183: 50
A184: A-170 | B184: 2020-06-27 | C184: 9557 | D184: نقدي | E184: خرسانة 3/4 | F184: 16 | G184: 33.75 | H184: 540
A185: A-171 | B185: 2020-06-27 | C185: 9558 | D185: نقدي | E185: خرسانة 3/4 | F185: 16 | G185: 3.125 | H185: 50
A186: A-172 | B186: 2020-06-27 | C186: 9559 | D186: نقدي | E186: تراب ناعم | F186: 16 | G186: 33.75 | H186: 540
A187: A-173 | B187: 2020-06-27 | C187: 9560 | D187: نقدي | E187: خرسانة 3/4 | F187: 16 | G187: 33.75 | H187: 540
A188: A-174 | B188: 2020-06-27 | C188: 9561 | D188: نقدي | E188: خرسانة 3/4 | F188: 24 | G188: 29.16666667 | H188: 700
A189: A-175 | B189: 2020-06-27 | C189: 9562 | D189: نقدي | E189: خرسانة 3/4 | F189: 16 | G189: 33.75 | H189: 540
A190: A-176 | B190: 2020-06-27 | C190: 9563 | D190: نقدي | E190: خرسانة 3/4 | F190: 16 | G190: 31.25 | H190: 500
A191: A-177 | B191: 2020-06-27 | C191: 9564 | D191: نقدي | E191: خرسانة 3/4 | F191: 16 | G191: 33.75 | H191: 540
A192: A-178 | B192: 2020-06-27 | C192: 9565 | D192: نقدي | E192: خرسانة 3/4 | F192: 24 | G192: 22.5 | H192: 540
A193: A-179 | B193: 2020-06-27 | C193: 9566 | D193: مصنع العسيري | E193: خرسانة 3/4 | F193: 24 | G193: 29.16666667 | H193: 700
A194: A-180 | B194: 2020-06-27 | C194: 9567 | D194: مصنع العسيري | E194: خرسانة 3/8 | F194: 24 | G194: =IFERROR(H194/F194,"-") -> 29.16666667 | H194: 700
A195: A-181 | B195: 2020-06-28 | C195: 9568 | D195: نقدي | E195: خرسانة 3/4 | F195: 16 | G195: =IFERROR(H195/F195,"-") -> 33.75 | H195: 540
A196: A-182 | B196: 2020-06-28 | C196: 9569 | D196: نقدي | E196: خرسانة 3/4 | F196: 16 | G196: 33.75 | H196: 540
A197: A-183 | B197: 2020-06-28 | C197: 9570 | D197: نقدي | E197: خرسانة 3/4 | F197: 14 | G197: 35.71428571 | H197: 500
A198: A-184 | B198: 2020-06-28 | C198: 9571 | D198: نقدي | E198: خرسانة 3/4 | F198: 16 | G198: 33.75 | H198: 540
A199: A-185 | B199: 2020-06-28 | C199: 9572 | D199: نقدي | E199: خرسانة 3/4 | F199: 16 | G199: 33.75 | H199: 540
A200: A-186 | B200: 2020-06-28 | C200: 9573 | D200: نقدي | E200: خرسانة 3/8 | F200: 16 | G200: 33.75 | H200: 540
... 52 more rows

Sheet يولية
A1: بيان مبيعات الكسارة عن شهر يوليو 2020
A2: م | B2: التاريخ | C2: رقم الايصال | D2: العميل | E2: نوع المواد | F2: الكمية | G2: السعر | H2: الاجمالى
A3: 1 | B3: 2020-07-01 | C3: 9606 | D3: نقدى | E3: تراب ناعم | F3: 16 | G3: =IFERROR(H3/F3,"-") -> 3.125 | H3: 50
A4: 2 | B4: 2020-07-01 | C4: 9607 | D4: مصنع العسيرى | E4: خرسانة 3/4 | F4: 24 | G4: =IFERROR(H4/F4,"-") -> 33.54166667 | H4: 805
A5: 3 | B5: 2020-07-01 | C5: 9608 | D5: مصنع العسيرى | E5: خرسانة 3/8 | F5: 24 | G5: =IFERROR(H5/F5,"-") -> 33.54166667 | H5: 805
A6: 4 | B6: 2020-07-01 | C6: 9609 | D6: مصنع العسيرى | E6: خرسانة 3/8 | F6: 24 | G6: =IFERROR(H6/F6,"-") -> 33.54166667 | H6: 805
A7: 5 | B7: 2020-07-01 | C7: 9610 | D7: نقدى | E7: خرسانة 3/4 | F7: 16 | G7: =IFERROR(H7/F7,"-") -> 38.8125 | H7: 621
A8: 6 | B8: 2020-07-01 | C8: 9611 | D8: نقدى | E8: خرسانة 3/4 | F8: 16 | G8: =IFERROR(H8/F8,"-") -> 38.8125 | H8: 621
A9: 7 | B9: 2020-07-01 | C9: 9612 | D9: مصنع العسيرى | E9: خرسانة 3/4 | F9: 24 | G9: 33.54166667 | H9: 805
A10: 8 | B10: 2020-07-01 | C10: 9613 | D10: نقدى | E10: خرسانة 3/4 | F10: 16 | G10: 38.8125 | H10: 621
A11: 9 | B11: 2020-07-01 | C11: 9614 | D11: مصنع العسيرى | E11: خرسانة 3/4 | F11: 24 | G11: 33.54166667 | H11: 805
A12: 10 | B12: 2020-07-01 | C12: 9615 | D12: محمد نعيم | E12: تراب ناعم | F12: 16 | G12: 4.3125 | H12: 69
A13: 11 | B13: 2020-07-01 | C13: 9616 | D13: محمد نعيم | E13: تراب ناعم | F13: 16 | G13: 4.3125 | H13: 69
A14: 12 | B14: 2020-07-02 | C14: 9617 | D14: نقدى | E14: خرسانة 3/4 | F14: 16 | G14: 38.8125 | H14: 621
A15: 13 | B15: 2020-07-02 | C15: 9618 | D15: نقدى | E15: خرسانة 3/4 | F15: 16 | G15: 38.8125 | H15: 621
A16: 14 | B16: 2020-07-02 | C16: 9619 | D16: نقدى | E16: خرسانة 3/4 | F16: 16 | G16: 38.8125 | H16: 621
A17: 15 | B17: 2020-07-02 | C17: 9620 | D17: مصنع العسيرى | E17: خرسانة 3/4 | F17: 24 | G17: 33.54166667 | H17: 805
A18: 16 | B18: 2020-07-02 | C18: 9621 | D18: مصنع العسيرى | E18: خرسانة 3/4 | F18: 24 | G18: 33.54166667 | H18: 805
A19: 17 | B19: 2020-07-02 | C19: 9622 | D19: مصنع العسيرى | E19: خرسانة 3/4 | F19: 24 | G19: 33.54166667 | H19: 805
A20: 18 | B20: 2020-07-02 | C20: 9623 | D20: نقدى | E20: خرسانة 3/4 | F20: 16 | G20: 38.8125 | H20: 621
A21: 19 | B21: 2020-07-02 | C21: 9624 | D21: نقدى | E21: خرسانة 3/4 | F21: 16 | G21: 38.8125 | H21: 621
A22: 20 | B22: 2020-07-02 | C22: 9625 | D22: مصنع العسيرى | E22: خرسانة 3/8 | F22: 24 | G22: 33.54166667 | H22: 805
A23: 21 | B23: 2020-07-02 | C23: 9626 | D23: مصنع العسيرى | E23: خرسانة 3/8 | F23: 24 | G23: 33.54166667 | H23: 805
A24: 22 | B24: 2020-07-02 | C24: 9627 | D24: نقدى | E24: خرسانة 3/4 | F24: 16 | G24: 38.8125 | H24: 621
A25: 23 | B25: 2020-07-02 | C25: 9628 | D25: نقدى | E25: خرسانة 3/4 | F25: 8 | G25: 48.875 | H25: 391
A26: 24 | B26: 2020-07-02 | C26: 9629 | D26: مؤسسة بن دروم | E26: تراب ناعم | F26: 16 | G26: 4.3125 | H26: 69
A27: 25 | B27: 2020-07-02 | C27: 9630 | D27: مؤسسة بن دروم | E27: تراب ناعم | F27: 16 | G27: 4.3125 | H27: 69
A28: 26 | B28: 2020-07-02 | C28: 9631 | D28: مؤسسة بن دروم | E28: تراب ناعم | F28: 16 | G28: 4.3125 | H28: 69
A29: 27 | B29: 2020-07-02 | C29: 9632 | D29: مؤسسة بن دروم | E29: تراب ناعم | F29: 16 | G29: 4.3125 | H29: 69
A30: 28 | B30: 2020-07-04 | C30: 9633 | D30: نقدى | E30: خرسانة 3/4 | F30: 16 | G30: 38.8125 | H30: 621
A31: 29 | B31: 2020-07-04 | C31: 9634 | D31: مصنع العسيرى | E31: خرسانة 3/8 | F31: 24 | G31: 33.54166667 | H31: 805
A32: 30 | B32: 2020-07-04 | C32: 9635 | D32: مصنع العسيرى | E32: خرسانة 3/8 | F32: 24 | G32: 33.54166667 | H32: 805
A33: 31 | B33: 2020-07-04 | C33: 9636 | D33: نقدى | E33: خرسانة 3/4 | F33: 16 | G33: 38.8125 | H33: 621
A34: 32 | B34: 2020-07-04 | C34: 9637 | D34: نقدى | E34: خرسانة 3/4 | F34: 16 | G34: 38.8125 | H34: 621
A35: 33 | B35: 2020-07-04 | C35: 9638 | D35: نقدى | E35: خرسانة 3/4 | F35: 16 | G35: 38.8125 | H35: 621
A36: 34 | B36: 2020-07-04 | C36: 9639 | D36: مصنع العسيرى | E36: خرسانة 3/8 | F36: 24 | G36: 33.54166667 | H36: 805
A37: 35 | B37: 2020-07-04 | C37: 9640 | D37: مصنع العسيرى | E37: خرسانة 3/8 | F37: 24 | G37: 33.54166667 | H37: 805
A38: 36 | B38: 2020-07-04 | C38: 9641 | D38: مصنع العسيرى | E38: خرسانة 3/8 | F38: 24 | G38: 33.54166667 | H38: 805
A39: 37 | B39: 2020-07-04 | C39: 9642 | D39: نقدى | E39: خرسانة 3/4 | F39: 16 | G39: 38.8125 | H39: 621

Sheet فواتير يولية
A5: الرقم الضريبي : 310199231200003
D6: Tax Invoice# | G6: 9607
A7: 2020-07-01 | C7: التاريخ | F7: رقم تليفون العميل : 0172826555
B8: مصنع العسيرى | C8: العميل | F8: رقم السيارة :7228
A10: م | B10: البيان | F10: الكمية | G10: الوحدة | H10: السعر | I10: الإجمالي
A11: 1 | B11: خرسانة 3/4 | F11: =SUMIFS(يولية!F3:F253,يولية!B3:B253,A7,يولية!D3:D253,B8,يولية!E3:E253,B11,يولية!C3:C253,G6) -> 24 | G11: م مكعب | H11: =IFERROR(I11/F11,"-") -> 29.16666667 | I11: =SUMIFS(يولية!H3:H253,يولية!B3:B253,A7,يولية!D3:D253,B8,يولية!E3:E253,B11,يولية!C3:C253,G6)/1.15 -> 700
A12: 2 | F12: =SUMIFS(يولية!F3:F253,يولية!B3:B253,A7,يولية!D3:D253,B8,يولية!E3:E253,B11,يولية!C3:C253,G7) -> 0 | G12: م مكعب | H12: =IFERROR(I12/F12,"-") -> - | I12: =SUMIFS(يولية!H3:H253,يولية!B3:B253,A7,يولية!D3:D253,B8,يولية!E3:E253,B12,يولية!C3:C253,G6) -> 0
A13: 3
F15: Subtotal | I15: =SUM(I11:I14) -> 700
F16: VAT 15 % | I16: 0.15
F17: VAT Value | I17: =I15*I16 -> 105
F18: Total Amount Including VAT | I18: =I15+I17 -> 805
F19: Less Total Deductin | I19: 0
A20: فقط مبلغ وقدره أربعة الف وخمسة وعشرون ريال لاغير | F20: Invoice Total ( Net Amount ) | I20: =I18-I19 -> 805
B23: البائع | H23: المحاسب

Sheet تقرير7
B2: التاريخ | G2: اجمالى نقدى | H2: =SUMIF(D4:D70,"نقدى",H4:H70) -> 3105
B3: 2020-07-04 | G3: اجمالى الاجل | H3: =SUM(H4:H70)-H2 -> 4025
A4: م | B4: التاريخ | C4: رقم الايصال | D4: العميل | E4: نوع المواد | F4: الكمية | G4: السعر | H4: الاجمالى
A5: 28 | B5: 2020-07-04 | C5: 9633 | D5: نقدى | E5: خرسانة 3/4 | F5: 16 | G5: 38.8125 | H5: 621
A6: 29 | B6: 2020-07-04 | C6: 9634 | D6: مصنع العسيرى | E6: خرسانة 3/8 | F6: 24 | G6: 33.54166667 | H6: 805
A7: 30 | B7: 2020-07-04 | C7: 9635 | D7: مصنع العسيرى | E7: خرسانة 3/8 | F7: 24 | G7: 33.54166667 | H7: 805 | I7: 3105 | J7: عهدة طه العوض
A8: 31 | B8: 2020-07-04 | C8: 9636 | D8: نقدى | E8: خرسانة 3/4 | F8: 16 | G8: 38.8125 | H8: 621 | I8: 0 | J8: ايداعات
A9: 32 | B9: 2020-07-04 | C9: 9637 | D9: نقدى | E9: خرسانة 3/4 | F9: 16 | G9: 38.8125 | H9: 621 | I9: =I7+I8 -> 3105 | J9: الإجمالي
A10: 33 | B10: 2020-07-04 | C10: 9638 | D10: نقدى | E10: خرسانة 3/4 | F10: 16 | G10: 38.8125 | H10: 621
A11: 34 | B11: 2020-07-04 | C11: 9639 | D11: مصنع العسيرى | E11: خرسانة 3/8 | F11: 24 | G11: 33.54166667 | H11: 805
A12: 35 | B12: 2020-07-04 | C12: 9640 | D12: مصنع العسيرى | E12: خرسانة 3/8 | F12: 24 | G12: 33.54166667 | H12: 805
A13: 36 | B13: 2020-07-04 | C13: 9641 | D13: مصنع العسيرى | E13: خرسانة 3/8 | F13: 24 | G13: 33.54166667 | H13: 805
A14: 37 | B14: 2020-07-04 | C14: 9642 | D14: نقدى | E14: خرسانة 3/4 | F14: 16 | G14: 38.8125 | H14: 621

Sheet اجمالى الشهور
A1: اجمالى الشهور 2020
A2: S.N | B2: MOUNTH | C2: QUINTITY | D2: PRICE | E2: AMOUNT | F2: Column1 | G2: Column2 | H2: Column3
A3: A-1 | B3: january | C3: =يناير!F305 -> 5142 | D3: =IFERROR(E3/C3,"-") -> 22.85783742 | E3: =يناير!H305 -> 117535
A4: A-2 | B4: february | C4: =فبراير!F241 -> 4310 | D4: 24.66821346 | E4: =فبراير!H241 -> 106320
A5: A-3 | B5: march | C5: =مارس!F256 -> 5406 | D5: 21.13762486 | E5: =مارس!H256 -> 114270
A6: A-4 | B6: april | C6: =ابريل!F243 -> 4708 | D6: 25.58623619 | E6: =ابريل!H243 -> 120460
A7: A-5 | B7: may | C7: =مايو!F160 -> 3118 | D7: 23.52148813 | E7: =مايو!H160 -> 73340
A8: A-6 | B8: june | C8: =يونية!F244 -> 4206 | D8: 24.78839753 | E8: =يونية!H244 -> 104260
A9: A-7 | B9: july | D9: -
A10: A-8 | B10: august | D10: -
A11: A-9 | B11: september | D11: -
A12: A-10 | B12: october | D12: -
A13: A-11 | B13: november | D13: -
A14: A-12 | B14: december | D14: -
A15: TOTAL | C15: =SUBTOTAL(109,C3:C14) -> 26890 | D15: 23.65879509 | E15: =SUBTOTAL(109,E3:E14) -> 636185

Sheet اجمالى كميات
A1: اجمالى كميات 2020
A2: S.N | B2: نوع المواد | C2: QUANTITY | D2: PRICE | E2: AMOUNT | F2: الإيرادات | G2: VAT | H2: Column1 | I2: Column2 | J2: Column3
A3: A-1 | B3: خرسانة 3/4 | C3: =يناير!F316+فبراير!F253+مارس!F263+ابريل!F250+مايو!F166+يونية!F250 -> 14962 | D3: =IFERROR(E3/C3,"-") -> 26.77182195 | E3: =يناير!H316+فبراير!H253+مارس!H263+ابريل!H250+مايو!H166+يونية!H250 -> 400560 | F3: =يناير!I316+فبراير!I253+مارس!I263+ابريل!I250+مايو!I166+يونية!I250 -> 381485.7143 | G3: =يناير!J316+فبراير!J253+مارس!J263+ابريل!J250+مايو!J166+يونية!J250 -> 19074.28571
A4: A-2 | B4: خرسانة 3/8 | C4: =يناير!F317+فبراير!F254+مارس!F264+ابريل!F251+مايو!F167+يونية!F251 -> 8520 | D4: =IFERROR(E4/C4,"-") -> 26.14319249 | E4: =يناير!H317+فبراير!H254+مارس!H264+ابريل!H251+مايو!H167+يونية!H251 -> 222740 | F4: =يناير!I317+فبراير!I254+مارس!I264+ابريل!I251+مايو!I167+يونية!I251 -> 212133.3333 | G4: =يناير!J317+فبراير!J254+مارس!J264+ابريل!J251+مايو!J167+يونية!J251 -> 10606.66667
A5: A-3 | B5: تراب ناعم | C5: =يناير!F318+فبراير!F255+مارس!F265+ابريل!F252+مايو!F168+يونية!F252 -> 3344 | D5: 3.314892344 | E5: =يناير!H318+فبراير!H255+مارس!H265+ابريل!H252+مايو!H168+يونية!H252 -> 11085 | F5: =يناير!I318+فبراير!I255+مارس!I265+ابريل!I252+مايو!I168+يونية!I252 -> 10557.14286 | G5: =يناير!J318+فبراير!J255+مارس!J265+ابريل!J252+مايو!J168+يونية!J252 -> 527.8571429
A6: A-4 | B6: بودرة | C6: =يناير!F319+فبراير!F256+مارس!F266+ابريل!F253+مايو!F169+يونية!F253 -> 64 | D6: 28.125 | E6: =يناير!H319+فبراير!H256+مارس!H266+ابريل!H253+مايو!H169+يونية!H253 -> 1800 | F6: =يناير!I319+فبراير!I256+مارس!I266+ابريل!I253+مايو!I169+يونية!I253 -> 1714.285714 | G6: =يناير!J319+فبراير!J256+مارس!J266+ابريل!J253+مايو!J169+يونية!J253 -> 85.71428571
A7: A-5 | D7: -
A8: A-6 | D8: -
A9: A-7 | D9: -
A10: A-8 | D10: -
A11: TOTAL | C11: =SUBTOTAL(109,C3:C10) -> 26890 | E11: =SUBTOTAL(109,E3:E10) -> 636185 | F11: =SUBTOTAL(109,F3:F10) -> 605890.4762 | G11: =SUM(G3:G10) -> 30294.52381
